Service Area Categorisation,Service Division Categorisation,Responsible Unit,Expenses Type,Expenses Sub-Type,Detailed Expenses Type,Date,Transaction number,Amount,Capital/Revenue,Supplier name
,No FE Detail,Bridge inspection - parks,Construct Conversn Renovatn,Contractor - Site works,Contractor - Site works,10/3/2011,1,"1,680.00",Capital,TAYLOR BUILDING COMPANY LTD
,No FE Detail,Bridge inspection - parks,Construct Conversn Renovatn,Contractor - Site works,Contractor - Site works,10/3/2011,2,950.00,Capital,REDACTED
,No FE Detail,Payroll Summary Account,Fund Balances,Funded by Other grants & contr,Salary Sacrifice,10/3/2011,3,"2,082.00",Revenue,ACCOR SERVICES
,No FE Detail,Payroll Summary Account,Fund Balances,Funded by Other grants & contr,Salary Sacrifice,10/3/2011,4,786.00,Revenue,ACCOR SERVICES
,No FE Detail,Payroll Summary Account,Fund Balances,Funded by Other grants & contr,Salary Sacrifice,10/3/2011,5,"14,291.00",Revenue,ACCOR SERVICES
Childrens & Education Services,Family Support Services,CL Travel E-Parent Visiting T1,Third Party Payments,Private Contractors,Miscellaneous Agency Services,10/5/2011,6,"3,519.25",Revenue,REDACTED
,No FE Detail,Payroll Summary Account,Fund Balances,Funded by Other grants & contr,Extl Payees Monthly,10/4/2011,7,"2,666.41",Revenue,REDACTED
,No FE Detail,Payroll Summary Account,Fund Balances,Funded by Other grants & contr,Extl Payees Monthly,10/4/2011,8,"12,510.05",Revenue,REDACTED
,No FE Detail,Tiffin Boys,Fund Balances,,Other Deductions,10/4/2011,9,"18,391.44",Revenue,LONDON BOROUGH OF KINGSTON
,No FE Detail,Payroll Summary Account,Fund Balances,Funded by Other grants & contr,Extl Payees Monthly,10/4/2011,10,"1,056.86",Revenue,REDACTED
,No FE Detail,Payroll Summary Account,Fund Balances,Funded by Other grants & contr,Extl Payees Monthly,10/4/2011,11,"5,020.77",Revenue,REDACTED
,No FE Detail,Payroll Summary Account,Fund Balances,Funded by Other grants & contr,Extl Payees Monthly,10/4/2011,12,949.69,Revenue,REDACTED
,No FE Detail,Payroll Summary Account,Fund Balances,Funded by Other grants & contr,Extl Payees Monthly,10/4/2011,13,"8,207.85",Revenue,REDACTED
,No FE Detail,Payroll Summary Account,Fund Balances,Funded by Other grants & contr,Extl Payees Monthly,10/4/2011,14,"2,583.24",Revenue,REDACTED
,No FE Detail,Payroll Summary Account,Fund Balances,Funded by Other grants & contr,Extl Payees Monthly,10/4/2011,15,888.90,Revenue,REDACTED
,No FE Detail,Social Workers Mitcham,Fund Balances,,Payments X,10/5/2011,16,639.98,Revenue,REDACTED
,No FE Detail,Payroll Summary Account,Fund Balances,Funded by Other grants & contr,Extl Payees Monthly,10/4/2011,17,"7,018.23",Revenue,REDACTED
,No FE Detail,Payroll Summary Account,Fund Balances,Funded by Other grants & contr,Extl Payees Monthly,10/4/2011,18,"1,323.19",Revenue,REDACTED
,No FE Detail,Payroll Summary Account,Fund Balances,Funded by Other grants & contr,Replacements,10/4/2011,19,812.44,Revenue,REDACTED
,No FE Detail,Payroll Summary Account,Fund Balances,Funded by Other grants & contr,Advances- Chqs Drawn,10/4/2011,20,637.85,Revenue,REDACTED
,No FE Detail,Payroll Summary Account,Fund Balances,Funded by Other grants & contr,Extl Payees Monthly,10/4/2011,21,"8,384.84",Revenue,REDACTED
,No FE Detail,Ursuline  - Payroll Contract,Fund Balances,,Other Deductions,10/4/2011,22,"1,004.93",Revenue,REDACTED
Childrens & Education Services,Supporting SEN,Non-Delegated Statements,Third Party Payments,Other Local Authorities,OLA-Payments - Day Schools,10/4/2011,23,"13,129.90",Revenue,L.B.RICHMOND UPON THAMES
,No FE Detail,Exceptnl ItemCash prior yr adj,Corporate Items,,Income   S,10/7/2011,24,"-12,834.46",Revenue,GOLDSBOROUGH HOMECARE
Housing Services,Homelessness,Homelessness Prevention,Transfer Payments,Housing Benefits,Rent Deposits,10/7/2011,25,"3,200.00",Revenue,REDACTED
,No FE Detail,Annual Season Ticket Loans,Fund Balances,,Payments X,10/7/2011,26,912.00,Revenue,LONDON UNDERGROUND LTD
Childrens & Education Services,Other Ch's & Family Services,CL Setting Up Home Allowance,Third Party Payments,Private Contractors,Miscellaneous Agency Services,10/12/2011,27,751.71,Revenue,REDACTED
Housing Services,Homelessness,Homelessness Prevention,Transfer Payments,Housing Benefits,Rent Deposits,10/10/2011,28,"1,300.00",Revenue,AOB ESTATES
Housing Services,Homelessness,Homelessness Prevention,Transfer Payments,Housing Benefits,Sanctuary Scheme Rent Rescue,10/10/2011,29,"3,472.38",Revenue,AOB ESTATES
Adult Social Care,Older People 65&Over inc OP-MH,OP West - Residential Care Ext,Third Party Payments,Private Contractors,Miscellaneous Agency Services,10/12/2011,30,"2,282.50",Revenue,REDACTED
,No FE Detail,Lavender CC - Nursery Deposits,Fund Balances,,Xfer to/from Rev A/C   X,10/10/2011,31,695.28,Revenue,SURESTART IMPREST BANK ACCOUNT
,No FE Detail,Bridge inspection - parks,Construct Conversn Renovatn,Contractor - Site works,Contractor - Site works,10/18/2011,32,"3,280.00",Capital,REDACTED
,No FE Detail,Crossrail BRS,Fund Balances,,Payments X,10/24/2011,33,"186,733.00",Revenue,GREATER LONDON AUTHORITY
CS -Oth Operating Inc & Expend,Precepts and Levies,Lee Valley Regional Park,Corporate Items,,Expenditure,10/18/2011,34,"18,350.46",Revenue,LEE VALLEY REGIONAL PARK AUTH.
CS -Oth Operating Inc & Expend,Precepts and Levies,London Pens Fund Auth,Corporate Items,,Expenditure,10/12/2011,35,"25,433.20",Revenue,LONDON PENSIONS FUND AUTHORITY
CS -Oth Operating Inc & Expend,Precepts and Levies,WPCC,Corporate Items,,Expenditure,10/12/2011,36,"26,664.74",Revenue,WPCC
,No FE Detail,Precepts,Fund Balances,,Greate London Authority S,10/12/2011,37,"2,359,782.25",Revenue,GREATER LONDON AUTHORITY
,No FE Detail,Tiffin Boys,Fund Balances,,Other Deductions,10/31/2011,38,"46,194.97",Revenue,TEACHERS PENSIONS AGENCY
,No FE Detail,Wimbledon College,Fund Balances,Funded by Other grants & contr,Extl Payees Monthly,10/31/2011,39,"52,414.55",Revenue,TEACHERS PENSIONS AGENCY
,No FE Detail,Ursuline  - Payroll Contract,Fund Balances,,Other Deductions,10/31/2011,40,"56,455.83",Revenue,TEACHERS PENSIONS AGENCY
,No FE Detail,Payroll Summary Account,Fund Balances,Funded by Other grants & contr,Extl Payees Monthly,10/31/2011,41,"755,665.91",Revenue,TEACHERS PENSIONS AGENCY
,No FE Detail,Payroll Summary Account,Fund Balances,Funded by Other grants & contr,Salary Sacrifice,10/11/2011,42,"9,717.81",Revenue,ACCOR SERVICES
,No FE Detail,Payroll Summary Account,Fund Balances,Funded by Other grants & contr,Salary Sacrifice,10/11/2011,43,534.48,Revenue,ACCOR SERVICES
,No FE Detail,Bldng Sub-Cntrctrs Tax Acc,Fund Balances,,Payments X,10/11/2011,44,"3,573.60",Revenue,HM REVENUE & CUSTOMS
,No FE Detail,Rent Rebates,Fund Balances,,Payments X,10/12/2011,45,"2,701.80",Revenue,MERTON PRIORY HOMES - HB
Central Services,Fully rechargeable Overheads,Corporate Services Buildings,Premises Related Expenditure,Water Services,Use of Water (Metered),10/12/2011,46,881.36,Revenue,SUTTON AND EAST SURREY WATER
,No FE Detail,Leisure Services Parks&OpenSp,Construct Conversn Renovatn,Contractor - Site works,Contractor - Site works,10/12/2011,47,"3,290.00",Capital,TAYLOR BUILDING COMPANY LTD
,No FE Detail,Annual Season Ticket Loans,Fund Balances,,Payments X,10/12/2011,48,912.00,Revenue,SOUTHERN RAILWAY
CS -Oth Operating Inc & Expend,Trading A/c Surpluses/Deficits,Transport-Contract Hire,Transport Related Expenditure,Contract Hire and Op Leasing,Mini Cab Hire for Education,10/13/2011,49,"1,800.00",Revenue,REDACTED
Central Services,Fully rechargeable Overheads,Post Room,Supplies and Services,Comms and Computing,Postage - General,10/31/2011,50,"44,243.70",Revenue,TNT POST LONDON LTD
Central Services,Fully rechargeable Overheads,Data protection,Supplies and Services,Prntng Stnry Gen Off Exp,General Office Expense,10/14/2011,51,500.00,Revenue,INFORMATION COMMISSIONER
Central Services,Retiremt Benefit -Curtailments,Pension and Redundancy Costs,Employees,Indirect Employee Expenses,Severance-Creditors,10/14/2011,52,"16,622.04",Revenue,TEACHERS PENSION
Childrens & Education Services,Family Support Services,CS Children in Need Section 17,Transfer Payments,Adult Soc Servs Clients,Childr Act 1989 S17,10/19/2011,53,550.00,Revenue,SAINSBURY'S BUSINESS DIRECT
Childrens & Education Services,Family Support Services,CS Referral & Assessment Sec17,Transfer Payments,Adult Soc Servs Clients,Childr Act 1989 S17,10/19/2011,54,550.00,Revenue,SAINSBURY'S BUSINESS DIRECT
Childrens & Education Services,Family Support Services,CS Childr Act 1989 - Section17,Transfer Payments,Adult Soc Servs Clients,Childr Act 1989 S17,10/19/2011,55,600.00,Revenue,SAINSBURY'S BUSINESS DIRECT
Central Services,Gen Grants Bequest & Donations,VOLUNTARY SECTOR COORDINATION,Supplies and Services,Grants and Subscriptions,Grants,10/17/2011,56,"4,961.00",Revenue,ATTIC THEATRE COMPANY
Central Services,Gen Grants Bequest & Donations,VOLUNTARY SECTOR COORDINATION,Supplies and Services,Grants and Subscriptions,Grants,10/17/2011,57,"12,176.00",Revenue,ATTIC THEATRE COMPANY
Housing Services,Homelessness,Homelessness Prevention,Transfer Payments,Housing Benefits,Rent Deposits,10/17/2011,58,504.91,Revenue,REDACTED
Central Services,Gen Grants Bequest & Donations,VOLUNTARY SECTOR COORDINATION,Supplies and Services,Grants and Subscriptions,Grants,10/17/2011,59,"49,130.00",Revenue,POLKA THEATRE FOR CHILDREN
Central Services,Gen Grants Bequest & Donations,VOLUNTARY SECTOR COORDINATION,Supplies and Services,Grants and Subscriptions,Grants,10/17/2011,60,"13,847.00",Revenue,POLKA THEATRE FOR CHILDREN
Central Services,Fully rechargeable Overheads,Local Strategic Partnership,Supplies and Services,Grants and Subscriptions,Grants,10/17/2011,61,"10,654.00",Revenue,MERTON VOLUNTARY SERV COUNCIL
Central Services,Gen Grants Bequest & Donations,VOLUNTARY SECTOR COORDINATION,Supplies and Services,Grants and Subscriptions,Grants,10/17/2011,62,"3,801.00",Revenue,SPRINGFIELD LAW CENTRE LTD
Housing Services,Homelessness,Homelessness Prevention,Transfer Payments,Housing Benefits,Rent Deposits,10/17/2011,63,600.00,Revenue,REDACTED
Central Services,Gen Grants Bequest & Donations,VOLUNTARY SECTOR COORDINATION,Supplies and Services,Grants and Subscriptions,Grants,10/17/2011,64,"5,668.00",Revenue,SW LONDON LAW CENTRES
Central Services,Gen Grants Bequest & Donations,VOLUNTARY SECTOR COORDINATION,Supplies and Services,Grants and Subscriptions,Grants,10/17/2011,65,"6,113.00",Revenue,SW LONDON LAW CENTRES
Central Services,Gen Grants Bequest & Donations,VOLUNTARY SECTOR COORDINATION,Supplies and Services,Grants and Subscriptions,Grants,10/17/2011,66,"7,400.00",Revenue,VOLUNTEER CENTRE MERTON
Housing Services,Homelessness,Homelessness Prevention,Transfer Payments,Housing Benefits,Rent Deposits,10/18/2011,67,"1,300.00",Revenue,REDACTED
Cultural Env Reg&Plan Services,Open Spaces,Leis Dev - Fireworks,Customer and client receipts,Charges,Misc Exps Recovered X,10/19/2011,68,"20,000.00",Revenue,REDACTED
Housing Services,Housing Benefit Administration,Benefits Administration,Supplies and Services,Services,Miscellaneous Fees,10/19/2011,69,622.68,Revenue,REDACTED
Housing Services,Homelessness,Homelessness Prevention,Transfer Payments,Housing Benefits,Rent Deposits,10/20/2011,70,849.98,Revenue,REDACTED
Childrens & Education Services,Other Ch's & Family Services,CL Setting Up Home Allowance,Third Party Payments,Private Contractors,Miscellaneous Agency Services,10/21/2011,71,804.46,Revenue,REDACTED
Childrens & Education Services,Children Looked After (24hrs+),ART Residential Placements,Third Party Payments,Private Contractors,Miscellaneous Agency Services,10/31/2011,72,"17,722.00",Revenue,FLIGHT CENTRE (UK) LIMITED
Childrens & Education Services,Other Ch's & Family Services,CL Setting Up Home Allowance,Third Party Payments,Private Contractors,Miscellaneous Agency Services,10/21/2011,73,"1,228.78",Revenue,REDACTED
Central Services,Fully rechargeable Overheads,Legal Services,Supplies and Services,Services,Court Fees,10/25/2011,74,"1,900.00",Revenue,REDACTED
,No FE Detail,Tiffin Boys,Fund Balances,,Other Deductions,10/31/2011,75,"93,422.97",Revenue,THE COLLECTOR OF TAXES
,No FE Detail,Ursuline  - Payroll Contract,Fund Balances,,Other Deductions,10/31/2011,76,"113,811.92",Revenue,THE COLLECTOR OF TAXES
,No FE Detail,Payroll Summary Account,Fund Balances,Funded by Other grants & contr,Extl Payees Monthly,10/31/2011,77,"3,308,297.10",Revenue,THE COLLECTOR OF TAXES
Housing Services,Homelessness,Homelessness Prevention,Transfer Payments,Housing Benefits,Rent Deposits,10/25/2011,78,850.00,Revenue,REDACTED
,No FE Detail,Bridge inspection - parks,Construct Conversn Renovatn,Contractor - Site works,Contractor - Site works,10/25/2011,79,"3,070.00",Capital,REDACTED
,No FE Detail,Payroll Summary Account,Fund Balances,Funded by Other grants & contr,Advances- Chqs Drawn,10/26/2011,80,758.12,Revenue,REDACTED
,No FE Detail,Payroll Summary Account,Fund Balances,Funded by Other grants & contr,Advances- Chqs Drawn,10/26/2011,81,727.02,Revenue,REDACTED
,No FE Detail,Payroll Summary Account,Fund Balances,Funded by Other grants & contr,Advances- Chqs Drawn,10/26/2011,82,"1,000.96",Revenue,REDACTED
Childrens & Education Services,Children Looked After (24hrs+),ART Residential Placements,Third Party Payments,Private Contractors,Miscellaneous Agency Services,10/31/2011,83,"1,050.00",Revenue,FLIGHT CENTRE (UK) LIMITED
Childrens & Education Services,Other Ch's & Family Services,CL Setting Up Home Allowance,Third Party Payments,Private Contractors,Miscellaneous Agency Services,10/28/2011,84,"1,541.46",Revenue,REDACTED
Cultural Env Reg&Plan Services,Development Control,Development Control,Customer and client receipts,Fees,Application Fees X,10/28/2011,85,"2,680.00",Revenue,WIMBLEDON SCHOOL OF ENGLISH
,No FE Detail,Payroll Summary Account,Fund Balances,Funded by Other grants & contr,Advances- Chqs Drawn,10/28/2011,86,805.09,Revenue,REDACTED
CS -Oth Operating Inc & Expend,Trading A/c Surpluses/Deficits,Transport-Workshop,Transport Related Expenditure,Direct Transport Costs,Vehicle MOTs,10/28/2011,87,"1,000.00",Revenue,V.O.S.A
Cultural Env Reg&Plan Services,SMSS (Cult),Leisure Developmt Manager,Supplies and Services,Expenses,Special Projects,10/31/2011,88,"5,600.00",Revenue,MERTON MUSIC FOUNDATION
Housing Services,Homelessness,Homelessness Prevention,Transfer Payments,Housing Benefits,Sanctuary Scheme Rent Rescue,10/31/2011,89,"2,200.00",Revenue,MERTON PRIORY HOMES
,No FE Detail,Payroll Summary Account,Fund Balances,Funded by Other grants & contr,Salary Sacrifice,10/31/2011,90,"14,291.00",Revenue,ACCOR SERVICES
,No FE Detail,Payroll Summary Account,Fund Balances,Funded by Other grants & contr,Salary Sacrifice,10/31/2011,91,786.00,Revenue,ACCOR SERVICES
,No FE Detail,Payroll Summary Account,Fund Balances,Funded by Other grants & contr,Salary Sacrifice,10/31/2011,92,"2,763.00",Revenue,ACCOR SERVICES
,No FE Detail,Superannuation creditors,Fund Balances,,Payments X,10/14/2011,93,744.06,Revenue,REDACTED
Central Services,Fully rechargeable Overheads,Pensions,Supplies and Services,Comms and Computing,Software Licences,10/19/2011,94,"42,588.70",Revenue,HEYWOOD
Adult Social Care,Older People 65&Over inc OP-MH,OP Hosp - Residential Care Ext,Third Party Payments,Private Contractors,Miscellaneous Agency Services,10/17/2011,95,"1,812.40",Revenue,LINDEN HOUSE
Adult Social Care,Adult u65 Mental Health Needs,MH ResidentialCare Ext-Morden,Third Party Payments,Private Contractors,Miscellaneous Agency Services,10/3/2011,96,"2,839.00",Revenue,REDACTED
Adult Social Care,Older People 65&Over inc OP-MH,OP East - Nursing Care,Third Party Payments,Private Contractors,Miscellaneous Agency Services,10/3/2011,97,"2,334.52",Revenue,THE CROFT NURSING HOME
Adult Social Care,Adult u65 Phys/Sensory Impair,PD WEST TEAM-Residential Care,Third Party Payments,Private Contractors,Miscellaneous Agency Services,10/3/2011,98,"3,399.76",Revenue,THE FRANCES TAYLOR FOUNDATION
Adult Social Care,Older People 65&Over inc OP-MH,OP Hosp - Nursing Care,Third Party Payments,Private Contractors,Miscellaneous Agency Services,10/3/2011,99,"2,341.84",Revenue,SUTTON COURT CARE CENTRE
Adult Social Care,Older People 65&Over inc OP-MH,OP West - Nursing Care,Third Party Payments,Private Contractors,Miscellaneous Agency Services,10/3/2011,100,"2,341.84",Revenue,SUTTON COURT CARE CENTRE
Adult Social Care,Older People 65&Over inc OP-MH,OP West - Nursing Care,Third Party Payments,Private Contractors,Miscellaneous Agency Services,10/3/2011,101,"2,341.84",Revenue,SUTTON COURT CARE CENTRE
Adult Social Care,Older People 65&Over inc OP-MH,OP East - Nursing Care,Third Party Payments,Private Contractors,Miscellaneous Agency Services,10/3/2011,102,"2,341.84",Revenue,SUTTON COURT CARE CENTRE
Adult Social Care,Older People 65&Over inc OP-MH,OP Hosp - Nursing Care,Third Party Payments,Private Contractors,Miscellaneous Agency Services,10/3/2011,103,"2,341.84",Revenue,SUTTON COURT CARE CENTRE
Adult Social Care,Older People 65&Over inc OP-MH,OP Hosp - Nursing Care,Third Party Payments,Private Contractors,Miscellaneous Agency Services,10/3/2011,104,"3,000.00",Revenue,SUTTON COURT CARE CENTRE
Adult Social Care,Older People 65&Over inc OP-MH,OP Hosp - Nursing Care,Third Party Payments,Private Contractors,Miscellaneous Agency Services,10/3/2011,105,"2,341.84",Revenue,SUTTON COURT CARE CENTRE
Adult Social Care,Older People 65&Over inc OP-MH,OP Hosp - Nursing Care,Third Party Payments,Private Contractors,Miscellaneous Agency Services,10/3/2011,106,"2,341.84",Revenue,SUTTON COURT CARE CENTRE
Adult Social Care,Older People 65&Over inc OP-MH,OP West - Nursing Care,Third Party Payments,Private Contractors,Miscellaneous Agency Services,10/3/2011,107,"2,341.84",Revenue,SUTTON COURT CARE CENTRE
Adult Social Care,Older People 65&Over inc OP-MH,OP West - Nursing Care,Third Party Payments,Private Contractors,Miscellaneous Agency Services,10/3/2011,108,"2,341.84",Revenue,SUTTON COURT CARE CENTRE
Adult Social Care,Older People 65&Over inc OP-MH,OP West - Nursing Care,Third Party Payments,Private Contractors,Miscellaneous Agency Services,10/3/2011,109,"2,341.84",Revenue,SUTTON COURT CARE CENTRE
Adult Social Care,Older People 65&Over inc OP-MH,OP West - Nursing Care,Third Party Payments,Private Contractors,Miscellaneous Agency Services,10/3/2011,110,"2,341.84",Revenue,SUTTON COURT CARE CENTRE
Adult Social Care,Older People 65&Over inc OP-MH,OP East - Nursing Care,Third Party Payments,Private Contractors,Miscellaneous Agency Services,10/3/2011,111,"2,341.84",Revenue,SUTTON COURT CARE CENTRE
Adult Social Care,Older People 65&Over inc OP-MH,OP Hosp - Nursing Care,Third Party Payments,Private Contractors,Miscellaneous Agency Services,10/3/2011,112,"2,341.84",Revenue,SUTTON COURT CARE CENTRE
Adult Social Care,Adult u65 Phys/Sensory Impair,PD WEST TEAM-Homecare,Third Party Payments,Private Contractors,Miscellaneous Agency Services,10/3/2011,113,850.00,Revenue,BELGRAVIA NURS. & CARE BUREAU
Adult Social Care,Adult u65 Phys/Sensory Impair,PD EAST TEAM-Homecare,Third Party Payments,Private Contractors,Miscellaneous Agency Services,10/3/2011,114,565.60,Revenue,COMMUNITY HOME CARE PROVIDER
Adult Social Care,Older People 65&Over inc OP-MH,OP East - Carer Services,Third Party Payments,Private Contractors,Miscellaneous Agency Services,10/3/2011,115,629.98,Revenue,COMMUNITY HOME CARE PROVIDER
Adult Social Care,Older People 65&Over inc OP-MH,OP East - Home Care External,Third Party Payments,Private Contractors,Miscellaneous Agency Services,10/3/2011,116,862.14,Revenue,COMMUNITY HOME CARE PROVIDER
Adult Social Care,Adlt u65 Learning Disabilities,LD Day Care Agency,Third Party Payments,Private Contractors,Miscellaneous Agency Services,10/3/2011,117,648.96,Revenue,ELIZABETH FITZROY HOMES
Adult Social Care,Adlt u65 Learning Disabilities,LD Home Care External,Third Party Payments,Private Contractors,Miscellaneous Agency Services,10/3/2011,118,"2,488.48",Revenue,ELIZABETH FITZROY HOMES
Adult Social Care,Adult u65 Mental Health Needs,MH Day Care - Morden,Third Party Payments,Private Contractors,Miscellaneous Agency Services,10/3/2011,119,623.68,Revenue,ENTERPRISE CARE SUPPORT LTD
Adult Social Care,Older People 65&Over inc OP-MH,OP East - Daycare,Third Party Payments,Private Contractors,Miscellaneous Agency Services,10/3/2011,120,740.62,Revenue,ENTERPRISE CARE SUPPORT LTD
Adult Social Care,Older People 65&Over inc OP-MH,OP East - Home Care External,Third Party Payments,Private Contractors,Miscellaneous Agency Services,10/3/2011,121,945.00,Revenue,ENTERPRISE CARE SUPPORT LTD
Adult Social Care,Adult u65 Phys/Sensory Impair,PD WEST TEAM-Homecare,Third Party Payments,Private Contractors,Miscellaneous Agency Services,10/3/2011,122,510.50,Revenue,GENEVA ROAD LIMITED
Adult Social Care,Adlt u65 Learning Disabilities,LD Residential Care External,Third Party Payments,Private Contractors,Miscellaneous Agency Services,10/3/2011,123,"11,438.14",Revenue,BROADHAM CARE LTD
Adult Social Care,Older People 65&Over inc OP-MH,OP East - Nursing Care,Third Party Payments,Private Contractors,Miscellaneous Agency Services,10/3/2011,124,"2,533.72",Revenue,CARE UK
Adult Social Care,Older People 65&Over inc OP-MH,OP West - Residential Care Ext,Third Party Payments,Private Contractors,Miscellaneous Agency Services,10/12/2011,125,"1,960.00",Revenue,CLOYDA LTD
Adult Social Care,Older People 65&Over inc OP-MH,OP Hosp - Residential Care Ext,Third Party Payments,Private Contractors,Miscellaneous Agency Services,10/12/2011,126,"1,768.88",Revenue,CLOYDA LTD
Adult Social Care,Older People 65&Over inc OP-MH,OP Hosp - Residential Care Ext,Third Party Payments,Private Contractors,Miscellaneous Agency Services,10/12/2011,127,"1,812.40",Revenue,CLOYDA LTD
Adult Social Care,Adlt u65 Learning Disabilities,LD Supported Housing,Third Party Payments,Private Contractors,Miscellaneous Agency Services,10/3/2011,128,"3,160.00",Revenue,CRUSOE CARE RESIDENTIAL HOME
Adult Social Care,Older People 65&Over inc OP-MH,OP Hosp - Residential Care Ext,Third Party Payments,Private Contractors,Miscellaneous Agency Services,10/3/2011,129,"1,800.00",Revenue,GABLE LODGE
Adult Social Care,Adult u65 Phys/Sensory Impair,PS Hostel Ext- NRTPF,Third Party Payments,Private Contractors,Miscellaneous Agency Services,10/3/2011,130,961.00,Revenue,HYTYME B&B
Adult Social Care,Adlt u65 Learning Disabilities,LD Residential Care External,Third Party Payments,Private Contractors,Miscellaneous Agency Services,10/5/2011,131,"2,087.64",Revenue,LINKAGE COMMUNITY TR.LONG-STAY
Adult Social Care,Adlt u65 Learning Disabilities,LD Residential Care External,Customer and client receipts,Charges,Miscellaneous Charges X,10/3/2011,132,-885.00,Revenue,THE LODGE TRUST
Adult Social Care,Adlt u65 Learning Disabilities,LD Residential Care External,Third Party Payments,Private Contractors,Miscellaneous Agency Services,10/3/2011,133,"11,991.84",Revenue,THE LODGE TRUST
Adult Social Care,Other Adult Services,MH Residential Care Ext- SM&A,Third Party Payments,Private Contractors,Miscellaneous Agency Services,10/3/2011,134,561.90,Revenue,MOUNT CARMEL HOSTEL
Adult Social Care,Other Adult Services,MH Residential Care Ext- SM&A,Third Party Payments,Private Contractors,Miscellaneous Agency Services,10/3/2011,135,"2,548.22",Revenue,MOUNT CARMEL HOSTEL
Adult Social Care,Older People 65&Over inc OP-MH,OP East - Nursing Care,Third Party Payments,Private Contractors,Miscellaneous Agency Services,10/5/2011,136,"2,420.24",Revenue,NIGHTINGALE HOUSE
Adult Social Care,Adlt u65 Learning Disabilities,LD Residential Care External,Third Party Payments,Private Contractors,Miscellaneous Agency Services,10/3/2011,137,"10,995.68",Revenue,AIMS CARE PARTNERSHIP
Adult Social Care,Adult u65 Mental Health Needs,MH Adult Placement Cont-Wim,Third Party Payments,Private Contractors,Accommodation Based Support,10/3/2011,138,"2,000.00",Revenue,REDACTED
Adult Social Care,Adult u65 Mental Health Needs,MH Adult PlacementCont-MitWest,Third Party Payments,Private Contractors,Accommodation Based Support,10/3/2011,139,"1,000.00",Revenue,REDACTED
Adult Social Care,Adult u65 Mental Health Needs,MH Res Care Ext- Mitcham West,Third Party Payments,Private Contractors,Miscellaneous Agency Services,10/3/2011,140,"2,142.77",Revenue,BIBBY FACTORS SLOUGH LTD
Childrens & Education Services,Family Support Services,CS Referral & Assessment Sec17,Transfer Payments,Adult Soc Servs Clients,Childr Act 1989 S17,10/3/2011,141,525.00,Revenue,THE NEW LEVEL OF LIFE
Childrens & Education Services,Family Support Services,CS R&AssessDiscretionary Pymts,Third Party Payments,Private Contractors,Miscellaneous Agency Services,10/3/2011,142,750.00,Revenue,THE NEW LEVEL OF LIFE
Childrens & Education Services,Children's Services - C & S W,CL IndepAssess Expert Witness,Third Party Payments,Private Contractors,Miscellaneous Agency Services,10/3/2011,143,540.00,Revenue,TRIMEGA LABORATORIES LTD
Adult Social Care,Other Adult Services,Fixed & Variable Client Paymen,Third Party Payments,Private Contractors,Miscellaneous Agency Services,10/3/2011,144,"38,422.85",Revenue,ABILITY HOUSING ASSOCIATION
Adult Social Care,Other Adult Services,Fixed & Variable Client Paymen,Third Party Payments,Private Contractors,Miscellaneous Agency Services,10/3/2011,145,"3,672.78",Revenue,ANCHOR SP PAYMENT FROM SEP'03
Adult Social Care,Other Adult Services,Fixed & Variable Client Paymen,Third Party Payments,Private Contractors,Miscellaneous Agency Services,10/3/2011,146,"1,522.50",Revenue,ASIAN ELDERLY GROUP OF MERTON
Adult Social Care,Other Adult Services,Fixed & Variable Client Paymen,Third Party Payments,Private Contractors,Miscellaneous Agency Services,10/3/2011,147,"1,843.25",Revenue,CENTRAL & CECIL HOUSING TRUST
Adult Social Care,Other Adult Services,Fixed & Variable Client Paymen,Third Party Payments,Private Contractors,Miscellaneous Agency Services,10/3/2011,148,"10,150.58",Revenue,EQUINOX
Adult Social Care,Other Adult Services,Fixed & Variable Client Paymen,Third Party Payments,Private Contractors,Miscellaneous Agency Services,10/3/2011,149,"14,308.35",Revenue,FAMILY HOUSING ASSOCIATION
Adult Social Care,Other Adult Services,Fixed & Variable Client Paymen,Third Party Payments,Private Contractors,Miscellaneous Agency Services,10/3/2011,150,"21,671.75",Revenue,GRENFELL HOUSING ASSOCIATION
Adult Social Care,Other Adult Services,Fixed & Variable Client Paymen,Third Party Payments,Private Contractors,Miscellaneous Agency Services,10/3/2011,151,"1,366.55",Revenue,HANOVER HOUSING ASSOCIATION
Adult Social Care,Other Adult Services,Fixed & Variable Client Paymen,Third Party Payments,Private Contractors,Miscellaneous Agency Services,10/3/2011,152,"10,749.99",Revenue,HESTIA HOUSING AND SUPPORT
Adult Social Care,Other Adult Services,Fixed & Variable Client Paymen,Third Party Payments,Private Contractors,Miscellaneous Agency Services,10/3/2011,153,"1,898.20",Revenue,AMICUS HORIZON
Adult Social Care,Other Adult Services,Fixed & Variable Client Paymen,Third Party Payments,Private Contractors,Miscellaneous Agency Services,10/3/2011,154,"1,218.05",Revenue,HOUSING21
Adult Social Care,Other Adult Services,Fixed & Variable Client Paymen,Third Party Payments,Private Contractors,Miscellaneous Agency Services,10/3/2011,155,536.90,Revenue,KINGSTON CHURCHES HSG ASSOC
Adult Social Care,Other Adult Services,Fixed & Variable Client Paymen,Third Party Payments,Private Contractors,Miscellaneous Agency Services,10/3/2011,156,600.42,Revenue,KINGSTON CHURCHES ACTION ON HO
Adult Social Care,Other Adult Services,Fixed & Variable Client Paymen,Third Party Payments,Private Contractors,Miscellaneous Agency Services,10/3/2011,157,"8,589.60",Revenue,MERTON REFUGE
Adult Social Care,Other Adult Services,Fixed & Variable Client Paymen,Third Party Payments,Private Contractors,Miscellaneous Agency Services,10/3/2011,158,"6,021.87",Revenue,MERTON PRIORY HOMES
Adult Social Care,Other Adult Services,Fixed & Variable Client Paymen,Third Party Payments,Private Contractors,Miscellaneous Agency Services,10/3/2011,159,"1,991.82",Revenue,MERTON PRIORY HOMES
Adult Social Care,Other Adult Services,Fixed & Variable Client Paymen,Third Party Payments,Private Contractors,Miscellaneous Agency Services,10/3/2011,160,"6,899.10",Revenue,METROPOLITAN SUPPORT TRUST
Adult Social Care,Other Adult Services,Fixed & Variable Client Paymen,Third Party Payments,Private Contractors,Miscellaneous Agency Services,10/3/2011,161,505.20,Revenue,MILLAT ASIAN HOUSING ASSOC
Adult Social Care,Other Adult Services,Fixed & Variable Client Paymen,Third Party Payments,Private Contractors,Miscellaneous Agency Services,10/3/2011,162,"6,286.79",Revenue,NOTTING HILL HOUSING
Adult Social Care,Other Adult Services,Fixed & Variable Client Paymen,Third Party Payments,Private Contractors,Miscellaneous Agency Services,10/3/2011,163,"5,682.96",Revenue,SANCTUARY CARE
Adult Social Care,Other Adult Services,Fixed & Variable Client Paymen,Third Party Payments,Private Contractors,Miscellaneous Agency Services,10/3/2011,164,"8,781.99",Revenue,SERVITE HOUSES
Adult Social Care,Other Adult Services,Fixed & Variable Client Paymen,Third Party Payments,Private Contractors,Miscellaneous Agency Services,10/3/2011,165,"26,886.55",Revenue,COMFORT CARE SERVICES (UK) LTD
Adult Social Care,Other Adult Services,Fixed & Variable Client Paymen,Third Party Payments,Private Contractors,Miscellaneous Agency Services,10/3/2011,166,620.50,Revenue,SHAFTESBURY HOUSING ASSOC.
Adult Social Care,Other Adult Services,Fixed & Variable Client Paymen,Third Party Payments,Private Contractors,Miscellaneous Agency Services,10/3/2011,167,"12,060.41",Revenue,SPEAR
Adult Social Care,Other Adult Services,Fixed & Variable Client Paymen,Third Party Payments,Private Contractors,Miscellaneous Agency Services,10/3/2011,168,"2,095.40",Revenue,REDACTED
Adult Social Care,Other Adult Services,Fixed & Variable Client Paymen,Third Party Payments,Private Contractors,Miscellaneous Agency Services,10/3/2011,169,709.45,Revenue,THRESHOLD CENTRE LTD
Adult Social Care,Other Adult Services,Fixed & Variable Client Paymen,Third Party Payments,Private Contractors,Miscellaneous Agency Services,10/3/2011,170,"17,468.54",Revenue,WANDLE HOUSING ASSOCIATION LTD
Adult Social Care,Other Adult Services,Fixed & Variable Client Paymen,Third Party Payments,Private Contractors,Miscellaneous Agency Services,10/3/2011,171,"33,899.28",Revenue,WIMBLEDON & DISTRICT YMCA
Adult Social Care,Adlt u65 Learning Disabilities,LD Other Services,Third Party Payments,Private Contractors,Miscellaneous Agency Services,10/4/2011,172,524.00,Revenue,TOTAL PROPERTY SERVICES
Adult Social Care,Adlt u65 Learning Disabilities,LD Home Care External,Third Party Payments,Private Contractors,Miscellaneous Agency Services,10/4/2011,173,"7,649.70",Revenue,COMMUNITY HOME CARE PROVIDER
Adult Social Care,Adult u65 Phys/Sensory Impair,PD EAST TEAM-Homecare,Third Party Payments,Private Contractors,Miscellaneous Agency Services,10/4/2011,174,573.85,Revenue,COMMUNITY HOME CARE PROVIDER
Adult Social Care,Older People 65&Over inc OP-MH,OP East - Home Care External,Third Party Payments,Private Contractors,Miscellaneous Agency Services,10/4/2011,175,665.40,Revenue,COMMUNITY HOME CARE PROVIDER
Adult Social Care,Older People 65&Over inc OP-MH,OP East - Carer Services,Third Party Payments,Private Contractors,Miscellaneous Agency Services,10/4/2011,176,670.20,Revenue,COMMUNITY HOME CARE PROVIDER
Adult Social Care,Older People 65&Over inc OP-MH,OP East - Daycare,Third Party Payments,Private Contractors,Miscellaneous Agency Services,10/4/2011,177,740.62,Revenue,ENTERPRISE CARE SUPPORT LTD
Adult Social Care,Older People 65&Over inc OP-MH,OP West - Daycare,Third Party Payments,Private Contractors,Miscellaneous Agency Services,10/4/2011,178,740.62,Revenue,ENTERPRISE CARE SUPPORT LTD
Adult Social Care,Older People 65&Over inc OP-MH,OP East - Daycare,Third Party Payments,Private Contractors,Miscellaneous Agency Services,10/4/2011,179,740.62,Revenue,ENTERPRISE CARE SUPPORT LTD
Adult Social Care,Older People 65&Over inc OP-MH,OP West - Daycare,Third Party Payments,Private Contractors,Miscellaneous Agency Services,10/4/2011,180,740.62,Revenue,ENTERPRISE CARE SUPPORT LTD
Adult Social Care,Older People 65&Over inc OP-MH,OP East - Daycare,Third Party Payments,Private Contractors,Miscellaneous Agency Services,10/4/2011,181,740.62,Revenue,ENTERPRISE CARE SUPPORT LTD
Adult Social Care,Older People 65&Over inc OP-MH,OP East - Carer Services,Third Party Payments,Private Contractors,Miscellaneous Agency Services,10/4/2011,182,"1,155.44",Revenue,HFH HOMECARE LTD
Adult Social Care,Adult u65 Phys/Sensory Impair,PD EAST TEAM-Homecare,Third Party Payments,Private Contractors,Miscellaneous Agency Services,10/4/2011,183,"1,652.48",Revenue,HFH HOMECARE LTD
Adult Social Care,Older People 65&Over inc OP-MH,OP West - Home Care External,Third Party Payments,Private Contractors,Miscellaneous Agency Services,10/4/2011,184,"2,659.82",Revenue,HFH HOMECARE LTD
Adult Social Care,Older People 65&Over inc OP-MH,OP East - Home Care External,Third Party Payments,Private Contractors,Miscellaneous Agency Services,10/4/2011,185,"3,715.35",Revenue,HFH HOMECARE LTD
Adult Social Care,Adult u65 Mental Health Needs,HS Adult Placements,Third Party Payments,Private Contractors,Accommodation Based Support,10/5/2011,186,"1,121.84",Revenue,REDACTED
Adult Social Care,Older People 65&Over inc OP-MH,OP East - Residential Care Ext,Third Party Payments,Private Contractors,Miscellaneous Agency Services,10/4/2011,187,"2,549.42",Revenue,SOUTHERN CROSS HEALTHCARE LTD
Adult Social Care,Adult u65 Mental Health Needs,HS Adult Placements,Third Party Payments,Private Contractors,Accommodation Based Support,10/4/2011,188,"2,084.64",Revenue,REDACTED
Adult Social Care,Adult u65 Mental Health Needs,MH ResidentialCare Ext - Wim,Third Party Payments,Private Contractors,Miscellaneous Agency Services,10/4/2011,189,"1,500.15",Revenue,ABBEY HOUSE RESIDENTIAL HOMES
Adult Social Care,Adult u65 Phys/Sensory Impair,PD WEST TEAM-Residential Care,Third Party Payments,Private Contractors,Miscellaneous Agency Services,10/4/2011,190,"3,310.72",Revenue,ABBEY HOUSE RESIDENTIAL HOMES
Adult Social Care,Older People 65&Over inc OP-MH,OP West - Residential Care Ext,Third Party Payments,Private Contractors,Miscellaneous Agency Services,10/4/2011,191,"3,434.68",Revenue,ABBEY HOUSE RESIDENTIAL HOMES
Adult Social Care,Adult u65 Mental Health Needs,MH ResidentialCare Ext-Morden,Third Party Payments,Private Contractors,Miscellaneous Agency Services,10/4/2011,192,"4,200.00",Revenue,ABBEY HOUSE RESIDENTIAL HOMES
Adult Social Care,Older People 65&Over inc OP-MH,OP Hosp - Residential Care Ext,Third Party Payments,Private Contractors,Miscellaneous Agency Services,10/4/2011,193,"4,400.00",Revenue,ABBEY HOUSE RESIDENTIAL HOMES
Adult Social Care,Older People 65&Over inc OP-MH,OP East - Nursing Care,Third Party Payments,Private Contractors,Miscellaneous Agency Services,10/4/2011,194,"2,714.70",Revenue,CARE UK
Adult Social Care,Older People 65&Over inc OP-MH,OP West - Residential Care Ext,Third Party Payments,Private Contractors,Miscellaneous Agency Services,10/12/2011,195,"1,960.00",Revenue,CLOYDA LTD
Adult Social Care,Older People 65&Over inc OP-MH,OP West - Residential Care Ext,Third Party Payments,Private Contractors,Miscellaneous Agency Services,10/12/2011,196,"1,960.00",Revenue,CLOYDA LTD
Adult Social Care,Older People 65&Over inc OP-MH,OP Hosp - Residential Care Ext,Third Party Payments,Private Contractors,Miscellaneous Agency Services,10/12/2011,197,"1,768.88",Revenue,CLOYDA LTD
Adult Social Care,Older People 65&Over inc OP-MH,OP Hosp - Residential Care Ext,Third Party Payments,Private Contractors,Miscellaneous Agency Services,10/12/2011,198,"1,812.40",Revenue,CLOYDA LTD
Adult Social Care,Other Adult Services,MH Residential Care Ext- SM&A,Third Party Payments,Private Contractors,Miscellaneous Agency Services,10/4/2011,199,"2,489.71",Revenue,CRANSTOUN DRUG SERVICES
Adult Social Care,Older People 65&Over inc OP-MH,OP Hosp - Nursing Care,Third Party Payments,Private Contractors,Miscellaneous Agency Services,10/4/2011,200,"2,402.86",Revenue,ST. DOMINIC'S NURSING HOME
Adult Social Care,Adult u65 Phys/Sensory Impair,PD EAST TEAM-Nursing,Third Party Payments,Private Contractors,Miscellaneous Agency Services,10/4/2011,201,"3,800.00",Revenue,QUEEN ALEXANDRA HOSPITAL HOME
Adult Social Care,Adlt u65 Learning Disabilities,LD Residential Care External,Third Party Payments,Private Contractors,Miscellaneous Agency Services,10/4/2011,202,"7,957.60",Revenue,SOLAR CARE GROUP LTD - ROBINIA
Adult Social Care,Older People 65&Over inc OP-MH,OP Mitcham-Residential CareExt,Third Party Payments,Private Contractors,Miscellaneous Agency Services,10/4/2011,203,"1,878.52",Revenue,SOUTHERN CROSS HEALTHCARE LTD
Adult Social Care,Older People 65&Over inc OP-MH,OP West - Residential Care Ext,Third Party Payments,Private Contractors,Miscellaneous Agency Services,10/4/2011,204,"3,757.04",Revenue,SOUTHERN CROSS HEALTHCARE LTD
Adult Social Care,Older People 65&Over inc OP-MH,OP Hosp - Residential Care Ext,Third Party Payments,Private Contractors,Miscellaneous Agency Services,10/4/2011,205,"5,635.56",Revenue,SOUTHERN CROSS HEALTHCARE LTD
Adult Social Care,Older People 65&Over inc OP-MH,OP East - Residential Care Ext,Third Party Payments,Private Contractors,Miscellaneous Agency Services,10/4/2011,206,"22,542.24",Revenue,SOUTHERN CROSS HEALTHCARE LTD
Adult Social Care,Older People 65&Over inc OP-MH,OP Mitcham-Residential CareExt,Third Party Payments,Private Contractors,Miscellaneous Agency Services,10/4/2011,207,"1,878.52",Revenue,SOUTHERN CROSS HEALTHCARE LTD
Adult Social Care,Older People 65&Over inc OP-MH,OP West - Residential Care Ext,Third Party Payments,Private Contractors,Miscellaneous Agency Services,10/4/2011,208,"3,757.04",Revenue,SOUTHERN CROSS HEALTHCARE LTD
Adult Social Care,Older People 65&Over inc OP-MH,OP Hosp - Residential Care Ext,Third Party Payments,Private Contractors,Miscellaneous Agency Services,10/4/2011,209,"5,635.56",Revenue,SOUTHERN CROSS HEALTHCARE LTD
Adult Social Care,Older People 65&Over inc OP-MH,OP East - Residential Care Ext,Third Party Payments,Private Contractors,Miscellaneous Agency Services,10/4/2011,210,"22,542.24",Revenue,SOUTHERN CROSS HEALTHCARE LTD
Adult Social Care,Older People 65&Over inc OP-MH,OP Mitcham-Residential CareExt,Third Party Payments,Private Contractors,Miscellaneous Agency Services,10/4/2011,211,"1,878.52",Revenue,SOUTHERN CROSS HEALTHCARE LTD
Adult Social Care,Older People 65&Over inc OP-MH,OP West - Residential Care Ext,Third Party Payments,Private Contractors,Miscellaneous Agency Services,10/4/2011,212,"3,757.04",Revenue,SOUTHERN CROSS HEALTHCARE LTD
Adult Social Care,Older People 65&Over inc OP-MH,OP Hosp - Residential Care Ext,Third Party Payments,Private Contractors,Miscellaneous Agency Services,10/4/2011,213,"5,635.56",Revenue,SOUTHERN CROSS HEALTHCARE LTD
Adult Social Care,Older People 65&Over inc OP-MH,OP East - Residential Care Ext,Third Party Payments,Private Contractors,Miscellaneous Agency Services,10/4/2011,214,"22,139.70",Revenue,SOUTHERN CROSS HEALTHCARE LTD
Adult Social Care,Older People 65&Over inc OP-MH,OP Hosp - Residential Care Ext,Third Party Payments,Private Contractors,Miscellaneous Agency Services,10/4/2011,215,"1,878.52",Revenue,SOUTHERN CROSS HEALTHCARE LTD
Adult Social Care,Older People 65&Over inc OP-MH,OP West - Residential Care Ext,Third Party Payments,Private Contractors,Miscellaneous Agency Services,10/4/2011,216,"1,878.52",Revenue,SOUTHERN CROSS HEALTHCARE LTD
Adult Social Care,Older People 65&Over inc OP-MH,OP East - Residential Care Ext,Third Party Payments,Private Contractors,Miscellaneous Agency Services,10/4/2011,217,"3,086.14",Revenue,SOUTHERN CROSS HEALTHCARE LTD
Adult Social Care,Older People 65&Over inc OP-MH,OP Mitcham-Residential CareExt,Third Party Payments,Private Contractors,Miscellaneous Agency Services,10/4/2011,218,"1,878.52",Revenue,SOUTHERN CROSS HEALTHCARE LTD
Adult Social Care,Older People 65&Over inc OP-MH,OP West - Residential Care Ext,Third Party Payments,Private Contractors,Miscellaneous Agency Services,10/4/2011,219,"3,757.04",Revenue,SOUTHERN CROSS HEALTHCARE LTD
Adult Social Care,Older People 65&Over inc OP-MH,OP Hosp - Residential Care Ext,Third Party Payments,Private Contractors,Miscellaneous Agency Services,10/4/2011,220,"5,635.56",Revenue,SOUTHERN CROSS HEALTHCARE LTD
Adult Social Care,Older People 65&Over inc OP-MH,OP East - Residential Care Ext,Third Party Payments,Private Contractors,Miscellaneous Agency Services,10/4/2011,221,"22,542.24",Revenue,SOUTHERN CROSS HEALTHCARE LTD
Adult Social Care,Older People 65&Over inc OP-MH,OP Hosp - Nursing Care,Third Party Payments,Private Contractors,Miscellaneous Agency Services,10/4/2011,222,"2,341.84",Revenue,SUTTON COURT CARE CENTRE
Adult Social Care,Older People 65&Over inc OP-MH,OP East - Nursing Care,Third Party Payments,Private Contractors,Miscellaneous Agency Services,10/4/2011,223,"2,341.84",Revenue,SUTTON COURT CARE CENTRE
Adult Social Care,Older People 65&Over inc OP-MH,OP West - Residential Care Ext,Third Party Payments,Private Contractors,Miscellaneous Agency Services,10/5/2011,224,"1,812.40",Revenue,SWEET HOMES LTD
Adult Social Care,Older People 65&Over inc OP-MH,OP West - Residential Care Ext,Third Party Payments,Private Contractors,Miscellaneous Agency Services,10/5/2011,225,"1,812.40",Revenue,SWEET HOMES LTD
Adult Social Care,Older People 65&Over inc OP-MH,OP Hosp - Residential Care Ext,Third Party Payments,Private Contractors,Miscellaneous Agency Services,10/5/2011,226,"1,812.40",Revenue,SWEET HOMES LTD
Adult Social Care,Older People 65&Over inc OP-MH,OP Hosp - Nursing Care,Third Party Payments,Private Contractors,Miscellaneous Agency Services,10/5/2011,227,"2,350.80",Revenue,SWEET HOMES LTD
Adult Social Care,Asylum seekers,AS Child - Res Care (Grant),Third Party Payments,Private Contractors,Miscellaneous Agency Services,10/4/2011,228,"1,000.00",Revenue,LIVINGSTONE SUPPORTED HOUSING
Childrens & Education Services,Other Ch's & Family Services,CL Leaving Care/Supp Lodgings,Third Party Payments,Private Contractors,Miscellaneous Agency Services,10/4/2011,229,800.00,Revenue,LIVINGSTONE SUPPORTED HOUSING
Childrens & Education Services,Other Ch's & Family Services,CL Leaving Care/Supp Lodgings,Third Party Payments,Private Contractors,Supported Lodgings,10/4/2011,230,600.00,Revenue,REDACTED
Childrens & Education Services,Other Ch's & Family Services,CL Leaving Care/Supp Lodgings,Third Party Payments,Private Contractors,Supported Lodgings,10/4/2011,231,600.00,Revenue,REDACTED
Childrens & Education Services,Children Looked After (24hrs+),CL Fostering Services,Supplies and Services,Services,Task Based Fostering,10/4/2011,232,"1,560.88",Revenue,REDACTED
Childrens & Education Services,Children Looked After (24hrs+),CL Fostering Services,Supplies and Services,Services,Task Based Fostering,10/4/2011,233,"1,560.88",Revenue,REDACTED
Childrens & Education Services,Children Looked After (24hrs+),CL Fostering Services,Supplies and Services,Services,Task Based Fostering,10/4/2011,234,"1,502.66",Revenue,REDACTED
Childrens & Education Services,Children Looked After (24hrs+),CL Fostering Services,Supplies and Services,Services,Task Based Fostering,10/4/2011,235,739.20,Revenue,REDACTED
Childrens & Education Services,Children Looked After (24hrs+),CL Fostering Services,Supplies and Services,Services,Task Based Fostering,10/4/2011,236,"1,519.64",Revenue,REDACTED
Childrens & Education Services,Children Looked After (24hrs+),CL Fostering Services,Supplies and Services,Services,Task Based Fostering,10/4/2011,237,"2,459.64",Revenue,REDACTED
Childrens & Education Services,Children Looked After (24hrs+),CL Fostering Services,Supplies and Services,Services,Task Based Fostering,10/4/2011,238,"1,543.90",Revenue,REDACTED
Childrens & Education Services,Children Looked After (24hrs+),CL Fostering Services,Supplies and Services,Services,Task Based Fostering,10/4/2011,239,"1,526.92",Revenue,REDACTED
Childrens & Education Services,Children Looked After (24hrs+),CL Fostering Services,Supplies and Services,Services,Task Based Fostering,10/4/2011,240,"1,560.88",Revenue,REDACTED
Childrens & Education Services,Children Looked After (24hrs+),CL Fostering Services,Supplies and Services,Services,Task Based Fostering,10/4/2011,241,"2,324.34",Revenue,REDACTED
Childrens & Education Services,Children Looked After (24hrs+),CL Fostering Services,Supplies and Services,Services,Task Based Fostering,10/4/2011,242,"2,283.10",Revenue,REDACTED
Childrens & Education Services,Children Looked After (24hrs+),CL Fostering Services,Supplies and Services,Services,Task Based Fostering,10/4/2011,243,763.46,Revenue,REDACTED
Childrens & Education Services,Children Looked After (24hrs+),CL Fostering Services,Supplies and Services,Services,Task Based Fostering,10/4/2011,244,"2,307.36",Revenue,REDACTED
Childrens & Education Services,Children Looked After (24hrs+),CL Fostering Services,Supplies and Services,Services,Task Based Fostering,10/4/2011,245,"1,560.88",Revenue,REDACTED
Childrens & Education Services,Children Looked After (24hrs+),CL Fostering Services,Supplies and Services,Services,Task Based Fostering,10/4/2011,246,"2,283.10",Revenue,REDACTED
Childrens & Education Services,Children Looked After (24hrs+),CL Fostering Services,Supplies and Services,Services,Task Based Fostering,10/4/2011,247,739.20,Revenue,REDACTED
Childrens & Education Services,Children Looked After (24hrs+),CL Fostering Services,Supplies and Services,Services,Task Based Fostering,10/4/2011,248,780.44,Revenue,REDACTED
Childrens & Education Services,Children Looked After (24hrs+),CL Fostering Services,Supplies and Services,Services,Task Based Fostering,10/4/2011,249,"1,543.90",Revenue,REDACTED
Childrens & Education Services,Children Looked After (24hrs+),CL Fostering Services,Supplies and Services,Services,Task Based Fostering,10/4/2011,250,"1,478.40",Revenue,REDACTED
Childrens & Education Services,Children Looked After (24hrs+),CL Fostering Services,Supplies and Services,Services,Task Based Fostering,10/4/2011,251,780.44,Revenue,REDACTED
Childrens & Education Services,Children Looked After (24hrs+),CL Fostering Services,Supplies and Services,Services,Task Based Fostering,10/4/2011,252,"2,241.86",Revenue,REDACTED
Childrens & Education Services,Children Looked After (24hrs+),CL Fostering Services,Supplies and Services,Services,Task Based Fostering,10/4/2011,253,"1,478.40",Revenue,REDACTED
Childrens & Education Services,Children Looked After (24hrs+),CL Fostering Services,Supplies and Services,Services,Task Based Fostering,10/4/2011,254,"1,560.88",Revenue,REDACTED
Childrens & Education Services,Children Looked After (24hrs+),CL Fostering Services,Supplies and Services,Services,Task Based Fostering,10/4/2011,255,739.20,Revenue,REDACTED
Childrens & Education Services,Children Looked After (24hrs+),CL Fostering Services,Supplies and Services,Services,Task Based Fostering,10/4/2011,256,"1,502.66",Revenue,REDACTED
Childrens & Education Services,Children Looked After (24hrs+),CL Fostering Services,Supplies and Services,Services,Task Based Fostering,10/4/2011,257,739.20,Revenue,REDACTED
Adult Social Care,Adult u65 Phys/Sensory Impair,PD EAST TEAM-Nursing,Third Party Payments,Private Contractors,Miscellaneous Agency Services,10/5/2011,258,"5,800.00",Revenue,BUPA CARE HOMES
Adult Social Care,Older People 65&Over inc OP-MH,OP East - Nursing Care,Third Party Payments,Private Contractors,Miscellaneous Agency Services,10/5/2011,259,"2,074.68",Revenue,BUPA CARE HOMES
Adult Social Care,Adult u65 Mental Health Needs,MH Res Care Ext- Mitcham West,Third Party Payments,Private Contractors,Miscellaneous Agency Services,10/5/2011,260,"5,681.56",Revenue,COMMUNITY CARE SOLUTIONS LTD
Adult Social Care,Adult u65 Phys/Sensory Impair,PD EAST TEAM-Residential,Third Party Payments,Private Contractors,Miscellaneous Agency Services,10/5/2011,261,"4,226.28",Revenue,THE DISABILITIES TRUST
Adult Social Care,Older People 65&Over inc OP-MH,OP East - Residential Care Ext,Third Party Payments,Private Contractors,Miscellaneous Agency Services,10/5/2011,262,"1,692.40",Revenue,GENESIS CARE HOME
Adult Social Care,Adlt u65 Learning Disabilities,LD Residential Care External,Third Party Payments,Private Contractors,Miscellaneous Agency Services,10/12/2011,263,"2,087.64",Revenue,LINKAGE COMMUNITY TR.LONG-STAY
Adult Social Care,Older People 65&Over inc OP-MH,OP Hosp - Residential Care Ext,Third Party Payments,Private Contractors,Miscellaneous Agency Services,10/5/2011,264,"-12,769.45",Revenue,LINK HOUSE
Adult Social Care,Older People 65&Over inc OP-MH,OP West - Residential Care Ext,Customer and client receipts,Charges,Miscellaneous Charges X,10/5/2011,265,"-1,113.60",Revenue,LINK HOUSE
Adult Social Care,Older People 65&Over inc OP-MH,OP West - Nursing Care,Customer and client receipts,Charges,Bd&Acc-contrib coll by home X,10/5/2011,266,-635.68,Revenue,LINK HOUSE
Adult Social Care,Older People 65&Over inc OP-MH,OP East - Residential Care Ext,Third Party Payments,Private Contractors,Miscellaneous Agency Services,10/5/2011,267,"7,730.57",Revenue,LINK HOUSE
Adult Social Care,Older People 65&Over inc OP-MH,OP East - Nursing Care,Third Party Payments,Private Contractors,Miscellaneous Agency Services,10/5/2011,268,"9,846.83",Revenue,LINK HOUSE
Adult Social Care,Older People 65&Over inc OP-MH,OP West - Nursing Care,Third Party Payments,Private Contractors,Miscellaneous Agency Services,10/5/2011,269,"20,878.91",Revenue,LINK HOUSE
Adult Social Care,Older People 65&Over inc OP-MH,OP West - Residential Care Ext,Third Party Payments,Private Contractors,Miscellaneous Agency Services,10/5/2011,270,"58,521.60",Revenue,LINK HOUSE
Adult Social Care,Adlt u65 Learning Disabilities,LD Residential Care External,Third Party Payments,Private Contractors,Miscellaneous Agency Services,10/5/2011,271,"3,182.08",Revenue,ODYSSEY CARE SOLUTIONS
Adult Social Care,Adlt u65 Learning Disabilities,LD Residential Care External,Third Party Payments,Private Contractors,Miscellaneous Agency Services,10/5/2011,272,"4,984.60",Revenue,ODYSSEY CARE SOLUTIONS
Adult Social Care,Adult u65 Phys/Sensory Impair,PD EAST TEAM-Residential,Third Party Payments,Private Contractors,Miscellaneous Agency Services,10/5/2011,273,"8,384.84",Revenue,RNID
Adult Social Care,Older People 65&Over inc OP-MH,OP West - Residential Care Ext,Third Party Payments,Private Contractors,Miscellaneous Agency Services,10/5/2011,274,"1,878.52",Revenue,SOUTHERN CROSS HEALTHCARE LTD
Adult Social Care,Older People 65&Over inc OP-MH,OP Hosp - Residential Care Ext,Third Party Payments,Private Contractors,Miscellaneous Agency Services,10/5/2011,275,"2,817.78",Revenue,SOUTHERN CROSS HEALTHCARE LTD
Adult Social Care,Older People 65&Over inc OP-MH,OP East - Residential Care Ext,Third Party Payments,Private Contractors,Miscellaneous Agency Services,10/5/2011,276,"3,555.77",Revenue,SOUTHERN CROSS HEALTHCARE LTD
Adult Social Care,Adlt u65 Learning Disabilities,LD Residential Care External,Third Party Payments,Private Contractors,Miscellaneous Agency Services,10/5/2011,277,"18,250.00",Revenue,ST LUKE'S HOSPITAL- OLD LEIGH
Adult Social Care,Adlt u65 Learning Disabilities,LD Residential Care External,Third Party Payments,Private Contractors,Miscellaneous Agency Services,10/5/2011,278,"29,881.60",Revenue,ST LUKE'S HOSPITAL- OLD LEIGH
Adult Social Care,Older People 65&Over inc OP-MH,OP Hosp - Nursing Care,Third Party Payments,Private Contractors,Miscellaneous Agency Services,10/5/2011,279,"2,341.84",Revenue,SUTTON COURT CARE CENTRE
Adult Social Care,Older People 65&Over inc OP-MH,OP Hosp - Nursing Care,Third Party Payments,Private Contractors,Miscellaneous Agency Services,10/5/2011,280,"2,341.84",Revenue,SUTTON COURT CARE CENTRE
Adult Social Care,Older People 65&Over inc OP-MH,OP East - Nursing Care,Third Party Payments,Private Contractors,Miscellaneous Agency Services,10/5/2011,281,"2,552.88",Revenue,SUTTON COURT CARE CENTRE
Adult Social Care,Older People 65&Over inc OP-MH,OP Hosp - Nursing Care,Third Party Payments,Private Contractors,Miscellaneous Agency Services,10/5/2011,282,"2,341.84",Revenue,SUTTON COURT CARE CENTRE
Adult Social Care,Older People 65&Over inc OP-MH,OP Hosp - Nursing Care,Third Party Payments,Private Contractors,Miscellaneous Agency Services,10/5/2011,283,"2,341.84",Revenue,SUTTON COURT CARE CENTRE
Adult Social Care,Older People 65&Over inc OP-MH,OP Hosp - Nursing Care,Third Party Payments,Private Contractors,Miscellaneous Agency Services,10/5/2011,284,"2,341.84",Revenue,SUTTON COURT CARE CENTRE
Adult Social Care,Older People 65&Over inc OP-MH,OP Hosp - Residential Care Ext,Third Party Payments,Private Contractors,Miscellaneous Agency Services,10/5/2011,285,"1,812.00",Revenue,SWEET HOMES LTD
Childrens & Education Services,Other Ch's & Family Services,CL Adoption Allowances,Transfer Payments,Adult Soc Servs Clients,Adodption Allowances,10/5/2011,286,562.88,Revenue,REDACTED
Childrens & Education Services,Other Ch's & Family Services,CL Adoption Allowances,Transfer Payments,Adult Soc Servs Clients,Adodption Allowances,10/5/2011,287,607.08,Revenue,REDACTED
Childrens & Education Services,Other Ch's & Family Services,CL Adoption Allowances,Transfer Payments,Adult Soc Servs Clients,Adodption Allowances,10/5/2011,288,912.40,Revenue,REDACTED
Childrens & Education Services,Family Support Services,CL Residence Orders,Supplies and Services,Grants and Subscriptions,Residence Orders,10/5/2011,289,879.02,Revenue,REDACTED
Adult Social Care,Adult u65 Phys/Sensory Impair,PD EAST TEAM-Day Care,Third Party Payments,Private Contractors,Miscellaneous Agency Services,10/5/2011,290,"1,066.40",Revenue,ACTION FOR BLIND PEOPLE
Childrens & Education Services,Other Ch's & Family Services,CL Leaving Care/Supp Lodgings,Third Party Payments,Private Contractors,Private Tenant/Landlord,10/5/2011,291,"1,661.52",Revenue,REDACTED
Adult Social Care,Adult u65 Mental Health Needs,MH Adult Placement Cont-Morden,Third Party Payments,Private Contractors,Accommodation Based Support,10/5/2011,292,-729.75,Revenue,REDACTED
Adult Social Care,Adult u65 Mental Health Needs,MH Adult Placement Cont- NRTPF,Third Party Payments,Private Contractors,Accommodation Based Support,10/5/2011,293,946.52,Revenue,REDACTED
Adult Social Care,Adult u65 Mental Health Needs,HS Adult Placements,Third Party Payments,Private Contractors,Accommodation Based Support,10/5/2011,294,"3,830.51",Revenue,REDACTED
Adult Social Care,Older People 65&Over inc OP-MH,OP East - Residential Care Ext,Third Party Payments,Private Contractors,Miscellaneous Agency Services,10/5/2011,295,"12,673.22",Revenue,LINK HOUSE
Adult Social Care,Older People 65&Over inc OP-MH,OP East - Residential Care Ext,Third Party Payments,Private Contractors,Miscellaneous Agency Services,10/5/2011,296,"1,140.41",Revenue,SOUTHERN CROSS HEALTHCARE LTD
Adult Social Care,Adlt u65 Learning Disabilities,LD Direct Payment Scheme,Third Party Payments,Private Contractors,Direct Payments,10/6/2011,297,"1,278.00",Revenue,REDACTED
Adult Social Care,Adlt u65 Learning Disabilities,LD Direct Payment Scheme,Third Party Payments,Private Contractors,Direct Payments,10/6/2011,298,"1,086.28",Revenue,REDACTED
Adult Social Care,Adlt u65 Learning Disabilities,LD Direct Payment Scheme,Third Party Payments,Private Contractors,Direct Payments,10/6/2011,299,"1,462.08",Revenue,REDACTED
Adult Social Care,Older People 65&Over inc OP-MH,OP East -Direct Payment Scheme,Third Party Payments,Private Contractors,Direct Payments,10/6/2011,300,"1,278.00",Revenue,REDACTED
Adult Social Care,Older People 65&Over inc OP-MH,OP East -Direct Payment Scheme,Third Party Payments,Private Contractors,Direct Payments,10/6/2011,301,614.20,Revenue,REDACTED
Adult Social Care,Adlt u65 Learning Disabilities,LD Direct Payment Scheme,Third Party Payments,Private Contractors,Direct Payments,10/6/2011,302,502.56,Revenue,REDACTED
Adult Social Care,Adult u65 Phys/Sensory Impair,PD WEST TEAM-Direct Payment,Third Party Payments,Private Contractors,Direct Payments,10/6/2011,303,"1,147.60",Revenue,REDACTED
Adult Social Care,Adlt u65 Learning Disabilities,LD Direct Payment Scheme,Third Party Payments,Private Contractors,Direct Payments,10/6/2011,304,724.20,Revenue,REDACTED
Adult Social Care,Adult u65 Phys/Sensory Impair,PD EAST TEAM-Direct Payment,Third Party Payments,Private Contractors,Direct Payments,10/6/2011,305,681.60,Revenue,REDACTED
Adult Social Care,Adult u65 Phys/Sensory Impair,PD EAST TEAM-Direct Payment,Third Party Payments,Private Contractors,Direct Payments,10/6/2011,306,"2,363.00",Revenue,REDACTED
Adult Social Care,Adlt u65 Learning Disabilities,LD Direct Payment Scheme,Third Party Payments,Private Contractors,Direct Payments,10/6/2011,307,852.00,Revenue,REDACTED
Adult Social Care,Older People 65&Over inc OP-MH,OP Hosp -Direct Payment Scheme,Customer and client receipts,Charges,Bd&Acc-contrib coll by home X,10/6/2011,308,-579.08,Revenue,REDACTED
Adult Social Care,Older People 65&Over inc OP-MH,OP Hosp -Direct Payment Scheme,Third Party Payments,Private Contractors,Direct Payments,10/6/2011,309,"2,515.12",Revenue,REDACTED
Adult Social Care,Adult u65 Phys/Sensory Impair,PD EAST TEAM-Direct Payment,Third Party Payments,Private Contractors,Direct Payments,10/6/2011,310,681.60,Revenue,REDACTED
Adult Social Care,Older People 65&Over inc OP-MH,OP East -Direct Payment Scheme,Third Party Payments,Private Contractors,Direct Payments,10/6/2011,311,653.88,Revenue,REDACTED
Adult Social Care,Older People 65&Over inc OP-MH,OP East -Direct Payment Scheme,Third Party Payments,Private Contractors,Direct Payments,10/6/2011,312,"1,533.60",Revenue,REDACTED
Adult Social Care,Older People 65&Over inc OP-MH,OP East -Direct Payment Scheme,Third Party Payments,Private Contractors,Direct Payments,10/6/2011,313,"1,096.92",Revenue,REDACTED
Adult Social Care,Older People 65&Over inc OP-MH,OP West -Direct Payment Scheme,Third Party Payments,Private Contractors,Direct Payments,10/6/2011,314,"1,278.00",Revenue,REDACTED
Adult Social Care,Adlt u65 Learning Disabilities,LD Direct Payment Scheme,Third Party Payments,Private Contractors,Direct Payments,10/6/2011,315,"1,222.40",Revenue,REDACTED
Adult Social Care,Adlt u65 Learning Disabilities,LD Direct Payment Scheme,Third Party Payments,Private Contractors,Direct Payments,10/6/2011,316,"2,275.64",Revenue,REDACTED
Adult Social Care,Adult u65 Phys/Sensory Impair,PD WEST TEAM-Direct Payment,Third Party Payments,Private Contractors,Direct Payments,10/6/2011,317,596.40,Revenue,REDACTED
Adult Social Care,Older People 65&Over inc OP-MH,OP West -Direct Payment Scheme,Third Party Payments,Private Contractors,Direct Payments,10/6/2011,318,603.76,Revenue,REDACTED
Adult Social Care,Adlt u65 Learning Disabilities,LD Direct Payment Scheme,Third Party Payments,Private Contractors,Direct Payments,10/6/2011,319,529.04,Revenue,REDACTED
Adult Social Care,Older People 65&Over inc OP-MH,OP West -Direct Payment Scheme,Third Party Payments,Private Contractors,Direct Payments,10/6/2011,320,695.28,Revenue,REDACTED
Adult Social Care,Adlt u65 Learning Disabilities,LD Direct Payment Scheme,Third Party Payments,Private Contractors,Direct Payments,10/6/2011,321,"1,241.72",Revenue,REDACTED
Adult Social Care,Adlt u65 Learning Disabilities,LD Direct Payment Scheme,Third Party Payments,Private Contractors,Direct Payments,10/6/2011,322,668.72,Revenue,REDACTED
Adult Social Care,Adlt u65 Learning Disabilities,LD Direct Payment Scheme,Third Party Payments,Private Contractors,Direct Payments,10/6/2011,323,"5,464.20",Revenue,REDACTED
Adult Social Care,Adlt u65 Learning Disabilities,LD Direct Payment Scheme,Third Party Payments,Private Contractors,Direct Payments,10/6/2011,324,593.88,Revenue,REDACTED
Adult Social Care,Adult u65 Phys/Sensory Impair,PD WEST TEAM-Direct Payment,Third Party Payments,Private Contractors,Direct Payments,10/6/2011,325,873.84,Revenue,REDACTED
Adult Social Care,Adlt u65 Learning Disabilities,LD Direct Payment Scheme,Third Party Payments,Private Contractors,Direct Payments,10/6/2011,326,"1,124.68",Revenue,REDACTED
Adult Social Care,Adult u65 Phys/Sensory Impair,PD WEST TEAM-Direct Payment,Third Party Payments,Private Contractors,Direct Payments,10/6/2011,327,881.60,Revenue,REDACTED
Adult Social Care,Adult u65 Phys/Sensory Impair,PD EAST TEAM-Direct Payment,Third Party Payments,Private Contractors,Direct Payments,10/6/2011,328,"2,301.80",Revenue,REDACTED
Adult Social Care,Older People 65&Over inc OP-MH,OP West -Direct Payment Scheme,Third Party Payments,Private Contractors,Direct Payments,10/6/2011,329,"2,117.68",Revenue,REDACTED
Adult Social Care,Older People 65&Over inc OP-MH,OP East -Direct Payment Scheme,Third Party Payments,Private Contractors,Direct Payments,10/6/2011,330,607.80,Revenue,REDACTED
Adult Social Care,Adult u65 Phys/Sensory Impair,PD WEST TEAM-Direct Payment,Third Party Payments,Private Contractors,Direct Payments,10/6/2011,331,"2,927.68",Revenue,REDACTED
Adult Social Care,Older People 65&Over inc OP-MH,OP Hosp -Direct Payment Scheme,Third Party Payments,Private Contractors,Direct Payments,10/6/2011,332,894.60,Revenue,REDACTED
Adult Social Care,Older People 65&Over inc OP-MH,OP West -Direct Payment Scheme,Third Party Payments,Private Contractors,Direct Payments,10/6/2011,333,"1,780.80",Revenue,REDACTED
Adult Social Care,Adult u65 Phys/Sensory Impair,PD WEST TEAM-Direct Payment,Third Party Payments,Private Contractors,Direct Payments,10/6/2011,334,792.00,Revenue,REDACTED
Adult Social Care,Adlt u65 Learning Disabilities,LD Direct Payment Scheme,Third Party Payments,Private Contractors,Direct Payments,10/6/2011,335,536.44,Revenue,REDACTED
Adult Social Care,Older People 65&Over inc OP-MH,OP East -Direct Payment Scheme,Third Party Payments,Private Contractors,Direct Payments,10/6/2011,336,724.20,Revenue,REDACTED
Adult Social Care,Adult u65 Phys/Sensory Impair,PD EAST TEAM-Direct Payment,Third Party Payments,Private Contractors,Direct Payments,10/6/2011,337,"1,150.20",Revenue,REDACTED
Adult Social Care,Adult u65 Phys/Sensory Impair,PD WEST TEAM-Direct Payment,Third Party Payments,Private Contractors,Direct Payments,10/6/2011,338,919.92,Revenue,REDACTED
Adult Social Care,Adlt u65 Learning Disabilities,LD Direct Payment Scheme,Third Party Payments,Private Contractors,Direct Payments,10/6/2011,339,566.16,Revenue,REDACTED
Adult Social Care,Older People 65&Over inc OP-MH,OP West -Direct Payment Scheme,Third Party Payments,Private Contractors,Direct Payments,10/6/2011,340,670.96,Revenue,REDACTED
Adult Social Care,Adult u65 Phys/Sensory Impair,PD WEST TEAM-Direct Payment,Third Party Payments,Private Contractors,Direct Payments,10/6/2011,341,722.92,Revenue,REDACTED
Adult Social Care,Adult u65 Phys/Sensory Impair,PD WEST TEAM-Direct Payment,Third Party Payments,Private Contractors,Direct Payments,10/6/2011,342,"1,857.84",Revenue,REDACTED
Adult Social Care,Adult u65 Phys/Sensory Impair,PD EAST TEAM-Direct Payment,Third Party Payments,Private Contractors,Direct Payments,10/6/2011,343,692.58,Revenue,REDACTED
Adult Social Care,Older People 65&Over inc OP-MH,OP West -Direct Payment Scheme,Third Party Payments,Private Contractors,Direct Payments,10/6/2011,344,"1,812.36",Revenue,REDACTED
Adult Social Care,Older People 65&Over inc OP-MH,OP East -Direct Payment Scheme,Third Party Payments,Private Contractors,Direct Payments,10/6/2011,345,"1,210.64",Revenue,REDACTED
Adult Social Care,Older People 65&Over inc OP-MH,OP West -Direct Payment Scheme,Third Party Payments,Private Contractors,Direct Payments,10/6/2011,346,691.96,Revenue,REDACTED
Adult Social Care,Older People 65&Over inc OP-MH,OP Hosp -Direct Payment Scheme,Third Party Payments,Private Contractors,Direct Payments,10/6/2011,347,"1,235.40",Revenue,REDACTED
Adult Social Care,Older People 65&Over inc OP-MH,OP East -Direct Payment Scheme,Third Party Payments,Private Contractors,Direct Payments,10/6/2011,348,769.20,Revenue,REDACTED
Adult Social Care,Older People 65&Over inc OP-MH,OP East -Direct Payment Scheme,Third Party Payments,Private Contractors,Direct Payments,10/6/2011,349,779.60,Revenue,REDACTED
Adult Social Care,Adult u65 Phys/Sensory Impair,PD EAST TEAM-Direct Payment,Third Party Payments,Private Contractors,Direct Payments,10/6/2011,350,"2,432.36",Revenue,REDACTED
Adult Social Care,Adlt u65 Learning Disabilities,LD Direct Payment Scheme,Third Party Payments,Private Contractors,Direct Payments,10/6/2011,351,595.20,Revenue,REDACTED
Adult Social Care,Older People 65&Over inc OP-MH,OP East -Direct Payment Scheme,Third Party Payments,Private Contractors,Direct Payments,10/6/2011,352,"1,740.40",Revenue,REDACTED
Adult Social Care,Adlt u65 Learning Disabilities,LD Direct Payment Scheme,Third Party Payments,Private Contractors,Direct Payments,10/6/2011,353,532.48,Revenue,REDACTED
Adult Social Care,Older People 65&Over inc OP-MH,OP West -Direct Payment Scheme,Third Party Payments,Private Contractors,Direct Payments,10/6/2011,354,555.72,Revenue,REDACTED
Adult Social Care,Older People 65&Over inc OP-MH,OP East -Direct Payment Scheme,Third Party Payments,Private Contractors,Direct Payments,10/6/2011,355,972.00,Revenue,REDACTED
Adult Social Care,Adlt u65 Learning Disabilities,LD Direct Payment Scheme,Third Party Payments,Private Contractors,Direct Payments,10/6/2011,356,"1,437.40",Revenue,REDACTED
Adult Social Care,Adult u65 Mental Health Needs,MH ResidentialCare Ext-Morden,Third Party Payments,Private Contractors,Miscellaneous Agency Services,10/7/2011,357,"1,560.00",Revenue,ALDWICK RESIDENTIAL CARE HOME
Adult Social Care,Older People 65&Over inc OP-MH,OP Hosp - Residential Care Ext,Third Party Payments,Private Contractors,Miscellaneous Agency Services,10/6/2011,358,"2,000.00",Revenue,BEECHWOOD HOUSE
Adult Social Care,Older People 65&Over inc OP-MH,OP East - Nursing Care,Third Party Payments,Private Contractors,Miscellaneous Agency Services,10/6/2011,359,"2,406.60",Revenue,BUPA CARE HOMES
Adult Social Care,Older People 65&Over inc OP-MH,OP Hosp - Residential Care Ext,Third Party Payments,Private Contractors,Miscellaneous Agency Services,10/6/2011,360,"3,787.04",Revenue,BUPA CARE HOMES
Adult Social Care,Adult u65 Phys/Sensory Impair,PD WEST TEAM-Nursing,Third Party Payments,Private Contractors,Miscellaneous Agency Services,10/6/2011,361,"6,020.00",Revenue,BUPA CARE HOMES
Adult Social Care,Older People 65&Over inc OP-MH,OP Hosp - Nursing Care,Third Party Payments,Private Contractors,Miscellaneous Agency Services,10/6/2011,362,"12,226.40",Revenue,BUPA CARE HOMES
Adult Social Care,Older People 65&Over inc OP-MH,OP West - Nursing Care,Third Party Payments,Private Contractors,Miscellaneous Agency Services,10/6/2011,363,"24,477.52",Revenue,BUPA CARE HOMES
Adult Social Care,Older People 65&Over inc OP-MH,OP East - Residential Care Ext,Third Party Payments,Private Contractors,Miscellaneous Agency Services,10/6/2011,364,"2,086.84",Revenue,CHURCH FARM RESIDENTIAL HOME
Adult Social Care,Adlt u65 Learning Disabilities,LD Residential Care External,Third Party Payments,Private Contractors,Miscellaneous Agency Services,10/6/2011,365,"4,760.00",Revenue,CARE MANAGEMENT GROUP
Adult Social Care,Adlt u65 Learning Disabilities,LD Residential Care External,Third Party Payments,Private Contractors,Miscellaneous Agency Services,10/6/2011,366,"5,380.00",Revenue,CARE MANAGEMENT GROUP
Adult Social Care,Adlt u65 Learning Disabilities,LD Residential Care External,Third Party Payments,Private Contractors,Miscellaneous Agency Services,10/6/2011,367,"5,500.00",Revenue,CARE MANAGEMENT GROUP
Adult Social Care,Adlt u65 Learning Disabilities,LD Residential Care External,Third Party Payments,Private Contractors,Miscellaneous Agency Services,10/6/2011,368,"5,981.20",Revenue,CARE MANAGEMENT GROUP
Adult Social Care,Adult u65 Mental Health Needs,MH ResidentialCare Ext - Wim,Third Party Payments,Private Contractors,Miscellaneous Agency Services,10/6/2011,369,"3,632.00",Revenue,CARE MANAGEMENT GROUP
Adult Social Care,Adlt u65 Learning Disabilities,LD Residential Care External,Third Party Payments,Private Contractors,Miscellaneous Agency Services,10/6/2011,370,"5,980.00",Revenue,CARE MANAGEMENT GROUP
Adult Social Care,Adult u65 Phys/Sensory Impair,PD WEST TEAM-Homecare,Third Party Payments,Private Contractors,Miscellaneous Agency Services,10/6/2011,371,"5,520.00",Revenue,CARE MANAGEMENT GROUP
Adult Social Care,Adult u65 Phys/Sensory Impair,PD EAST TEAM-Homecare,Third Party Payments,Private Contractors,Miscellaneous Agency Services,10/6/2011,372,"4,168.00",Revenue,CARE MANAGEMENT GROUP
Adult Social Care,Adlt u65 Learning Disabilities,LD Residential Care External,Third Party Payments,Private Contractors,Miscellaneous Agency Services,10/6/2011,373,"5,044.00",Revenue,CARE MANAGEMENT GROUP
Adult Social Care,Adlt u65 Learning Disabilities,LD Residential Care External,Third Party Payments,Private Contractors,Miscellaneous Agency Services,10/6/2011,374,"3,336.00",Revenue,CARE MANAGEMENT GROUP
Adult Social Care,Older People 65&Over inc OP-MH,OP East - Residential Care Ext,Third Party Payments,Private Contractors,Miscellaneous Agency Services,10/6/2011,375,"1,812.40",Revenue,GRANGE COTTAGE LIMITED
Adult Social Care,Older People 65&Over inc OP-MH,OP West - Residential Care Ext,Third Party Payments,Private Contractors,Miscellaneous Agency Services,10/6/2011,376,"3,612.76",Revenue,GRANGE COTTAGE LIMITED
Adult Social Care,Adult u65 Phys/Sensory Impair,PD EAST TEAM-Residential,Third Party Payments,Private Contractors,Miscellaneous Agency Services,10/6/2011,377,"4,602.08",Revenue,GRANGE COTTAGE LIMITED
Adult Social Care,Adlt u65 Learning Disabilities,LD Residential Care External,Third Party Payments,Private Contractors,Miscellaneous Agency Services,10/6/2011,378,"4,392.00",Revenue,MACINTYRE
Adult Social Care,Older People 65&Over inc OP-MH,OP East - Residential Care Ext,Third Party Payments,Private Contractors,Miscellaneous Agency Services,10/10/2011,379,"3,032.24",Revenue,SCOPE
Adult Social Care,Adlt u65 Learning Disabilities,LD Residential Care External,Third Party Payments,Private Contractors,Miscellaneous Agency Services,10/10/2011,380,"3,487.92",Revenue,SCOPE
Adult Social Care,Adult u65 Phys/Sensory Impair,PD WEST TEAM-Residential Care,Third Party Payments,Private Contractors,Miscellaneous Agency Services,10/10/2011,381,"3,300.96",Revenue,SCOPE
Adult Social Care,Adult u65 Phys/Sensory Impair,PD EAST TEAM-Residential,Third Party Payments,Private Contractors,Miscellaneous Agency Services,10/10/2011,382,"3,249.68",Revenue,SCOPE
Adult Social Care,Older People 65&Over inc OP-MH,OP West - Residential Care Ext,Third Party Payments,Private Contractors,Miscellaneous Agency Services,10/6/2011,383,"1,878.52",Revenue,SOUTHERN CROSS HEALTHCARE LTD
Adult Social Care,Older People 65&Over inc OP-MH,OP Hosp - Residential Care Ext,Third Party Payments,Private Contractors,Miscellaneous Agency Services,10/6/2011,384,"2,616.51",Revenue,SOUTHERN CROSS HEALTHCARE LTD
Adult Social Care,Older People 65&Over inc OP-MH,OP East - Residential Care Ext,Third Party Payments,Private Contractors,Miscellaneous Agency Services,10/6/2011,385,"3,220.32",Revenue,SOUTHERN CROSS HEALTHCARE LTD
Adult Social Care,Adlt u65 Learning Disabilities,LD Residential Care External,Third Party Payments,Private Contractors,Miscellaneous Agency Services,10/6/2011,386,"13,948.00",Revenue,SPRING LAKE CARE HOME LTD
Adult Social Care,Older People 65&Over inc OP-MH,OP West - Nursing Care,Third Party Payments,Private Contractors,Miscellaneous Agency Services,10/7/2011,387,"2,842.00",Revenue,TRINITY COURT NURSING HOME
Adult Social Care,Adult u65 Mental Health Needs,MH Adult Placement Cont- NRTPF,Third Party Payments,Private Contractors,Accommodation Based Support,10/6/2011,388,"1,287.40",Revenue,REDACTED
Adult Social Care,Adlt u65 Learning Disabilities,LD AdultPlacementCont,Third Party Payments,Private Contractors,Accommodation Based Support,10/6/2011,389,"5,850.00",Revenue,PROVIDENCE CARE UK LTD
Adult Social Care,Older People 65&Over inc OP-MH,OP East -Direct Payment Scheme,Third Party Payments,Private Contractors,Direct Payments,10/6/2011,390,913.76,Revenue,REDACTED
Adult Social Care,Older People 65&Over inc OP-MH,OP East -Direct Payment Scheme,Third Party Payments,Private Contractors,Direct Payments,10/6/2011,391,"1,341.88",Revenue,REDACTED
Adult Social Care,Adult u65 Phys/Sensory Impair,PD EAST TEAM-Direct Payment,Third Party Payments,Private Contractors,Direct Payments,10/6/2011,392,915.88,Revenue,REDACTED
Adult Social Care,Older People 65&Over inc OP-MH,OP East -Direct Payment Scheme,Third Party Payments,Private Contractors,Direct Payments,10/6/2011,393,"2,103.80",Revenue,REDACTED
Adult Social Care,Older People 65&Over inc OP-MH,OP West -Direct Payment Scheme,Third Party Payments,Private Contractors,Direct Payments,10/6/2011,394,511.20,Revenue,REDACTED
Adult Social Care,Adult u65 Phys/Sensory Impair,PD EAST TEAM-Direct Payment,Third Party Payments,Private Contractors,Direct Payments,10/6/2011,395,532.48,Revenue,REDACTED
Adult Social Care,Adult u65 Mental Health Needs,MH Direct Payment Scheme- West,Third Party Payments,Private Contractors,Direct Payments,10/6/2011,396,718.48,Revenue,REDACTED
Adult Social Care,Adult u65 Phys/Sensory Impair,PD WEST TEAM-Direct Payment,Third Party Payments,Private Contractors,Direct Payments,10/6/2011,397,586.32,Revenue,REDACTED
Adult Social Care,Older People 65&Over inc OP-MH,OP West -Direct Payment Scheme,Third Party Payments,Private Contractors,Direct Payments,10/6/2011,398,596.40,Revenue,REDACTED
Adult Social Care,Older People 65&Over inc OP-MH,OP West -Direct Payment Scheme,Third Party Payments,Private Contractors,Direct Payments,10/6/2011,399,502.56,Revenue,REDACTED
Adult Social Care,Older People 65&Over inc OP-MH,OP West -Direct Payment Scheme,Third Party Payments,Private Contractors,Direct Payments,10/6/2011,400,"1,128.88",Revenue,REDACTED
Adult Social Care,Older People 65&Over inc OP-MH,OP East -Direct Payment Scheme,Customer and client receipts,Charges,Bd&Acc-contrib coll by home X,10/6/2011,401,-658.12,Revenue,REDACTED
Adult Social Care,Older People 65&Over inc OP-MH,OP East -Direct Payment Scheme,Third Party Payments,Private Contractors,Direct Payments,10/6/2011,402,756.04,Revenue,REDACTED
Adult Social Care,Adult u65 Mental Health Needs,MH Direct Payment Scheme- West,Third Party Payments,Private Contractors,Direct Payments,10/6/2011,403,838.00,Revenue,REDACTED
Adult Social Care,Adult u65 Phys/Sensory Impair,PD WEST TEAM-Direct Payment,Third Party Payments,Private Contractors,Direct Payments,10/6/2011,404,"1,833.32",Revenue,REDACTED
Adult Social Care,Adult u65 Phys/Sensory Impair,PD EAST TEAM-Direct Payment,Third Party Payments,Private Contractors,Direct Payments,10/6/2011,405,745.48,Revenue,REDACTED
Adult Social Care,Adult u65 Phys/Sensory Impair,PD WEST TEAM-Direct Payment,Third Party Payments,Private Contractors,Direct Payments,10/6/2011,406,711.96,Revenue,REDACTED
Adult Social Care,Older People 65&Over inc OP-MH,OP East -Direct Payment Scheme,Third Party Payments,Private Contractors,Direct Payments,10/6/2011,407,"1,435.44",Revenue,REDACTED
Adult Social Care,Adult u65 Phys/Sensory Impair,PD WEST TEAM-Direct Payment,Third Party Payments,Private Contractors,Direct Payments,10/6/2011,408,565.36,Revenue,REDACTED
Adult Social Care,Older People 65&Over inc OP-MH,OP East -Direct Payment Scheme,Third Party Payments,Private Contractors,Direct Payments,10/6/2011,409,832.16,Revenue,REDACTED
Adult Social Care,Adult u65 Phys/Sensory Impair,PD WEST TEAM-Direct Payment,Third Party Payments,Private Contractors,Direct Payments,10/6/2011,410,"1,244.04",Revenue,REDACTED
Adult Social Care,Older People 65&Over inc OP-MH,OP East -Direct Payment Scheme,Third Party Payments,Private Contractors,Direct Payments,10/6/2011,411,"2,384.16",Revenue,REDACTED
Adult Social Care,Adult u65 Phys/Sensory Impair,PD EAST TEAM-Direct Payment,Third Party Payments,Private Contractors,Direct Payments,10/6/2011,412,"3,077.48",Revenue,REDACTED
Adult Social Care,Older People 65&Over inc OP-MH,OP East -Direct Payment Scheme,Third Party Payments,Private Contractors,Direct Payments,10/6/2011,413,"1,704.00",Revenue,REDACTED
Adult Social Care,Adlt u65 Learning Disabilities,LD Direct Payment Scheme,Third Party Payments,Private Contractors,Direct Payments,10/6/2011,414,533.28,Revenue,REDACTED
Adult Social Care,Adult u65 Phys/Sensory Impair,PD EAST TEAM-Direct Payment,Third Party Payments,Private Contractors,Direct Payments,10/6/2011,415,924.08,Revenue,REDACTED
Adult Social Care,Older People 65&Over inc OP-MH,OP East -Direct Payment Scheme,Third Party Payments,Private Contractors,Direct Payments,10/6/2011,416,833.20,Revenue,REDACTED
Adult Social Care,Adult u65 Phys/Sensory Impair,PD EAST TEAM-Direct Payment,Third Party Payments,Private Contractors,Direct Payments,10/6/2011,417,511.20,Revenue,REDACTED
Adult Social Care,Older People 65&Over inc OP-MH,OP West -Direct Payment Scheme,Third Party Payments,Private Contractors,Direct Payments,10/6/2011,418,894.60,Revenue,REDACTED
Adult Social Care,Adlt u65 Learning Disabilities,LD Direct Payment Scheme,Third Party Payments,Private Contractors,Direct Payments,10/6/2011,419,531.24,Revenue,REDACTED
Adult Social Care,Older People 65&Over inc OP-MH,OP East -Direct Payment Scheme,Third Party Payments,Private Contractors,Direct Payments,10/6/2011,420,"1,130.76",Revenue,REDACTED
Adult Social Care,Older People 65&Over inc OP-MH,OP West -Direct Payment Scheme,Third Party Payments,Private Contractors,Direct Payments,10/6/2011,421,"1,172.64",Revenue,REDACTED
Adult Social Care,Older People 65&Over inc OP-MH,OP East -Direct Payment Scheme,Customer and client receipts,Charges,Bd&Acc-contrib coll by home X,10/6/2011,422,"-1,419.88",Revenue,REDACTED
Adult Social Care,Older People 65&Over inc OP-MH,OP East -Direct Payment Scheme,Third Party Payments,Private Contractors,Direct Payments,10/6/2011,423,"1,536.04",Revenue,REDACTED
Adult Social Care,Older People 65&Over inc OP-MH,OP East -Direct Payment Scheme,Third Party Payments,Private Contractors,Direct Payments,10/6/2011,424,"1,278.00",Revenue,REDACTED
Adult Social Care,Older People 65&Over inc OP-MH,OP Hosp -Direct Payment Scheme,Third Party Payments,Private Contractors,Direct Payments,10/6/2011,425,"4,038.68",Revenue,REDACTED
Adult Social Care,Adult u65 Phys/Sensory Impair,PD WEST TEAM-Direct Payment,Third Party Payments,Private Contractors,Direct Payments,10/6/2011,426,"1,280.00",Revenue,REDACTED
Adult Social Care,Older People 65&Over inc OP-MH,OP West -Direct Payment Scheme,Third Party Payments,Private Contractors,Direct Payments,10/6/2011,427,745.48,Revenue,REDACTED
Adult Social Care,Adult u65 Phys/Sensory Impair,PD WEST TEAM-Direct Payment,Third Party Payments,Private Contractors,Direct Payments,10/6/2011,428,"3,444.28",Revenue,REDACTED
Adult Social Care,Adult u65 Phys/Sensory Impair,PD EAST TEAM-Direct Payment,Third Party Payments,Private Contractors,Direct Payments,10/6/2011,429,"1,022.40",Revenue,REDACTED
Adult Social Care,Adult u65 Phys/Sensory Impair,PD EAST TEAM-Direct Payment,Third Party Payments,Private Contractors,Direct Payments,10/7/2011,430,766.80,Revenue,REDACTED
Adult Social Care,Older People 65&Over inc OP-MH,OP East -Direct Payment Scheme,Customer and client receipts,Charges,Bd&Acc-contrib coll by home X,10/6/2011,431,-840.28,Revenue,REDACTED
Adult Social Care,Older People 65&Over inc OP-MH,OP East -Direct Payment Scheme,Third Party Payments,Private Contractors,Direct Payments,10/6/2011,432,"1,484.16",Revenue,REDACTED
Adult Social Care,Older People 65&Over inc OP-MH,OP West -Direct Payment Scheme,Third Party Payments,Private Contractors,Direct Payments,10/6/2011,433,"1,045.20",Revenue,REDACTED
Adult Social Care,Adlt u65 Learning Disabilities,LD Direct Payment Scheme,Third Party Payments,Private Contractors,Direct Payments,10/6/2011,434,511.20,Revenue,REDACTED
Adult Social Care,Adult u65 Mental Health Needs,MH Direct Payment Sche -Morden,Third Party Payments,Private Contractors,Direct Payments,10/6/2011,435,"1,192.80",Revenue,REDACTED
Adult Social Care,Adult u65 Phys/Sensory Impair,PD WEST TEAM-Direct Payment,Third Party Payments,Private Contractors,Direct Payments,10/6/2011,436,867.04,Revenue,REDACTED
Adult Social Care,Adlt u65 Learning Disabilities,LD Direct Payment Scheme,Third Party Payments,Private Contractors,Direct Payments,10/6/2011,437,683.56,Revenue,REDACTED
Adult Social Care,Older People 65&Over inc OP-MH,OP West -Direct Payment Scheme,Third Party Payments,Private Contractors,Direct Payments,10/6/2011,438,692.24,Revenue,REDACTED
Adult Social Care,Adult u65 Phys/Sensory Impair,PD WEST TEAM-Direct Payment,Third Party Payments,Private Contractors,Direct Payments,10/6/2011,439,776.92,Revenue,REDACTED
Adult Social Care,Adult u65 Phys/Sensory Impair,PD WEST TEAM-Direct Payment,Third Party Payments,Private Contractors,Direct Payments,10/6/2011,440,"2,982.00",Revenue,REDACTED
Adult Social Care,Adult u65 Phys/Sensory Impair,PD WEST TEAM-Direct Payment,Third Party Payments,Private Contractors,Direct Payments,10/6/2011,441,"1,661.40",Revenue,REDACTED
Adult Social Care,Adult u65 Phys/Sensory Impair,PD WEST TEAM-Direct Payment,Third Party Payments,Private Contractors,Direct Payments,10/6/2011,442,781.12,Revenue,REDACTED
Adult Social Care,Older People 65&Over inc OP-MH,OP East -Direct Payment Scheme,Third Party Payments,Private Contractors,Direct Payments,10/6/2011,443,884.00,Revenue,REDACTED
Adult Social Care,Older People 65&Over inc OP-MH,OP West -Direct Payment Scheme,Third Party Payments,Private Contractors,Direct Payments,10/6/2011,444,"5,712.00",Revenue,REDACTED
Adult Social Care,Older People 65&Over inc OP-MH,OP West -Direct Payment Scheme,Third Party Payments,Private Contractors,Direct Payments,10/6/2011,445,617.68,Revenue,REDACTED
Adult Social Care,Adlt u65 Learning Disabilities,LD Direct Payment Scheme,Third Party Payments,Private Contractors,Direct Payments,10/7/2011,446,724.20,Revenue,REDACTED
Adult Social Care,Adult u65 Phys/Sensory Impair,PD EAST TEAM-Direct Payment,Third Party Payments,Private Contractors,Direct Payments,10/6/2011,447,"1,491.00",Revenue,REDACTED
Adult Social Care,Adult u65 Phys/Sensory Impair,PD EAST TEAM-Direct Payment,Third Party Payments,Private Contractors,Direct Payments,10/6/2011,448,639.00,Revenue,REDACTED
Adult Social Care,Adult u65 Phys/Sensory Impair,PD WEST TEAM-Direct Payment,Third Party Payments,Private Contractors,Direct Payments,10/6/2011,449,"2,790.28",Revenue,REDACTED
Adult Social Care,Adult u65 Phys/Sensory Impair,PD WEST TEAM-Direct Payment,Third Party Payments,Private Contractors,Direct Payments,10/6/2011,450,598.16,Revenue,REDACTED
Adult Social Care,Older People 65&Over inc OP-MH,OP West -Direct Payment Scheme,Third Party Payments,Private Contractors,Direct Payments,10/6/2011,451,"1,219.56",Revenue,REDACTED
Adult Social Care,Older People 65&Over inc OP-MH,OP Hosp -Direct Payment Scheme,Third Party Payments,Private Contractors,Direct Payments,10/6/2011,452,873.28,Revenue,REDACTED
Adult Social Care,Adlt u65 Learning Disabilities,LD Direct Payment Scheme,Third Party Payments,Private Contractors,Direct Payments,10/6/2011,453,"1,170.20",Revenue,REDACTED
Adult Social Care,Older People 65&Over inc OP-MH,OP West -Direct Payment Scheme,Third Party Payments,Private Contractors,Direct Payments,10/6/2011,454,"1,684.48",Revenue,REDACTED
Adult Social Care,Older People 65&Over inc OP-MH,OP East -Direct Payment Scheme,Third Party Payments,Private Contractors,Direct Payments,10/6/2011,455,502.56,Revenue,REDACTED
Adult Social Care,Older People 65&Over inc OP-MH,OP East -Direct Payment Scheme,Third Party Payments,Private Contractors,Direct Payments,10/6/2011,456,774.80,Revenue,REDACTED
Adult Social Care,Older People 65&Over inc OP-MH,OP West -Direct Payment Scheme,Third Party Payments,Private Contractors,Direct Payments,10/6/2011,457,"1,331.92",Revenue,REDACTED
Adult Social Care,Adult u65 Phys/Sensory Impair,PD WEST TEAM-Direct Payment,Third Party Payments,Private Contractors,Direct Payments,10/6/2011,458,"1,778.56",Revenue,REDACTED
Adult Social Care,Adult u65 Phys/Sensory Impair,PD EAST TEAM-Direct Payment,Third Party Payments,Private Contractors,Direct Payments,10/6/2011,459,"1,240.52",Revenue,REDACTED
Adult Social Care,Adult u65 Phys/Sensory Impair,PD EAST TEAM-Direct Payment,Third Party Payments,Private Contractors,Direct Payments,10/6/2011,460,607.04,Revenue,REDACTED
Adult Social Care,Older People 65&Over inc OP-MH,OP East -Direct Payment Scheme,Third Party Payments,Private Contractors,Direct Payments,10/6/2011,461,937.20,Revenue,REDACTED
Adult Social Care,Older People 65&Over inc OP-MH,OP West -Direct Payment Scheme,Third Party Payments,Private Contractors,Direct Payments,10/6/2011,462,858.52,Revenue,REDACTED
Adult Social Care,Older People 65&Over inc OP-MH,OP East -Direct Payment Scheme,Third Party Payments,Private Contractors,Direct Payments,10/6/2011,463,"1,606.64",Revenue,REDACTED
Adult Social Care,Older People 65&Over inc OP-MH,OP Hosp -Direct Payment Scheme,Third Party Payments,Private Contractors,Direct Payments,10/6/2011,464,"1,183.08",Revenue,REDACTED
Adult Social Care,Adult u65 Phys/Sensory Impair,PD EAST TEAM-Direct Payment,Third Party Payments,Private Contractors,Direct Payments,10/6/2011,465,894.60,Revenue,REDACTED
Adult Social Care,Adult u65 Phys/Sensory Impair,PD WEST TEAM-Direct Payment,Third Party Payments,Private Contractors,Direct Payments,10/6/2011,466,766.80,Revenue,REDACTED
Adult Social Care,Older People 65&Over inc OP-MH,OP East -Direct Payment Scheme,Third Party Payments,Private Contractors,Direct Payments,10/6/2011,467,"1,137.44",Revenue,REDACTED
Adult Social Care,Older People 65&Over inc OP-MH,OP East -Direct Payment Scheme,Third Party Payments,Private Contractors,Direct Payments,10/6/2011,468,593.60,Revenue,REDACTED
Adult Social Care,Adlt u65 Learning Disabilities,LD Direct Payment Scheme,Third Party Payments,Private Contractors,Direct Payments,10/6/2011,469,894.60,Revenue,REDACTED
Adult Social Care,Adult u65 Phys/Sensory Impair,PD EAST TEAM-Direct Payment,Third Party Payments,Private Contractors,Direct Payments,10/6/2011,470,958.48,Revenue,REDACTED
Adult Social Care,Older People 65&Over inc OP-MH,OP West -Direct Payment Scheme,Third Party Payments,Private Contractors,Direct Payments,10/6/2011,471,"1,565.56",Revenue,REDACTED
Adult Social Care,Adult u65 Phys/Sensory Impair,PD EAST TEAM-Direct Payment,Third Party Payments,Private Contractors,Direct Payments,10/6/2011,472,724.20,Revenue,REDACTED
Adult Social Care,Adlt u65 Learning Disabilities,LD Direct Payment Scheme,Third Party Payments,Private Contractors,Direct Payments,10/6/2011,473,596.80,Revenue,REDACTED
Adult Social Care,Older People 65&Over inc OP-MH,OP East -Direct Payment Scheme,Customer and client receipts,Charges,Bd&Acc-contrib coll by home X,10/6/2011,474,-910.84,Revenue,REDACTED
Adult Social Care,Older People 65&Over inc OP-MH,OP East -Direct Payment Scheme,Third Party Payments,Private Contractors,Direct Payments,10/6/2011,475,962.44,Revenue,REDACTED
Adult Social Care,Adult u65 Phys/Sensory Impair,PD WEST TEAM-Direct Payment,Third Party Payments,Private Contractors,Direct Payments,10/6/2011,476,665.40,Revenue,REDACTED
Adult Social Care,Adult u65 Phys/Sensory Impair,PD EAST TEAM-Direct Payment,Third Party Payments,Private Contractors,Direct Payments,10/6/2011,477,724.20,Revenue,REDACTED
Adult Social Care,Older People 65&Over inc OP-MH,OP West -Direct Payment Scheme,Third Party Payments,Private Contractors,Direct Payments,10/6/2011,478,"1,119.60",Revenue,REDACTED
Adult Social Care,Older People 65&Over inc OP-MH,OP East -Direct Payment Scheme,Third Party Payments,Private Contractors,Direct Payments,10/6/2011,479,"1,341.88",Revenue,REDACTED
Adult Social Care,Adlt u65 Learning Disabilities,LD Direct Payment Scheme,Third Party Payments,Private Contractors,Direct Payments,10/6/2011,480,646.88,Revenue,REDACTED
Adult Social Care,Adult u65 Phys/Sensory Impair,PD EAST TEAM-Direct Payment,Third Party Payments,Private Contractors,Direct Payments,10/6/2011,481,596.40,Revenue,REDACTED
Childrens & Education Services,Other Ch's & Family Services,CL Leaving Care/Supp Lodgings,Third Party Payments,Private Contractors,Supported Lodgings,10/6/2011,482,600.00,Revenue,REDACTED
Childrens & Education Services,Other Ch's & Family Services,CL Leaving Care/Supp Lodgings,Third Party Payments,Private Contractors,Supported Lodgings,10/6/2011,483,900.00,Revenue,REDACTED
Childrens & Education Services,Family Support Services,CS R&AssessDiscretionary Pymts,Third Party Payments,Private Contractors,Miscellaneous Agency Services,10/6/2011,484,"2,485.30",Revenue,ADMINLAND LTD
Adult Social Care,Adlt u65 Learning Disabilities,LD Day Care Agency,Third Party Payments,Private Contractors,Miscellaneous Agency Services,10/6/2011,485,575.00,Revenue,ACT TOO
Adult Social Care,Adlt u65 Learning Disabilities,LD Home Care External,Third Party Payments,Private Contractors,Miscellaneous Agency Services,10/6/2011,486,944.44,Revenue,HOUSING21
Adult Social Care,Older People 65&Over inc OP-MH,OP West - Home Care External,Third Party Payments,Private Contractors,Miscellaneous Agency Services,10/6/2011,487,"5,391.22",Revenue,HOUSING21
Adult Social Care,Older People 65&Over inc OP-MH,OP East - Home Care External,Third Party Payments,Private Contractors,Miscellaneous Agency Services,10/6/2011,488,"5,572.54",Revenue,HOUSING21
Adult Social Care,Adlt u65 Learning Disabilities,LD Home Care External,Third Party Payments,Private Contractors,Miscellaneous Agency Services,10/6/2011,489,"4,500.00",Revenue,PROVIDENCE CARE UK LTD
Childrens & Education Services,Other Ch's & Family Services,CL Leaving Care/Supp Lodgings,Third Party Payments,Private Contractors,Miscellaneous Agency Services,10/7/2011,490,"1,360.00",Revenue,RBS INVOICE FINANCE LIMITED
Adult Social Care,Adlt u65 Learning Disabilities,LD Comm -Home Care-Orch Hill,Third Party Payments,Private Contractors,Miscellaneous Agency Services,10/7/2011,491,"27,658.24",Revenue,CHOICE SUPPORT
Adult Social Care,Adlt u65 Learning Disabilities,LD Comm -Home Care-Campus Hm,Third Party Payments,Private Contractors,Miscellaneous Agency Services,10/7/2011,492,"84,828.16",Revenue,CHOICE SUPPORT
Adult Social Care,Adlt u65 Learning Disabilities,LD Comm -Home Care-Campus Hm,Third Party Payments,Private Contractors,Miscellaneous Agency Services,10/7/2011,493,"11,547.84",Revenue,CHOICE SUPPORT
Adult Social Care,Adult u65 Mental Health Needs,MH Home Care External-MitWest,Third Party Payments,Private Contractors,Miscellaneous Agency Services,10/7/2011,494,505.24,Revenue,GOLDSBOROUGH HOMECARE
Adult Social Care,Adlt u65 Learning Disabilities,LD Home Care External,Third Party Payments,Private Contractors,Miscellaneous Agency Services,10/7/2011,495,672.91,Revenue,GOLDSBOROUGH HOMECARE
Adult Social Care,Older People 65&Over inc OP-MH,OP West - Carer Services,Third Party Payments,Private Contractors,Miscellaneous Agency Services,10/7/2011,496,856.93,Revenue,GOLDSBOROUGH HOMECARE
Adult Social Care,Adult u65 Phys/Sensory Impair,PD WEST TEAM-Homecare,Third Party Payments,Private Contractors,Miscellaneous Agency Services,10/7/2011,497,965.58,Revenue,GOLDSBOROUGH HOMECARE
Adult Social Care,Adult u65 Phys/Sensory Impair,PD EAST TEAM-Homecare,Third Party Payments,Private Contractors,Miscellaneous Agency Services,10/7/2011,498,"1,631.30",Revenue,GOLDSBOROUGH HOMECARE
Adult Social Care,Older People 65&Over inc OP-MH,OP East - Carer Services,Third Party Payments,Private Contractors,Miscellaneous Agency Services,10/7/2011,499,"1,887.52",Revenue,GOLDSBOROUGH HOMECARE
Adult Social Care,Older People 65&Over inc OP-MH,OP Hosp - Home Care External,Third Party Payments,Private Contractors,Miscellaneous Agency Services,10/7/2011,500,"2,581.23",Revenue,GOLDSBOROUGH HOMECARE
Adult Social Care,Older People 65&Over inc OP-MH,OP West - Home Care External,Third Party Payments,Private Contractors,Miscellaneous Agency Services,10/7/2011,501,"12,536.08",Revenue,GOLDSBOROUGH HOMECARE
Adult Social Care,Older People 65&Over inc OP-MH,OP East - Home Care External,Third Party Payments,Private Contractors,Miscellaneous Agency Services,10/7/2011,502,"43,297.78",Revenue,GOLDSBOROUGH HOMECARE
Adult Social Care,Older People 65&Over inc OP-MH,OP West - Home Care External,Third Party Payments,Private Contractors,Miscellaneous Agency Services,10/7/2011,503,561.60,Revenue,TOOTING NEIGHBOURHOOD CENTRE
Adult Social Care,Adult u65 Mental Health Needs,MH Other Servs - Mitcham West,Third Party Payments,Private Contractors,Miscellaneous Agency Services,10/7/2011,504,553.88,Revenue,MATRIX PROPERTIES SERVICES LTD
Childrens & Education Services,Family Support Services,CS R&AssessDiscretionary Pymts,Third Party Payments,Private Contractors,Miscellaneous Agency Services,10/7/2011,505,"1,328.35",Revenue,ADMINLAND LTD
Childrens & Education Services,Family Support Services,CS Direct Payments,Third Party Payments,Private Contractors,Direct Payments,10/7/2011,506,"1,491.00",Revenue,REDACTED
Childrens & Education Services,Family Support Services,CS Direct Payments,Third Party Payments,Private Contractors,Direct Payments,10/7/2011,507,"1,917.00",Revenue,REDACTED
Childrens & Education Services,Family Support Services,CS Direct Payments,Third Party Payments,Private Contractors,Direct Payments,10/7/2011,508,"1,278.00",Revenue,REDACTED
Childrens & Education Services,Family Support Services,CS Direct Payments,Third Party Payments,Private Contractors,Direct Payments,10/7/2011,509,"1,192.80",Revenue,REDACTED
Childrens & Education Services,Family Support Services,CS Direct Payments,Third Party Payments,Private Contractors,Direct Payments,10/7/2011,510,639.00,Revenue,REDACTED
Childrens & Education Services,Family Support Services,CS Direct Payments,Third Party Payments,Private Contractors,Direct Payments,10/7/2011,511,511.20,Revenue,REDACTED
Adult Social Care,Adlt u65 Learning Disabilities,LD Residential Care External,Third Party Payments,Private Contractors,Miscellaneous Agency Services,10/7/2011,512,"4,299.88",Revenue,ASHCROFT CARE SERVICES
Adult Social Care,Adlt u65 Learning Disabilities,LD Residential Care External,Third Party Payments,Private Contractors,Miscellaneous Agency Services,10/7/2011,513,"5,374.92",Revenue,ASHCROFT CARE SERVICES
Adult Social Care,Older People 65&Over inc OP-MH,OP East - Residential Care Ext,Third Party Payments,Private Contractors,Miscellaneous Agency Services,10/7/2011,514,"1,873.20",Revenue,BETHUNE COURT
Adult Social Care,Older People 65&Over inc OP-MH,OP East - Residential Care Ext,Third Party Payments,Private Contractors,Miscellaneous Agency Services,10/7/2011,515,"1,928.56",Revenue,CHASE HOUSE REST HOME
Adult Social Care,Older People 65&Over inc OP-MH,OP Hosp - Residential Care Ext,Third Party Payments,Private Contractors,Miscellaneous Agency Services,10/7/2011,516,"1,800.00",Revenue,EDMUND HOUSE
Adult Social Care,Adlt u65 Learning Disabilities,LD Home Care External,Third Party Payments,Private Contractors,Miscellaneous Agency Services,10/7/2011,517,"12,578.87",Revenue,FREEWAYS TRUST LTD
Adult Social Care,Adlt u65 Learning Disabilities,LD Home Care External,Third Party Payments,Private Contractors,Miscellaneous Agency Services,10/7/2011,518,571.40,Revenue,FREEWAYS TRUST LTD
Adult Social Care,Adlt u65 Learning Disabilities,LD Home Care External,Third Party Payments,Private Contractors,Miscellaneous Agency Services,10/7/2011,519,571.40,Revenue,FREEWAYS TRUST LTD
Adult Social Care,Adlt u65 Learning Disabilities,LD Home Care External,Third Party Payments,Private Contractors,Miscellaneous Agency Services,10/7/2011,520,571.40,Revenue,FREEWAYS TRUST LTD
Adult Social Care,Older People 65&Over inc OP-MH,OP West - Nursing Care,Third Party Payments,Private Contractors,Miscellaneous Agency Services,10/7/2011,521,"2,341.84",Revenue,LYNTON HALL NURSING HOME
Adult Social Care,Adult u65 Phys/Sensory Impair,PD EAST TEAM-Residential,Third Party Payments,Private Contractors,Miscellaneous Agency Services,10/7/2011,522,"5,314.33",Revenue,HIGHVIEW CARE SERVICES LTD
Adult Social Care,Adult u65 Phys/Sensory Impair,PD EAST TEAM-Residential,Third Party Payments,Private Contractors,Miscellaneous Agency Services,10/7/2011,523,"5,314.02",Revenue,HIGHVIEW CARE SERVICES LTD
Adult Social Care,Older People 65&Over inc OP-MH,OP West - Residential Care Ext,Third Party Payments,Private Contractors,Miscellaneous Agency Services,10/7/2011,524,"1,812.40",Revenue,THE ABBEYFIELD SOCIETY
Adult Social Care,Older People 65&Over inc OP-MH,OP East - Residential Care Ext,Third Party Payments,Private Contractors,Miscellaneous Agency Services,10/7/2011,525,"1,880.00",Revenue,THE ABBEYFIELD SOCIETY
Adult Social Care,Older People 65&Over inc OP-MH,OP West - Residential Care Ext,Customer and client receipts,Charges,Miscellaneous Charges X,10/7/2011,526,-866.32,Revenue,THE ABBEYFIELD SOCIETY
Adult Social Care,Older People 65&Over inc OP-MH,OP West - Residential Care Ext,Third Party Payments,Private Contractors,Miscellaneous Agency Services,10/7/2011,527,"1,616.44",Revenue,THE ABBEYFIELD SOCIETY
Adult Social Care,Older People 65&Over inc OP-MH,OP West - Residential Care Ext,Customer and client receipts,Charges,Miscellaneous Charges X,10/7/2011,528,-866.32,Revenue,THE ABBEYFIELD SOCIETY
Adult Social Care,Older People 65&Over inc OP-MH,OP West - Residential Care Ext,Third Party Payments,Private Contractors,Miscellaneous Agency Services,10/7/2011,529,"1,616.44",Revenue,THE ABBEYFIELD SOCIETY
Adult Social Care,Older People 65&Over inc OP-MH,OP East - Residential Care Ext,Third Party Payments,Private Contractors,Miscellaneous Agency Services,10/7/2011,530,"1,880.00",Revenue,THE ABBEYFIELD SOCIETY
Adult Social Care,Older People 65&Over inc OP-MH,OP West - Nursing Care,Third Party Payments,Private Contractors,Miscellaneous Agency Services,10/7/2011,531,"2,378.57",Revenue,LYNWOOD NURSING HOME
Adult Social Care,Older People 65&Over inc OP-MH,OP West - Residential Care Ext,Third Party Payments,Private Contractors,Miscellaneous Agency Services,10/7/2011,532,"2,288.84",Revenue,OATLANDS CARE LIMITED
Adult Social Care,Older People 65&Over inc OP-MH,OP West - Residential Care Ext,Third Party Payments,Private Contractors,Miscellaneous Agency Services,10/7/2011,533,"2,288.84",Revenue,OATLANDS CARE LIMITED
Adult Social Care,Older People 65&Over inc OP-MH,OP West - Residential Care Ext,Third Party Payments,Private Contractors,Miscellaneous Agency Services,10/7/2011,534,"2,288.84",Revenue,OATLANDS CARE LIMITED
Adult Social Care,Older People 65&Over inc OP-MH,OP West - Residential Care Ext,Third Party Payments,Private Contractors,Miscellaneous Agency Services,10/7/2011,535,"2,288.84",Revenue,OATLANDS CARE LIMITED
Adult Social Care,Older People 65&Over inc OP-MH,OP West - Residential Care Ext,Third Party Payments,Private Contractors,Miscellaneous Agency Services,10/7/2011,536,"2,288.84",Revenue,OATLANDS CARE LIMITED
Adult Social Care,Older People 65&Over inc OP-MH,OP Hosp - Nursing Care,Third Party Payments,Private Contractors,Miscellaneous Agency Services,10/7/2011,537,"-28,849.57",Revenue,SOUTHERN CROSS HEALTHCARE LTD
Adult Social Care,Older People 65&Over inc OP-MH,OP East - Nursing Care,Third Party Payments,Private Contractors,Miscellaneous Agency Services,10/7/2011,538,"11,188.20",Revenue,SOUTHERN CROSS HEALTHCARE LTD
Adult Social Care,Older People 65&Over inc OP-MH,OP West - Nursing Care,Third Party Payments,Private Contractors,Miscellaneous Agency Services,10/7/2011,539,"11,188.20",Revenue,SOUTHERN CROSS HEALTHCARE LTD
Adult Social Care,Older People 65&Over inc OP-MH,OP Mitcham - Nursing Care,Third Party Payments,Private Contractors,Miscellaneous Agency Services,10/7/2011,540,"35,562.49",Revenue,SOUTHERN CROSS HEALTHCARE LTD
Adult Social Care,Older People 65&Over inc OP-MH,OP Mitcham - Nursing Care,Third Party Payments,Private Contractors,Miscellaneous Agency Services,10/7/2011,541,"2,237.64",Revenue,SOUTHERN CROSS HEALTHCARE LTD
Adult Social Care,Older People 65&Over inc OP-MH,OP Hosp - Nursing Care,Third Party Payments,Private Contractors,Miscellaneous Agency Services,10/7/2011,542,"4,475.28",Revenue,SOUTHERN CROSS HEALTHCARE LTD
Adult Social Care,Older People 65&Over inc OP-MH,OP East - Nursing Care,Third Party Payments,Private Contractors,Miscellaneous Agency Services,10/7/2011,543,"9,350.14",Revenue,SOUTHERN CROSS HEALTHCARE LTD
Adult Social Care,Older People 65&Over inc OP-MH,OP West - Nursing Care,Third Party Payments,Private Contractors,Miscellaneous Agency Services,10/7/2011,544,"11,188.20",Revenue,SOUTHERN CROSS HEALTHCARE LTD
Adult Social Care,Older People 65&Over inc OP-MH,OP Mitcham - Nursing Care,Third Party Payments,Private Contractors,Miscellaneous Agency Services,10/7/2011,545,"2,237.64",Revenue,SOUTHERN CROSS HEALTHCARE LTD
Adult Social Care,Older People 65&Over inc OP-MH,OP Hosp - Nursing Care,Third Party Payments,Private Contractors,Miscellaneous Agency Services,10/7/2011,546,"4,475.28",Revenue,SOUTHERN CROSS HEALTHCARE LTD
Adult Social Care,Older People 65&Over inc OP-MH,OP East - Nursing Care,Third Party Payments,Private Contractors,Miscellaneous Agency Services,10/7/2011,547,"8,630.90",Revenue,SOUTHERN CROSS HEALTHCARE LTD
Adult Social Care,Older People 65&Over inc OP-MH,OP West - Nursing Care,Third Party Payments,Private Contractors,Miscellaneous Agency Services,10/7/2011,548,"11,188.20",Revenue,SOUTHERN CROSS HEALTHCARE LTD
Adult Social Care,Older People 65&Over inc OP-MH,OP Mitcham - Nursing Care,Third Party Payments,Private Contractors,Miscellaneous Agency Services,10/7/2011,549,"2,237.64",Revenue,SOUTHERN CROSS HEALTHCARE LTD
Adult Social Care,Older People 65&Over inc OP-MH,OP Hosp - Nursing Care,Third Party Payments,Private Contractors,Miscellaneous Agency Services,10/7/2011,550,"4,475.28",Revenue,SOUTHERN CROSS HEALTHCARE LTD
Adult Social Care,Older People 65&Over inc OP-MH,OP East - Nursing Care,Third Party Payments,Private Contractors,Miscellaneous Agency Services,10/7/2011,551,"6,712.92",Revenue,SOUTHERN CROSS HEALTHCARE LTD
Adult Social Care,Older People 65&Over inc OP-MH,OP West - Nursing Care,Third Party Payments,Private Contractors,Miscellaneous Agency Services,10/7/2011,552,"11,188.20",Revenue,SOUTHERN CROSS HEALTHCARE LTD
Adult Social Care,Older People 65&Over inc OP-MH,OP Hosp - Nursing Care,Third Party Payments,Private Contractors,Miscellaneous Agency Services,10/7/2011,553,"1,780.98",Revenue,SOUTHERN CROSS HEALTHCARE LTD
Adult Social Care,Older People 65&Over inc OP-MH,OP West - Residential Care Ext,Third Party Payments,Private Contractors,Miscellaneous Agency Services,10/7/2011,554,"2,100.00",Revenue,THE DEVONSHIRE RESID CARE HOME
Adult Social Care,Adlt u65 Learning Disabilities,LD Residential Care External,Third Party Payments,Private Contractors,Miscellaneous Agency Services,10/7/2011,555,"5,829.72",Revenue,WALSINGHAM
Adult Social Care,Adlt u65 Learning Disabilities,LD Residential Care External,Third Party Payments,Private Contractors,Miscellaneous Agency Services,10/7/2011,556,"5,826.12",Revenue,WALSINGHAM
Adult Social Care,Adlt u65 Learning Disabilities,LD Residential Care External,Third Party Payments,Private Contractors,Miscellaneous Agency Services,10/7/2011,557,"5,826.12",Revenue,WALSINGHAM
Adult Social Care,Other Adult Services,MH Residential Care Ext - SM&D,Third Party Payments,Private Contractors,Miscellaneous Agency Services,10/7/2011,558,"1,870.40",Revenue,WESTERN COUNSELLING SERVICES
Adult Social Care,Adlt u65 Learning Disabilities,LD Direct Payment Scheme,Third Party Payments,Private Contractors,Direct Payments,10/7/2011,559,"1,629.42",Revenue,REDACTED
Adult Social Care,Older People 65&Over inc OP-MH,OP West -Direct Payment Scheme,Third Party Payments,Private Contractors,Direct Payments,10/7/2011,560,890.40,Revenue,REDACTED
Adult Social Care,Older People 65&Over inc OP-MH,OP West -Direct Payment Scheme,Third Party Payments,Private Contractors,Direct Payments,10/7/2011,561,501.72,Revenue,REDACTED
Adult Social Care,Older People 65&Over inc OP-MH,OP East - Residential Care Ext,Third Party Payments,Private Contractors,Miscellaneous Agency Services,10/10/2011,562,"1,884.24",Revenue,ABBEYFIELD PEABODY S.LOND.LTD
Adult Social Care,Adult u65 Mental Health Needs,MH ResidentialCare Ext-Morden,Third Party Payments,Private Contractors,Miscellaneous Agency Services,10/10/2011,563,"4,000.00",Revenue,ABBEY HOUSE RESIDENTIAL HOMES
Adult Social Care,Older People 65&Over inc OP-MH,OP East - Residential Care Ext,Third Party Payments,Private Contractors,Miscellaneous Agency Services,10/10/2011,564,749.19,Revenue,BUPA CARE HOMES
Adult Social Care,Older People 65&Over inc OP-MH,OP Hosp - Nursing Care,Third Party Payments,Private Contractors,Miscellaneous Agency Services,10/10/2011,565,"2,805.19",Revenue,CARE UK
Adult Social Care,Older People 65&Over inc OP-MH,OP Hosp - Nursing Care,Third Party Payments,Private Contractors,Miscellaneous Agency Services,10/10/2011,566,"2,714.70",Revenue,CARE UK
Adult Social Care,Older People 65&Over inc OP-MH,OP Hosp - Nursing Care,Third Party Payments,Private Contractors,Miscellaneous Agency Services,10/10/2011,567,"2,805.19",Revenue,CARE UK
Adult Social Care,Older People 65&Over inc OP-MH,OP Hosp - Nursing Care,Third Party Payments,Private Contractors,Miscellaneous Agency Services,10/10/2011,568,"2,805.19",Revenue,CARE UK
Adult Social Care,Older People 65&Over inc OP-MH,OP Hosp - Nursing Care,Third Party Payments,Private Contractors,Miscellaneous Agency Services,10/10/2011,569,"2,714.70",Revenue,CARE UK
Adult Social Care,Older People 65&Over inc OP-MH,OP Hosp - Nursing Care,Third Party Payments,Private Contractors,Miscellaneous Agency Services,10/10/2011,570,"2,805.19",Revenue,CARE UK
Adult Social Care,Older People 65&Over inc OP-MH,OP Hosp - Nursing Care,Third Party Payments,Private Contractors,Miscellaneous Agency Services,10/10/2011,571,"2,341.84",Revenue,CRNH LTD
Adult Social Care,Older People 65&Over inc OP-MH,OP Hosp - Nursing Care,Third Party Payments,Private Contractors,Miscellaneous Agency Services,10/10/2011,572,"2,341.84",Revenue,CRNH LTD
Adult Social Care,Older People 65&Over inc OP-MH,OP Hosp - Residential Care Ext,Third Party Payments,Private Contractors,Miscellaneous Agency Services,10/10/2011,573,517.83,Revenue,CRNH LTD
Adult Social Care,Older People 65&Over inc OP-MH,OP Hosp - Nursing Care,Third Party Payments,Private Contractors,Miscellaneous Agency Services,10/10/2011,574,"2,221.84",Revenue,CRNH LTD
Adult Social Care,Older People 65&Over inc OP-MH,OP Hosp - Residential Care Ext,Third Party Payments,Private Contractors,Miscellaneous Agency Services,10/10/2011,575,"2,265.50",Revenue,CRNH LTD
Adult Social Care,Older People 65&Over inc OP-MH,OP Hosp - Nursing Care,Third Party Payments,Private Contractors,Miscellaneous Agency Services,10/10/2011,576,"2,273.41",Revenue,ST. DOMINIC'S NURSING HOME
Adult Social Care,Adlt u65 Learning Disabilities,LD Residential Care External,Third Party Payments,Private Contractors,Miscellaneous Agency Services,10/10/2011,577,"4,700.00",Revenue,ST GEORGES RES. CARE HOME
Adult Social Care,Adlt u65 Learning Disabilities,LD Residential Care External,Third Party Payments,Private Contractors,Miscellaneous Agency Services,10/10/2011,578,"5,200.00",Revenue,ST GEORGES RES. CARE HOME
Adult Social Care,Older People 65&Over inc OP-MH,OP East - Nursing Care,Third Party Payments,Private Contractors,Miscellaneous Agency Services,10/10/2011,579,"1,392.86",Revenue,SOUTHERN CROSS HEALTHCARE LTD
Adult Social Care,Older People 65&Over inc OP-MH,OP West - Residential Care Ext,Third Party Payments,Private Contractors,Miscellaneous Agency Services,10/10/2011,580,"1,812.40",Revenue,SOUTHPARK RESIDENTIAL HOME
Adult Social Care,Older People 65&Over inc OP-MH,OP West - Residential Care Ext,Third Party Payments,Private Contractors,Miscellaneous Agency Services,10/10/2011,581,"2,000.00",Revenue,SOUTHPARK RESIDENTIAL HOME
Adult Social Care,Adult u65 Mental Health Needs,MH ResidentialCare Ext-Morden,Third Party Payments,Private Contractors,Miscellaneous Agency Services,10/10/2011,582,"1,043.96",Revenue,SOUTHPARK RESIDENTIAL HOME
Adult Social Care,Older People 65&Over inc OP-MH,OP East - Residential Care Ext,Third Party Payments,Private Contractors,Miscellaneous Agency Services,10/10/2011,583,"1,044.00",Revenue,SOUTHPARK RESIDENTIAL HOME
Adult Social Care,Older People 65&Over inc OP-MH,OP West - Residential Care Ext,Third Party Payments,Private Contractors,Miscellaneous Agency Services,10/10/2011,584,"1,784.20",Revenue,SOUTHPARK RESIDENTIAL HOME
Adult Social Care,Older People 65&Over inc OP-MH,OP East - Residential Care Ext,Third Party Payments,Private Contractors,Miscellaneous Agency Services,10/10/2011,585,"1,703.44",Revenue,SOUTHPARK RESIDENTIAL HOME
Adult Social Care,Older People 65&Over inc OP-MH,OP West - Residential Care Ext,Third Party Payments,Private Contractors,Miscellaneous Agency Services,10/10/2011,586,"1,812.40",Revenue,SOUTHPARK RESIDENTIAL HOME
Adult Social Care,Older People 65&Over inc OP-MH,OP East - Residential Care Ext,Third Party Payments,Private Contractors,Miscellaneous Agency Services,10/12/2011,587,"1,682.95",Revenue,ST MARY'S LODGE
Adult Social Care,Older People 65&Over inc OP-MH,OP West - Nursing Care,Third Party Payments,Private Contractors,Miscellaneous Agency Services,10/12/2011,588,"2,173.96",Revenue,THE WHITE HOUSE NURSING HOME
Adult Social Care,Older People 65&Over inc OP-MH,OP West - Nursing Care,Third Party Payments,Private Contractors,Miscellaneous Agency Services,10/12/2011,589,"2,233.00",Revenue,THE WHITE HOUSE NURSING HOME
Childrens & Education Services,Children Looked After (24hrs+),ART Independent Agency Foster,Supplies and Services,Services,Task Based Fostering,10/12/2011,590,"14,861.28",Revenue,HEATH FARM FAMILY SVS LTD.
Childrens & Education Services,Family Support Services,CS Children in Need Section 17,Transfer Payments,Adult Soc Servs Clients,Childr Act 1989 S17,10/10/2011,591,637.00,Revenue,THE NEW LEVEL OF LIFE
Adult Social Care,Asylum seekers,AS Child-Discret Pay (NoGrant),Third Party Payments,Private Contractors,Miscellaneous Agency Services,10/11/2011,592,571.56,Revenue,REDACTED
Childrens & Education Services,Family Support Services,CS Direct Payments,Third Party Payments,Private Contractors,Direct Payments,10/11/2011,593,"1,640.10",Revenue,REDACTED
Adult Social Care,Older People 65&Over inc OP-MH,OP East - Home Care External,Third Party Payments,Private Contractors,Miscellaneous Agency Services,10/11/2011,594,"1,008.00",Revenue,CARE UK
Adult Social Care,Older People 65&Over inc OP-MH,OP East - Residential Care Ext,Third Party Payments,Private Contractors,Miscellaneous Agency Services,10/11/2011,595,"1,887.90",Revenue,ABBEYGATE RESIDENTIAL HOME
Adult Social Care,Older People 65&Over inc OP-MH,OP Hosp - Nursing Care,Customer and client receipts,Charges,Miscellaneous Charges X,10/11/2011,596,-543.50,Revenue,LONDON RESIDENTIAL H/CARE LTD
Adult Social Care,Older People 65&Over inc OP-MH,OP Hosp - Nursing Care,Third Party Payments,Private Contractors,Miscellaneous Agency Services,10/11/2011,597,"2,654.87",Revenue,LONDON RESIDENTIAL H/CARE LTD
Adult Social Care,Older People 65&Over inc OP-MH,OP West - Nursing Care,Customer and client receipts,Charges,Miscellaneous Charges X,10/11/2011,598,-543.50,Revenue,LONDON RESIDENTIAL H/CARE LTD
Adult Social Care,Older People 65&Over inc OP-MH,OP West - Nursing Care,Third Party Payments,Private Contractors,Miscellaneous Agency Services,10/11/2011,599,"2,654.87",Revenue,LONDON RESIDENTIAL H/CARE LTD
Adult Social Care,Older People 65&Over inc OP-MH,OP East - Residential Care Ext,Third Party Payments,Private Contractors,Miscellaneous Agency Services,10/12/2011,600,"2,056.24",Revenue,BOLTERS CORNER CARE HOME
Adult Social Care,Older People 65&Over inc OP-MH,OP Hosp - Residential Care Ext,Third Party Payments,Private Contractors,Miscellaneous Agency Services,10/12/2011,601,"5,825.57",Revenue,BOWERCROFT CARE HOME
Adult Social Care,Adult u65 Phys/Sensory Impair,PD EAST TEAM-Residential,Third Party Payments,Private Contractors,Miscellaneous Agency Services,10/11/2011,602,"6,642.99",Revenue,BRAMBLEDOWN CARE HOME
Adult Social Care,Adlt u65 Learning Disabilities,LD Residential Care External,Third Party Payments,Private Contractors,Miscellaneous Agency Services,10/12/2011,603,"7,094.57",Revenue,CARRICKS BROOK
Adult Social Care,Older People 65&Over inc OP-MH,OP Hosp - Nursing Care,Third Party Payments,Private Contractors,Miscellaneous Agency Services,10/11/2011,604,907.14,Revenue,BUPA CARE HOMES
Adult Social Care,Older People 65&Over inc OP-MH,OP East - Nursing Care,Third Party Payments,Private Contractors,Miscellaneous Agency Services,10/11/2011,605,"2,895.68",Revenue,CARE UK
Adult Social Care,Older People 65&Over inc OP-MH,OP East - Nursing Care,Third Party Payments,Private Contractors,Miscellaneous Agency Services,10/11/2011,606,"2,805.19",Revenue,CARE UK
Adult Social Care,Older People 65&Over inc OP-MH,OP Hosp - Nursing Care,Third Party Payments,Private Contractors,Miscellaneous Agency Services,10/11/2011,607,"2,081.27",Revenue,CARE UK
Adult Social Care,Older People 65&Over inc OP-MH,OP Hosp - Nursing Care,Third Party Payments,Private Contractors,Miscellaneous Agency Services,10/11/2011,608,"2,714.70",Revenue,CARE UK
Adult Social Care,Older People 65&Over inc OP-MH,OP Hosp - Nursing Care,Third Party Payments,Private Contractors,Miscellaneous Agency Services,10/11/2011,609,"2,805.19",Revenue,CARE UK
Adult Social Care,Older People 65&Over inc OP-MH,OP Hosp - Nursing Care,Third Party Payments,Private Contractors,Miscellaneous Agency Services,10/11/2011,610,"2,805.19",Revenue,CARE UK
Adult Social Care,Older People 65&Over inc OP-MH,OP East - Nursing Care,Third Party Payments,Private Contractors,Miscellaneous Agency Services,10/11/2011,611,"2,805.19",Revenue,CARE UK
Adult Social Care,Older People 65&Over inc OP-MH,OP Hosp - Nursing Care,Third Party Payments,Private Contractors,Miscellaneous Agency Services,10/11/2011,612,"2,805.19",Revenue,CARE UK
Adult Social Care,Older People 65&Over inc OP-MH,OP Hosp - Nursing Care,Third Party Payments,Private Contractors,Miscellaneous Agency Services,10/11/2011,613,"2,805.19",Revenue,CARE UK
Adult Social Care,Older People 65&Over inc OP-MH,OP Hosp - Nursing Care,Third Party Payments,Private Contractors,Miscellaneous Agency Services,10/11/2011,614,"2,805.19",Revenue,CARE UK
Adult Social Care,Older People 65&Over inc OP-MH,OP East - Nursing Care,Third Party Payments,Private Contractors,Miscellaneous Agency Services,10/11/2011,615,"2,805.19",Revenue,CARE UK
Adult Social Care,Older People 65&Over inc OP-MH,OP Hosp - Residential Care Ext,Third Party Payments,Private Contractors,Miscellaneous Agency Services,10/11/2011,616,"1,571.43",Revenue,CARTER HOUSE
Adult Social Care,Older People 65&Over inc OP-MH,OP East - Residential Care Ext,Third Party Payments,Private Contractors,Miscellaneous Agency Services,10/11/2011,617,511.14,Revenue,CARTER HOUSE
Adult Social Care,Older People 65&Over inc OP-MH,OP Hosp - Residential Care Ext,Third Party Payments,Private Contractors,Miscellaneous Agency Services,10/11/2011,618,"1,257.14",Revenue,CARTER HOUSE
Adult Social Care,Older People 65&Over inc OP-MH,OP East - Residential Care Ext,Third Party Payments,Private Contractors,Miscellaneous Agency Services,10/11/2011,619,"1,717.80",Revenue,CHERRY TREE HOUSE
Adult Social Care,Older People 65&Over inc OP-MH,OP Hosp - Residential Care Ext,Third Party Payments,Private Contractors,Miscellaneous Agency Services,10/11/2011,620,"1,812.40",Revenue,CHERRY TREE HOUSE
Adult Social Care,Older People 65&Over inc OP-MH,OP West - Residential Care Ext,Third Party Payments,Private Contractors,Miscellaneous Agency Services,10/11/2011,621,"1,940.00",Revenue,CHERRY TREE HOUSE
Adult Social Care,Adlt u65 Learning Disabilities,LD Residential Care External,Third Party Payments,Private Contractors,Miscellaneous Agency Services,10/11/2011,622,"4,780.00",Revenue,GREENFIELD CARE HOMES LTD
Adult Social Care,Adlt u65 Learning Disabilities,LD Residential Care External,Third Party Payments,Private Contractors,Miscellaneous Agency Services,10/11/2011,623,"4,868.00",Revenue,GREENFIELD CARE HOMES LTD
Adult Social Care,Adlt u65 Learning Disabilities,LD Residential Care External,Third Party Payments,Private Contractors,Miscellaneous Agency Services,10/11/2011,624,"4,624.00",Revenue,GREENFIELD CARE HOMES LTD
Adult Social Care,Adlt u65 Learning Disabilities,LD Residential Care External,Third Party Payments,Private Contractors,Miscellaneous Agency Services,10/11/2011,625,"4,744.00",Revenue,GREENFIELD CARE HOMES LTD
Adult Social Care,Adlt u65 Learning Disabilities,LD Residential Care External,Third Party Payments,Private Contractors,Miscellaneous Agency Services,10/11/2011,626,"4,780.00",Revenue,GREENFIELD CARE HOMES LTD
Adult Social Care,Adlt u65 Learning Disabilities,LD Residential Care External,Third Party Payments,Private Contractors,Miscellaneous Agency Services,10/11/2011,627,"4,732.00",Revenue,GREENFIELD CARE HOMES LTD
Adult Social Care,Adlt u65 Learning Disabilities,LD Residential Care External,Third Party Payments,Private Contractors,Miscellaneous Agency Services,10/11/2011,628,"4,780.00",Revenue,GREENFIELD CARE HOMES LTD
Adult Social Care,Adlt u65 Learning Disabilities,LD Residential Care External,Third Party Payments,Private Contractors,Miscellaneous Agency Services,10/12/2011,629,"4,330.44",Revenue,HUNTERS' LODGE
Adult Social Care,Older People 65&Over inc OP-MH,OP West - Nursing Care,Third Party Payments,Private Contractors,Miscellaneous Agency Services,10/11/2011,630,585.46,Revenue,KELSTONE COURT NURSING HOME
Adult Social Care,Adult u65 Mental Health Needs,MH ResidentialCare Ext - Wim,Third Party Payments,Private Contractors,Miscellaneous Agency Services,10/11/2011,631,"3,171.08",Revenue,MENTAL HEALTH CARE (UK) LTD
Adult Social Care,Adlt u65 Learning Disabilities,LD Residential Care External,Customer and client receipts,Charges,Miscellaneous Charges X,10/12/2011,632,-573.75,Revenue,OAKDOWN HOUSE LTD
Adult Social Care,Adlt u65 Learning Disabilities,LD Residential Care External,Third Party Payments,Private Contractors,Miscellaneous Agency Services,10/12/2011,633,"2,214.05",Revenue,OAKDOWN HOUSE LTD
Adult Social Care,Older People 65&Over inc OP-MH,OP East - Residential Care Ext,Third Party Payments,Private Contractors,Miscellaneous Agency Services,10/11/2011,634,"6,328.00",Revenue,SUNRISE SENIOR LIVING RES.HOME
Adult Social Care,Older People 65&Over inc OP-MH,OP West - Residential Care Ext,Third Party Payments,Private Contractors,Miscellaneous Agency Services,10/12/2011,635,"1,812.40",Revenue,SWEET HOMES LTD
Adult Social Care,Adult u65 Mental Health Needs,MH Adult Placement Cont-Morden,Third Party Payments,Private Contractors,Accommodation Based Support,10/11/2011,636,848.96,Revenue,EL-SHADDAI
Adult Social Care,Adult u65 Mental Health Needs,MH Adult PlacementCont-MitWest,Third Party Payments,Private Contractors,Accommodation Based Support,10/11/2011,637,848.96,Revenue,EL-SHADDAI
Adult Social Care,Older People 65&Over inc OP-MH,OP East -Direct Payment Scheme,Third Party Payments,Private Contractors,Direct Payments,10/11/2011,638,"1,294.96",Revenue,REDACTED
Childrens & Education Services,Children Looked After (24hrs+),ART Residential Placements,Third Party Payments,Private Contractors,Miscellaneous Agency Services,10/11/2011,639,"16,221.55",Revenue,CASTLE HOMES CARE LIMITED
Childrens & Education Services,Children Looked After (24hrs+),ART Independent Agency Foster,Supplies and Services,Services,Task Based Fostering,10/11/2011,640,"4,114.68",Revenue,HILLCREST CARE LTD
Childrens & Education Services,Children Looked After (24hrs+),CL Fostering Services,Supplies and Services,Services,Task Based Fostering,10/11/2011,641,"1,560.88",Revenue,REDACTED
Childrens & Education Services,Children Looked After (24hrs+),CL Fostering Services,Supplies and Services,Services,Task Based Fostering,10/11/2011,642,"1,560.88",Revenue,REDACTED
Childrens & Education Services,Children Looked After (24hrs+),CL Fostering Services,Supplies and Services,Services,Task Based Fostering,10/11/2011,643,"1,502.66",Revenue,REDACTED
Childrens & Education Services,Children Looked After (24hrs+),CL Fostering Services,Supplies and Services,Services,Task Based Fostering,10/11/2011,644,739.20,Revenue,REDACTED
Childrens & Education Services,Children Looked After (24hrs+),CL Fostering Services,Supplies and Services,Services,Task Based Fostering,10/11/2011,645,"1,519.64",Revenue,REDACTED
Childrens & Education Services,Children Looked After (24hrs+),CL Fostering Services,Supplies and Services,Services,Task Based Fostering,10/11/2011,646,"2,266.12",Revenue,REDACTED
Childrens & Education Services,Children Looked After (24hrs+),CL Fostering Services,Supplies and Services,Services,Task Based Fostering,10/11/2011,647,"2,961.76",Revenue,REDACTED
Childrens & Education Services,Children Looked After (24hrs+),CL Fostering Services,Supplies and Services,Services,Task Based Fostering,10/11/2011,648,"1,560.88",Revenue,REDACTED
Childrens & Education Services,Children Looked After (24hrs+),CL Fostering Services,Supplies and Services,Services,Task Based Fostering,10/11/2011,649,"2,324.34",Revenue,REDACTED
Childrens & Education Services,Children Looked After (24hrs+),CL Fostering Services,Supplies and Services,Services,Task Based Fostering,10/11/2011,650,"1,519.64",Revenue,REDACTED
Childrens & Education Services,Children Looked After (24hrs+),CL Fostering Services,Supplies and Services,Services,Task Based Fostering,10/11/2011,651,956.98,Revenue,REDACTED
Childrens & Education Services,Children Looked After (24hrs+),CL Fostering Services,Supplies and Services,Services,Task Based Fostering,10/11/2011,652,"2,307.36",Revenue,REDACTED
Childrens & Education Services,Children Looked After (24hrs+),CL Fostering Services,Supplies and Services,Services,Task Based Fostering,10/11/2011,653,"1,560.88",Revenue,REDACTED
Childrens & Education Services,Children Looked After (24hrs+),CL Fostering Services,Supplies and Services,Services,Task Based Fostering,10/11/2011,654,"2,283.10",Revenue,REDACTED
Childrens & Education Services,Children Looked After (24hrs+),CL Fostering Services,Supplies and Services,Services,Task Based Fostering,10/11/2011,655,739.20,Revenue,REDACTED
Childrens & Education Services,Children Looked After (24hrs+),CL Fostering Services,Supplies and Services,Services,Task Based Fostering,10/11/2011,656,780.44,Revenue,REDACTED
Childrens & Education Services,Children Looked After (24hrs+),CL Fostering Services,Supplies and Services,Services,Task Based Fostering,10/11/2011,657,"1,543.90",Revenue,REDACTED
Childrens & Education Services,Children Looked After (24hrs+),CL Fostering Services,Supplies and Services,Services,Task Based Fostering,10/11/2011,658,"1,478.40",Revenue,REDACTED
Childrens & Education Services,Children Looked After (24hrs+),CL Fostering Services,Supplies and Services,Services,Task Based Fostering,10/11/2011,659,780.44,Revenue,REDACTED
Childrens & Education Services,Children Looked After (24hrs+),CL Fostering Services,Supplies and Services,Services,Task Based Fostering,10/11/2011,660,"2,241.86",Revenue,REDACTED
Childrens & Education Services,Children Looked After (24hrs+),CL Fostering Services,Supplies and Services,Services,Task Based Fostering,10/11/2011,661,844.80,Revenue,REDACTED
Childrens & Education Services,Children Looked After (24hrs+),CL Fostering Services,Supplies and Services,Services,Task Based Fostering,10/11/2011,662,"1,560.88",Revenue,REDACTED
Childrens & Education Services,Children Looked After (24hrs+),CL Fostering Services,Supplies and Services,Services,Task Based Fostering,10/11/2011,663,739.20,Revenue,REDACTED
Childrens & Education Services,Children Looked After (24hrs+),CL Fostering Services,Supplies and Services,Services,Task Based Fostering,10/11/2011,664,"1,502.66",Revenue,REDACTED
Childrens & Education Services,Children Looked After (24hrs+),CL Fostering Services,Supplies and Services,Services,Task Based Fostering,10/11/2011,665,"2,341.32",Revenue,REDACTED
Childrens & Education Services,Children Looked After (24hrs+),CL Fostering Services,Supplies and Services,Services,Task Based Fostering,10/11/2011,666,739.20,Revenue,REDACTED
Adult Social Care,Adult u65 Mental Health Needs,MH ResidentialCare Ext-Morden,Third Party Payments,Private Contractors,Miscellaneous Agency Services,10/31/2011,667,"2,321.90",Revenue,BROOKDALE HEALTH CARE
Adult Social Care,Adult u65 Mental Health Needs,MH Adult Placement Cont-Wim,Third Party Payments,Private Contractors,Accommodation Based Support,10/11/2011,668,"3,798.08",Revenue,SW LONDON ST GEORGES NHS TRUST
Adult Social Care,Adult u65 Mental Health Needs,HS Adult Placements,Third Party Payments,Private Contractors,Accommodation Based Support,10/12/2011,669,"1,112.00",Revenue,REDACTED
Adult Social Care,Adlt u65 Learning Disabilities,LD AdultPlacementCont,Third Party Payments,Private Contractors,Accommodation Based Support,10/12/2011,670,606.40,Revenue,REDACTED
Adult Social Care,Adult u65 Mental Health Needs,HS Adult Placements,Third Party Payments,Private Contractors,Accommodation Based Support,10/12/2011,671,"1,167.60",Revenue,REDACTED
Adult Social Care,Adult u65 Mental Health Needs,MH Adult Placement Cont-Wim,Third Party Payments,Private Contractors,Accommodation Based Support,10/12/2011,672,"4,622.78",Revenue,SW LONDON ST GEORGES NHS TRUST
Adult Social Care,Adult u65 Mental Health Needs,MH Other Serv - NRTPF,Third Party Payments,Private Contractors,Miscellaneous Agency Services,10/12/2011,673,"3,326.70",Revenue,ADMINLAND LTD
Adult Social Care,Older People 65&Over inc OP-MH,OP East - Other services,Third Party Payments,Private Contractors,Miscellaneous Agency Services,10/12/2011,674,500.00,Revenue,REDACTED
Adult Social Care,Adult u65 Phys/Sensory Impair,PS Other Serv - NRTPF,Third Party Payments,Private Contractors,Miscellaneous Agency Services,10/12/2011,675,692.28,Revenue,JOHN JOSEPH PROPERTY SERVICES
Adult Social Care,Adult u65 Phys/Sensory Impair,PD EAST TEAM-Other Services,Third Party Payments,Private Contractors,Miscellaneous Agency Services,10/12/2011,676,969.23,Revenue,JOHN JOSEPH PROPERTY SERVICES
Adult Social Care,Adult u65 Phys/Sensory Impair,PS Other Serv - NRTPF,Third Party Payments,Private Contractors,Miscellaneous Agency Services,10/12/2011,677,692.28,Revenue,JOHN JOSEPH PROPERTY SERVICES
Adult Social Care,Older People 65&Over inc OP-MH,OP East -Direct Payment Scheme,Third Party Payments,Private Contractors,Direct Payments,10/12/2011,678,745.52,Revenue,REDACTED
Adult Social Care,Adult u65 Phys/Sensory Impair,PD WEST TEAM-Direct Payment,Third Party Payments,Private Contractors,Direct Payments,10/12/2011,679,596.40,Revenue,REDACTED
Adult Social Care,Adlt u65 Learning Disabilities,LD Direct Payment Scheme,Third Party Payments,Private Contractors,Direct Payments,10/12/2011,680,"2,635.20",Revenue,REDACTED
Adult Social Care,Adult u65 Mental Health Needs,MH Direct Payment Scheme- West,Third Party Payments,Private Contractors,Direct Payments,10/12/2011,681,986.60,Revenue,REDACTED
Adult Social Care,Older People 65&Over inc OP-MH,OP East -Direct Payment Scheme,Third Party Payments,Private Contractors,Direct Payments,10/12/2011,682,596.40,Revenue,REDACTED
Adult Social Care,Older People 65&Over inc OP-MH,OP East -Direct Payment Scheme,Third Party Payments,Private Contractors,Direct Payments,10/12/2011,683,"3,230.76",Revenue,REDACTED
Adult Social Care,Older People 65&Over inc OP-MH,OP West -Direct Payment Scheme,Third Party Payments,Private Contractors,Direct Payments,10/12/2011,684,596.40,Revenue,REDACTED
Adult Social Care,Adult u65 Phys/Sensory Impair,PD EAST TEAM-Direct Payment,Third Party Payments,Private Contractors,Direct Payments,10/12/2011,685,"1,128.88",Revenue,REDACTED
Adult Social Care,Older People 65&Over inc OP-MH,OP Hosp -Direct Payment Scheme,Third Party Payments,Private Contractors,Direct Payments,10/12/2011,686,"1,661.40",Revenue,REDACTED
Adult Social Care,Older People 65&Over inc OP-MH,OP East -Direct Payment Scheme,Third Party Payments,Private Contractors,Direct Payments,10/12/2011,687,"1,813.40",Revenue,REDACTED
Adult Social Care,Adlt u65 Learning Disabilities,LD Direct Payment Scheme,Third Party Payments,Private Contractors,Direct Payments,10/12/2011,688,565.04,Revenue,REDACTED
Adult Social Care,Adult u65 Phys/Sensory Impair,PD EAST TEAM-Direct Payment,Third Party Payments,Private Contractors,Direct Payments,10/12/2011,689,839.61,Revenue,REDACTED
Adult Social Care,Adlt u65 Learning Disabilities,LD Day Care Agency,Third Party Payments,Private Contractors,Miscellaneous Agency Services,10/12/2011,690,575.00,Revenue,ACT TOO
Adult Social Care,Adult u65 Phys/Sensory Impair,PD EAST TEAM-Homecare,Third Party Payments,Private Contractors,Miscellaneous Agency Services,10/12/2011,691,664.62,Revenue,BELGRAVIA NURS. & CARE BUREAU
Adult Social Care,Adult u65 Phys/Sensory Impair,PD WEST TEAM-Homecare,Third Party Payments,Private Contractors,Miscellaneous Agency Services,10/12/2011,692,850.00,Revenue,BELGRAVIA NURS. & CARE BUREAU
Adult Social Care,Adult u65 Phys/Sensory Impair,PD WEST TEAM-Homecare,Third Party Payments,Private Contractors,Miscellaneous Agency Services,10/12/2011,693,664.62,Revenue,BELGRAVIA NURS. & CARE BUREAU
Adult Social Care,Adult u65 Phys/Sensory Impair,PD EAST TEAM-Homecare,Third Party Payments,Private Contractors,Miscellaneous Agency Services,10/12/2011,694,664.62,Revenue,BELGRAVIA NURS. & CARE BUREAU
Adult Social Care,Adlt u65 Learning Disabilities,LD Day Care Agency,Third Party Payments,Private Contractors,Miscellaneous Agency Services,10/12/2011,695,954.08,Revenue,BRIGSTOCK ACTIVITY CENTRE
Adult Social Care,Older People 65&Over inc OP-MH,OP West - Home Care External,Third Party Payments,Private Contractors,Miscellaneous Agency Services,10/12/2011,696,"2,078.82",Revenue,COMPASSIONATE CARING AGENCY UK
Adult Social Care,Older People 65&Over inc OP-MH,OP West - Home Care External,Third Party Payments,Private Contractors,Miscellaneous Agency Services,10/12/2011,697,"1,327.25",Revenue,COMPASSIONATE CARING AGENCY UK
Adult Social Care,Adult u65 Phys/Sensory Impair,PD WEST TEAM-Homecare,Third Party Payments,Private Contractors,Miscellaneous Agency Services,10/12/2011,698,"1,490.88",Revenue,COMPASSIONATE CARING AGENCY UK
Adult Social Care,Adult u65 Phys/Sensory Impair,PD EAST TEAM-Homecare,Third Party Payments,Private Contractors,Miscellaneous Agency Services,10/12/2011,699,"1,727.98",Revenue,COMPASSIONATE CARING AGENCY UK
Adult Social Care,Older People 65&Over inc OP-MH,OP West - Home Care External,Third Party Payments,Private Contractors,Miscellaneous Agency Services,10/12/2011,700,"2,456.88",Revenue,COMPASSIONATE CARING AGENCY UK
Adult Social Care,Older People 65&Over inc OP-MH,OP Hosp - Home Care External,Third Party Payments,Private Contractors,Miscellaneous Agency Services,10/12/2011,701,"1,305.70",Revenue,COMPASSIONATE CARING AGENCY UK
Adult Social Care,Older People 65&Over inc OP-MH,OP East - Home Care External,Third Party Payments,Private Contractors,Miscellaneous Agency Services,10/12/2011,702,"1,956.76",Revenue,COMPASSIONATE CARING AGENCY UK
Adult Social Care,Adult u65 Phys/Sensory Impair,PD EAST TEAM-Homecare,Third Party Payments,Private Contractors,Miscellaneous Agency Services,10/12/2011,703,"2,076.67",Revenue,COMPASSIONATE CARING AGENCY UK
Adult Social Care,Older People 65&Over inc OP-MH,OP West - Home Care External,Third Party Payments,Private Contractors,Miscellaneous Agency Services,10/12/2011,704,"2,034.30",Revenue,COMPASSIONATE CARING AGENCY UK
Adult Social Care,Older People 65&Over inc OP-MH,OP East - Home Care External,Third Party Payments,Private Contractors,Miscellaneous Agency Services,10/12/2011,705,"1,849.18",Revenue,COMPASSIONATE CARING AGENCY UK
Adult Social Care,Older People 65&Over inc OP-MH,OP East - Home Care External,Third Party Payments,Private Contractors,Miscellaneous Agency Services,10/12/2011,706,"2,418.24",Revenue,COMPASSIONATE CARING AGENCY UK
Adult Social Care,Adult u65 Mental Health Needs,MH Day Care - Mitcham West,Third Party Payments,Private Contractors,Miscellaneous Agency Services,10/12/2011,707,"1,305.36",Revenue,NAS SERVICES LIMITED
Adult Social Care,Adlt u65 Learning Disabilities,LD Home Care External,Third Party Payments,Private Contractors,Miscellaneous Agency Services,10/12/2011,708,"3,140.08",Revenue,ODYSSEY CARE SOLUTIONS
Adult Social Care,Adult u65 Phys/Sensory Impair,PD EAST TEAM-Homecare,Third Party Payments,Private Contractors,Miscellaneous Agency Services,10/12/2011,709,672.00,Revenue,REDACTED
Adult Social Care,Adlt u65 Learning Disabilities,LD Comm -Home Care-Surrey Oak,Third Party Payments,Private Contractors,Miscellaneous Agency Services,10/12/2011,710,"8,485.71",Revenue,PRECIOUS HOMES LTD
Adult Social Care,Adlt u65 Learning Disabilities,LD Home Care External,Third Party Payments,Private Contractors,Miscellaneous Agency Services,10/12/2011,711,"7,971.43",Revenue,PRECIOUS HOMES LTD
Adult Social Care,Adult u65 Phys/Sensory Impair,PD EAST TEAM-Homecare,Third Party Payments,Private Contractors,Miscellaneous Agency Services,10/12/2011,712,867.60,Revenue,RNIB REDHILL COLLEGE
Adult Social Care,Adult u65 Mental Health Needs,MH Home Care External - Wim,Third Party Payments,Private Contractors,Miscellaneous Agency Services,10/12/2011,713,"1,966.80",Revenue,RNIB REDHILL COLLEGE
Adult Social Care,Adult u65 Phys/Sensory Impair,PD EAST TEAM-Homecare,Third Party Payments,Private Contractors,Miscellaneous Agency Services,10/12/2011,714,800.00,Revenue,RNIB REDHILL COLLEGE
Adult Social Care,Older People 65&Over inc OP-MH,OP West - Home Care External,Third Party Payments,Private Contractors,Miscellaneous Agency Services,10/12/2011,715,561.60,Revenue,TOOTING NEIGHBOURHOOD CENTRE
Adult Social Care,Older People 65&Over inc OP-MH,OP West - Home Care External,Third Party Payments,Private Contractors,Miscellaneous Agency Services,10/12/2011,716,643.50,Revenue,TOOTING NEIGHBOURHOOD CENTRE
Adult Social Care,Older People 65&Over inc OP-MH,OP West - Home Care External,Third Party Payments,Private Contractors,Miscellaneous Agency Services,10/12/2011,717,713.70,Revenue,TOOTING NEIGHBOURHOOD CENTRE
Adult Social Care,Older People 65&Over inc OP-MH,OP West - Home Care External,Third Party Payments,Private Contractors,Miscellaneous Agency Services,10/12/2011,718,631.50,Revenue,TOOTING NEIGHBOURHOOD CENTRE
Adult Social Care,Older People 65&Over inc OP-MH,OP West - Home Care External,Third Party Payments,Private Contractors,Miscellaneous Agency Services,10/12/2011,719,565.20,Revenue,TOOTING NEIGHBOURHOOD CENTRE
Adult Social Care,Older People 65&Over inc OP-MH,OP West - Home Care External,Third Party Payments,Private Contractors,Miscellaneous Agency Services,10/12/2011,720,561.60,Revenue,TOOTING NEIGHBOURHOOD CENTRE
Adult Social Care,Older People 65&Over inc OP-MH,OP West - Home Care External,Third Party Payments,Private Contractors,Miscellaneous Agency Services,10/12/2011,721,561.60,Revenue,TOOTING NEIGHBOURHOOD CENTRE
Adult Social Care,Older People 65&Over inc OP-MH,OP West - Home Care External,Third Party Payments,Private Contractors,Miscellaneous Agency Services,10/12/2011,722,631.50,Revenue,TOOTING NEIGHBOURHOOD CENTRE
Adult Social Care,Older People 65&Over inc OP-MH,OP West - Home Care External,Third Party Payments,Private Contractors,Miscellaneous Agency Services,10/12/2011,723,561.60,Revenue,TOOTING NEIGHBOURHOOD CENTRE
Adult Social Care,Older People 65&Over inc OP-MH,OP West - Home Care External,Third Party Payments,Private Contractors,Miscellaneous Agency Services,10/12/2011,724,561.60,Revenue,TOOTING NEIGHBOURHOOD CENTRE
Adult Social Care,Older People 65&Over inc OP-MH,OP West - Home Care External,Third Party Payments,Private Contractors,Miscellaneous Agency Services,10/12/2011,725,561.60,Revenue,TOOTING NEIGHBOURHOOD CENTRE
Adult Social Care,Older People 65&Over inc OP-MH,OP West - Home Care External,Third Party Payments,Private Contractors,Miscellaneous Agency Services,10/12/2011,726,561.60,Revenue,TOOTING NEIGHBOURHOOD CENTRE
Adult Social Care,Older People 65&Over inc OP-MH,OP West - Home Care External,Third Party Payments,Private Contractors,Miscellaneous Agency Services,10/12/2011,727,561.60,Revenue,TOOTING NEIGHBOURHOOD CENTRE
Adult Social Care,Older People 65&Over inc OP-MH,OP West - Home Care External,Third Party Payments,Private Contractors,Miscellaneous Agency Services,10/12/2011,728,561.60,Revenue,TOOTING NEIGHBOURHOOD CENTRE
Adult Social Care,Older People 65&Over inc OP-MH,OP West - Home Care External,Third Party Payments,Private Contractors,Miscellaneous Agency Services,10/12/2011,729,561.60,Revenue,TOOTING NEIGHBOURHOOD CENTRE
Adult Social Care,Older People 65&Over inc OP-MH,OP West - Home Care External,Third Party Payments,Private Contractors,Miscellaneous Agency Services,10/12/2011,730,514.80,Revenue,TOOTING NEIGHBOURHOOD CENTRE
Adult Social Care,Older People 65&Over inc OP-MH,OP East - Residential Care Ext,Third Party Payments,Private Contractors,Miscellaneous Agency Services,10/12/2011,731,"2,120.00",Revenue,ALBA ROSE RESIDENTIAL HOME
Adult Social Care,Adult u65 Mental Health Needs,MH ResidentialCare Ext - Wim,Third Party Payments,Private Contractors,Miscellaneous Agency Services,10/12/2011,732,"1,524.76",Revenue,ALDWICK RESIDENTIAL CARE HOME
Adult Social Care,Adult u65 Mental Health Needs,MH ResidentialCare Ext - Wim,Third Party Payments,Private Contractors,Miscellaneous Agency Services,10/12/2011,733,"2,756.36",Revenue,ASRA G.LONDON HOUSING ASS.LTD
Adult Social Care,Adlt u65 Learning Disabilities,LD Residential Care External,Third Party Payments,Private Contractors,Miscellaneous Agency Services,10/12/2011,734,"1,830.80",Revenue,ASRA G.LONDON HOUSING ASS.LTD
Adult Social Care,Adult u65 Mental Health Needs,MH Hostels/B & B - NRTPF,Third Party Payments,Private Contractors,Miscellaneous Agency Services,10/12/2011,735,"1,380.40",Revenue,ASTRA HOMES
Adult Social Care,Adult u65 Mental Health Needs,MH Hostels/B & B- Mitcham West,Third Party Payments,Private Contractors,Miscellaneous Agency Services,10/12/2011,736,"1,000.00",Revenue,ASTRA HOMES
Adult Social Care,Adult u65 Mental Health Needs,MH Hostels/ B & B - Wim,Third Party Payments,Private Contractors,Miscellaneous Agency Services,10/12/2011,737,"1,222.04",Revenue,ASTRA HOMES
Adult Social Care,Adult u65 Mental Health Needs,MH Hostels/ B & B - Wim,Third Party Payments,Private Contractors,Miscellaneous Agency Services,10/12/2011,738,763.24,Revenue,ASTRA HOMES
Adult Social Care,Adult u65 Mental Health Needs,MH Res Care Ext- Mitcham West,Third Party Payments,Private Contractors,Miscellaneous Agency Services,10/12/2011,739,"2,074.72",Revenue,ASTRA HOMES
Adult Social Care,Adlt u65 Learning Disabilities,LD Supported Housing,Third Party Payments,Private Contractors,Miscellaneous Agency Services,10/12/2011,740,965.68,Revenue,ASTRA HOMES
Adult Social Care,Adlt u65 Learning Disabilities,LD Supported Housing,Third Party Payments,Private Contractors,Miscellaneous Agency Services,10/12/2011,741,"1,287.68",Revenue,ASTRA HOMES
Adult Social Care,Older People 65&Over inc OP-MH,OP East - Nursing Care,Third Party Payments,Private Contractors,Miscellaneous Agency Services,10/12/2011,742,"3,353.84",Revenue,BRENDON CARE FOUNDATION
Adult Social Care,Adlt u65 Learning Disabilities,LD Residential Care External,Third Party Payments,Private Contractors,Miscellaneous Agency Services,10/12/2011,743,"3,798.04",Revenue,BRIGSTOCK HOUSE
Adult Social Care,Older People 65&Over inc OP-MH,OP Hosp - Residential Care Ext,Third Party Payments,Private Contractors,Miscellaneous Agency Services,10/12/2011,744,"2,200.00",Revenue,REDACTED
Adult Social Care,Older People 65&Over inc OP-MH,OP West - Nursing Care,Third Party Payments,Private Contractors,Miscellaneous Agency Services,10/12/2011,745,"2,406.60",Revenue,BUPA CARE HOMES
Adult Social Care,Adult u65 Phys/Sensory Impair,PD EAST TEAM-Nursing,Third Party Payments,Private Contractors,Miscellaneous Agency Services,10/12/2011,746,"2,819.80",Revenue,BUPA CARE HOMES
Adult Social Care,Older People 65&Over inc OP-MH,OP West - Residential Care Ext,Third Party Payments,Private Contractors,Miscellaneous Agency Services,10/12/2011,747,"3,995.00",Revenue,BUPA CARE HOMES
Adult Social Care,Older People 65&Over inc OP-MH,OP Hosp - Residential Care Ext,Third Party Payments,Private Contractors,Miscellaneous Agency Services,10/12/2011,748,"12,165.92",Revenue,BUPA CARE HOMES
Adult Social Care,Older People 65&Over inc OP-MH,OP Hosp - Nursing Care,Third Party Payments,Private Contractors,Miscellaneous Agency Services,10/12/2011,749,"12,448.60",Revenue,BUPA CARE HOMES
Adult Social Care,Older People 65&Over inc OP-MH,OP East - Residential Care Ext,Third Party Payments,Private Contractors,Miscellaneous Agency Services,10/12/2011,750,"14,754.05",Revenue,BUPA CARE HOMES
Adult Social Care,Older People 65&Over inc OP-MH,OP East - Nursing Care,Third Party Payments,Private Contractors,Miscellaneous Agency Services,10/12/2011,751,"21,659.40",Revenue,BUPA CARE HOMES
Adult Social Care,Older People 65&Over inc OP-MH,OP Hosp - Nursing Care,Third Party Payments,Private Contractors,Miscellaneous Agency Services,10/12/2011,752,"1,117.35",Revenue,BUPA CARE HOMES
Adult Social Care,Adlt u65 Learning Disabilities,LD Residential Care External,Third Party Payments,Private Contractors,Miscellaneous Agency Services,10/12/2011,753,"2,471.60",Revenue,CANTERBURY OAST TRUST LTD
Adult Social Care,Adult u65 Mental Health Needs,MH Nursing Care - Morden,Third Party Payments,Private Contractors,Miscellaneous Agency Services,10/12/2011,754,"2,716.52",Revenue,CARE UNLIMITED
Adult Social Care,Adult u65 Mental Health Needs,MH Nursing Care - Morden,Third Party Payments,Private Contractors,Miscellaneous Agency Services,10/12/2011,755,"2,716.52",Revenue,CARE UNLIMITED
Adult Social Care,Adlt u65 Learning Disabilities,LD Residential Care External,Third Party Payments,Private Contractors,Miscellaneous Agency Services,10/12/2011,756,"7,951.81",Revenue,CARE ASPIRATIONS LIMITED
Adult Social Care,Older People 65&Over inc OP-MH,OP East - Residential Care Ext,Third Party Payments,Private Contractors,Miscellaneous Agency Services,10/12/2011,757,"1,840.00",Revenue,CHARLTON HOUSE
Adult Social Care,Older People 65&Over inc OP-MH,OP East - Residential Care Ext,Third Party Payments,Private Contractors,Miscellaneous Agency Services,10/12/2011,758,"1,840.00",Revenue,CHARLTON HOUSE
Adult Social Care,Older People 65&Over inc OP-MH,OP East - Nursing Care,Third Party Payments,Private Contractors,Miscellaneous Agency Services,10/12/2011,759,"2,540.00",Revenue,REDACTED
Adult Social Care,Older People 65&Over inc OP-MH,OP Hosp - Nursing Care,Third Party Payments,Private Contractors,Miscellaneous Agency Services,10/12/2011,760,"2,746.40",Revenue,CHELSTON PARK
Adult Social Care,Adlt u65 Learning Disabilities,LD Residential Care External,Third Party Payments,Private Contractors,Miscellaneous Agency Services,10/12/2011,761,"4,460.92",Revenue,REDACTED
Adult Social Care,Older People 65&Over inc OP-MH,OP Hosp - Residential Care Ext,Third Party Payments,Private Contractors,Miscellaneous Agency Services,10/12/2011,762,"2,701.43",Revenue,AVERY HOMES LEEDS
Adult Social Care,Older People 65&Over inc OP-MH,OP West - Nursing Care,Third Party Payments,Private Contractors,Miscellaneous Agency Services,10/12/2011,763,"2,354.80",Revenue,GALLEON CARE HOMES LTD
Adult Social Care,Older People 65&Over inc OP-MH,OP West - Nursing Care,Third Party Payments,Private Contractors,Miscellaneous Agency Services,10/12/2011,764,"2,354.80",Revenue,GALLEON CARE HOMES LTD
Adult Social Care,Adult u65 Mental Health Needs,MH ResidentialCare Ext - Wim,Third Party Payments,Private Contractors,Miscellaneous Agency Services,10/12/2011,765,"3,552.52",Revenue,COMMUNITY HOUSING & THERAPY
Adult Social Care,Adult u65 Mental Health Needs,MH Res Care Ext- Mitcham West,Third Party Payments,Private Contractors,Miscellaneous Agency Services,10/12/2011,766,"3,900.00",Revenue,COMMUNITY HOUSING & THERAPY
Adult Social Care,Adlt u65 Learning Disabilities,LD Residential Care External,Third Party Payments,Private Contractors,Miscellaneous Agency Services,10/12/2011,767,"1,610.00",Revenue,GREENFIELD CARE HOMES LTD
Adult Social Care,Older People 65&Over inc OP-MH,OP East - Nursing Care,Third Party Payments,Private Contractors,Miscellaneous Agency Services,10/12/2011,768,"2,341.84",Revenue,HOPELIT UK LTD
Adult Social Care,Adlt u65 Learning Disabilities,LD Residential Care External,Third Party Payments,Private Contractors,Miscellaneous Agency Services,10/12/2011,769,"5,288.83",Revenue,KENT AUTISTIC TRUST
Adult Social Care,Adlt u65 Learning Disabilities,LD Nursing Care,Third Party Payments,Private Contractors,Miscellaneous Agency Services,10/12/2011,770,"5,884.32",Revenue,SUSSEX HEALTH CARE
Adult Social Care,Adlt u65 Learning Disabilities,LD Residential Care External,Third Party Payments,Private Contractors,Miscellaneous Agency Services,10/12/2011,771,"6,552.00",Revenue,SUSSEX HEALTH CARE
Adult Social Care,Older People 65&Over inc OP-MH,OP Hosp - Nursing Care,Third Party Payments,Private Contractors,Miscellaneous Agency Services,10/12/2011,772,"2,552.88",Revenue,LODORE NURSING HOME
Adult Social Care,Older People 65&Over inc OP-MH,OP Hosp - Nursing Care,Third Party Payments,Private Contractors,Miscellaneous Agency Services,10/12/2011,773,"2,552.88",Revenue,LODORE NURSING HOME
Adult Social Care,Older People 65&Over inc OP-MH,OP Hosp - Nursing Care,Third Party Payments,Private Contractors,Miscellaneous Agency Services,10/12/2011,774,"2,552.88",Revenue,LODORE NURSING HOME
Adult Social Care,Older People 65&Over inc OP-MH,OP Hosp - Nursing Care,Third Party Payments,Private Contractors,Miscellaneous Agency Services,10/12/2011,775,"2,279.36",Revenue,LODORE NURSING HOME
Adult Social Care,Adlt u65 Learning Disabilities,LD Residential Care External,Third Party Payments,Private Contractors,Miscellaneous Agency Services,10/12/2011,776,"2,904.52",Revenue,ST MICHAEL'S ADULT SERVICES
Adult Social Care,Adlt u65 Learning Disabilities,LD Residential Care External,Customer and client receipts,Charges,Miscellaneous Charges X,10/12/2011,777,-837.20,Revenue,TRACESCENT LIMITED
Adult Social Care,Adlt u65 Learning Disabilities,LD Residential Care External,Third Party Payments,Private Contractors,Miscellaneous Agency Services,10/12/2011,778,"9,350.12",Revenue,TRACESCENT LIMITED
Adult Social Care,Adlt u65 Learning Disabilities,LD Residential Care External,Third Party Payments,Private Contractors,Miscellaneous Agency Services,10/12/2011,779,"4,356.00",Revenue,REDACTED
Adult Social Care,Adlt u65 Learning Disabilities,LD Residential Care External,Third Party Payments,Private Contractors,Miscellaneous Agency Services,10/12/2011,780,"5,535.52",Revenue,THE REGARD PARTNERSHIP LTD
Adult Social Care,Adlt u65 Learning Disabilities,LD Residential Care External,Third Party Payments,Private Contractors,Miscellaneous Agency Services,10/12/2011,781,"5,536.00",Revenue,THE REGARD PARTNERSHIP LTD
Adult Social Care,Adlt u65 Learning Disabilities,LD Residential Care External,Third Party Payments,Private Contractors,Miscellaneous Agency Services,10/12/2011,782,"5,200.00",Revenue,THE REGARD PARTNERSHIP LTD
Adult Social Care,Adult u65 Phys/Sensory Impair,PD EAST TEAM-Residential,Third Party Payments,Private Contractors,Miscellaneous Agency Services,10/12/2011,783,"5,068.72",Revenue,RNIB REDHILL COLLEGE
Adult Social Care,Adlt u65 Learning Disabilities,LD Residential Care External,Third Party Payments,Private Contractors,Miscellaneous Agency Services,10/12/2011,784,"7,618.16",Revenue,SOLAR CARE GROUP LTD - ROBINIA
Adult Social Care,Adlt u65 Learning Disabilities,LD Residential Care External,Third Party Payments,Private Contractors,Miscellaneous Agency Services,10/12/2011,785,"5,269.88",Revenue,SOLAR CARE GROUP LTD - ROBINIA
Adult Social Care,Adlt u65 Learning Disabilities,LD Residential Care External,Third Party Payments,Private Contractors,Miscellaneous Agency Services,10/12/2011,786,"6,757.04",Revenue,SOLAR CARE GROUP LTD - ROBINIA
Adult Social Care,Older People 65&Over inc OP-MH,OP East - Nursing Care,Third Party Payments,Private Contractors,Miscellaneous Agency Services,10/12/2011,787,"2,341.84",Revenue,ST JOHNS NURSING HOME
Adult Social Care,Older People 65&Over inc OP-MH,OP East - Nursing Care,Third Party Payments,Private Contractors,Miscellaneous Agency Services,10/12/2011,788,"2,341.84",Revenue,ST JOHNS NURSING HOME
Adult Social Care,Older People 65&Over inc OP-MH,OP West - Nursing Care,Third Party Payments,Private Contractors,Miscellaneous Agency Services,10/12/2011,789,"2,400.00",Revenue,ST TERESA`S HOME FORTHE ELDER
Adult Social Care,Older People 65&Over inc OP-MH,OP West - Nursing Care,Third Party Payments,Private Contractors,Miscellaneous Agency Services,10/12/2011,790,"2,199.12",Revenue,ST TERESA`S HOME FORTHE ELDER
Adult Social Care,Adult u65 Phys/Sensory Impair,PD EAST TEAM-Residential,Third Party Payments,Private Contractors,Miscellaneous Agency Services,10/12/2011,791,"1,185.00",Revenue,VITALISE
Adult Social Care,Older People 65&Over inc OP-MH,OP East - Residential Care Ext,Third Party Payments,Private Contractors,Miscellaneous Agency Services,10/12/2011,792,"1,551.84",Revenue,WILLETT LODGE
Childrens & Education Services,Children Looked After (24hrs+),ART Residential Placements,Third Party Payments,Private Contractors,Miscellaneous Agency Services,10/12/2011,793,"16,221.55",Revenue,CASTLE HOMES CARE LIMITED
Childrens & Education Services,Children Looked After (24hrs+),ART Independent Agency Foster,Supplies and Services,Services,Task Based Fostering,10/12/2011,794,"3,296.64",Revenue,CROHAM SERV.FOR CHILDREN LTD
Childrens & Education Services,Children Looked After (24hrs+),ART Independent Agency Foster,Supplies and Services,Services,Task Based Fostering,10/12/2011,795,"6,811.14",Revenue,FOCUSED FOSTERING
Childrens & Education Services,Other Ch's & Family Services,CL Leaving Care/Supp Lodgings,Third Party Payments,Private Contractors,Supported Lodgings,10/12/2011,796,600.00,Revenue,REDACTED
Childrens & Education Services,Other Ch's & Family Services,CL Leaving Care/Supp Lodgings,Third Party Payments,Private Contractors,Supported Lodgings,10/12/2011,797,800.00,Revenue,REDACTED
Childrens & Education Services,Children Looked After (24hrs+),ART Independent Agency Foster,Supplies and Services,Services,Task Based Fostering,10/12/2011,798,"6,167.84",Revenue,THE NATIONAL FOSTERING AGENCY
Childrens & Education Services,Children Looked After (24hrs+),ART Residential Secure accommo,Third Party Payments,Private Contractors,Miscellaneous Agency Services,10/12/2011,799,"3,594.00",Revenue,NOTTINGHAMSHIRE COUNTY COUNCIL
Childrens & Education Services,Other Ch's & Family Services,CL Leaving Care/Supp Lodgings,Third Party Payments,Private Contractors,Miscellaneous Agency Services,10/12/2011,800,996.32,Revenue,NOTTING HILL HOUSING
Childrens & Education Services,Other Ch's & Family Services,CL Leaving Care/Supp Lodgings,Third Party Payments,Private Contractors,Miscellaneous Agency Services,10/12/2011,801,"1,360.00",Revenue,RBS INVOICE FINANCE LIMITED
Childrens & Education Services,Other Ch's & Family Services,CL Leaving Care/Supp Lodgings,Third Party Payments,Private Contractors,Miscellaneous Agency Services,10/12/2011,802,960.00,Revenue,RBS INVOICE FINANCE LIMITED
Childrens & Education Services,Other Ch's & Family Services,CL Leaving Care/Supp Lodgings,Third Party Payments,Private Contractors,Miscellaneous Agency Services,10/12/2011,803,"1,280.00",Revenue,RBS INVOICE FINANCE LIMITED
Childrens & Education Services,Other Ch's & Family Services,CL Leaving Care/Supp Lodgings,Third Party Payments,Private Contractors,Supported Lodgings,10/12/2011,804,800.00,Revenue,REDACTED
Childrens & Education Services,Other Ch's & Family Services,CL Leaving Care/Supp Lodgings,Third Party Payments,Private Contractors,Supported Lodgings,10/12/2011,805,600.00,Revenue,REDACTED
Adult Social Care,Adlt u65 Learning Disabilities,LD Other Services,Third Party Payments,Private Contractors,Miscellaneous Agency Services,10/13/2011,806,990.00,Revenue,TOTAL PROPERTY SERVICES
Adult Social Care,Older People 65&Over inc OP-MH,OP West - Misc services,Third Party Payments,Private Contractors,Miscellaneous Agency Services,10/13/2011,807,"1,023.90",Revenue,TOTAL PROPERTY SERVICES
Adult Social Care,Adlt u65 Learning Disabilities,LD Home Care External,Third Party Payments,Private Contractors,Miscellaneous Agency Services,10/13/2011,808,"2,757.00",Revenue,ABLE COMMUNITY CARE LTD
Adult Social Care,Adult u65 Phys/Sensory Impair,PS Home Care External - NRTPF,Third Party Payments,Private Contractors,Miscellaneous Agency Services,10/13/2011,809,"1,080.00",Revenue,SUTTON COURT CARE CENTRE
Adult Social Care,Older People 65&Over inc OP-MH,OP West - Nursing Care,Third Party Payments,Private Contractors,Miscellaneous Agency Services,10/13/2011,810,"2,233.68",Revenue,GARTH HOUSE NURSING HOME
Adult Social Care,Adlt u65 Learning Disabilities,LD Comm -Residential-Campus Hm,Third Party Payments,Private Contractors,Miscellaneous Agency Services,10/14/2011,811,"7,117.04",Revenue,HARBOUR CARE GROUP
Adult Social Care,Adlt u65 Learning Disabilities,LD Residential Care External,Third Party Payments,Private Contractors,Miscellaneous Agency Services,10/13/2011,812,"3,521.24",Revenue,HAYDON PARK LODGE
Adult Social Care,Adlt u65 Learning Disabilities,LD Residential Care External,Third Party Payments,Private Contractors,Miscellaneous Agency Services,10/13/2011,813,"2,719.32",Revenue,HAYDON PARK LODGE
Adult Social Care,Adlt u65 Learning Disabilities,LD Residential Care External,Third Party Payments,Private Contractors,Miscellaneous Agency Services,10/13/2011,814,"1,975.24",Revenue,HAYDON PARK LODGE
Adult Social Care,Adlt u65 Learning Disabilities,LD Residential Care External,Third Party Payments,Private Contractors,Miscellaneous Agency Services,10/13/2011,815,"3,720.00",Revenue,HAYDON PARK LODGE
Adult Social Care,Adlt u65 Learning Disabilities,LD Residential Care External,Third Party Payments,Private Contractors,Miscellaneous Agency Services,10/13/2011,816,"2,458.36",Revenue,HAYDON PARK LODGE
Adult Social Care,Adlt u65 Learning Disabilities,LD Residential Care External,Third Party Payments,Private Contractors,Miscellaneous Agency Services,10/13/2011,817,"2,816.00",Revenue,HAYDON PARK LODGE
Adult Social Care,Adlt u65 Learning Disabilities,LD Residential Care External,Third Party Payments,Private Contractors,Miscellaneous Agency Services,10/13/2011,818,"3,532.48",Revenue,HAYDON PARK LODGE
Adult Social Care,Adlt u65 Learning Disabilities,LD Residential Care External,Third Party Payments,Private Contractors,Miscellaneous Agency Services,10/13/2011,819,"3,451.00",Revenue,HAYDON PARK LODGE
Adult Social Care,Older People 65&Over inc OP-MH,OP Hosp - Residential Care Ext,Third Party Payments,Private Contractors,Miscellaneous Agency Services,10/14/2011,820,"1,812.40",Revenue,REDACTED
Adult Social Care,Older People 65&Over inc OP-MH,OP Hosp - Residential Care Ext,Third Party Payments,Private Contractors,Miscellaneous Agency Services,10/14/2011,821,"1,812.40",Revenue,REDACTED
Adult Social Care,Older People 65&Over inc OP-MH,OP Hosp - Residential Care Ext,Third Party Payments,Private Contractors,Miscellaneous Agency Services,10/14/2011,822,"1,812.40",Revenue,REDACTED
Adult Social Care,Adlt u65 Learning Disabilities,LD Residential Care External,Third Party Payments,Private Contractors,Miscellaneous Agency Services,10/14/2011,823,"5,600.00",Revenue,REDACTED
Adult Social Care,Other Adult Services,MH Residential Care Ext- SM&A,Customer and client receipts,Charges,Bd&Acc-contrib coll by home X,10/13/2011,824,"-1,310.46",Revenue,STREETSCENE
Adult Social Care,Other Adult Services,MH Residential Care Ext- SM&A,Third Party Payments,Private Contractors,Miscellaneous Agency Services,10/13/2011,825,"7,489.07",Revenue,STREETSCENE
Adult Social Care,Older People 65&Over inc OP-MH,OP West - Nursing Care,Third Party Payments,Private Contractors,Miscellaneous Agency Services,10/13/2011,826,"1,170.92",Revenue,SUTTON COURT CARE CENTRE
Childrens & Education Services,Family Support Services,CS Direct Payments,Third Party Payments,Private Contractors,Direct Payments,10/13/2011,827,841.00,Revenue,REDACTED
Childrens & Education Services,Other Ch's & Family Services,CL Setting Up Home Allowance,Third Party Payments,Private Contractors,Miscellaneous Agency Services,10/13/2011,828,750.00,Revenue,REDACTED
Childrens & Education Services,Family Support Services,CS Direct Payments,Third Party Payments,Private Contractors,Direct Payments,10/13/2011,829,937.20,Revenue,REDACTED
Childrens & Education Services,Children Looked After (24hrs+),ART Independent Agency Foster,Supplies and Services,Services,Task Based Fostering,10/13/2011,830,"6,811.14",Revenue,FOCUSED FOSTERING
Childrens & Education Services,Children Looked After (24hrs+),ART Independent Agency Foster,Supplies and Services,Services,Task Based Fostering,10/13/2011,831,"6,811.14",Revenue,FOCUSED FOSTERING
Childrens & Education Services,Children Looked After (24hrs+),ART Residential Placements,Third Party Payments,Private Contractors,Miscellaneous Agency Services,10/13/2011,832,"9,282.48",Revenue,HOLIBROOK CARE SERVICES LTD
Adult Social Care,Adult u65 Mental Health Needs,HS Adult Placements,Third Party Payments,Private Contractors,Accommodation Based Support,10/13/2011,833,879.28,Revenue,REDACTED
Adult Social Care,Adult u65 Mental Health Needs,MH Adult Placement Cont-Morden,Third Party Payments,Private Contractors,Accommodation Based Support,10/13/2011,834,879.28,Revenue,REDACTED
Childrens & Education Services,Children Looked After (24hrs+),ART Mother and Baby Unit,Third Party Payments,Private Contractors,Miscellaneous Agency Services,10/14/2011,835,"14,720.00",Revenue,THE BRESLAFF CENTRE
Childrens & Education Services,Children Looked After (24hrs+),ART Residential Placements,Third Party Payments,Private Contractors,Miscellaneous Agency Services,10/14/2011,836,"12,075.55",Revenue,CHOICE LIFESTYLES LTD
Childrens & Education Services,Children Looked After (24hrs+),ART Independent Agency Foster,Supplies and Services,Services,Task Based Fostering,10/14/2011,837,"7,131.00",Revenue,CHILDREN OF COLOUR
Childrens & Education Services,Children Looked After (24hrs+),ART Independent Agency Foster,Supplies and Services,Services,Task Based Fostering,10/14/2011,838,"3,965.72",Revenue,CHILDREN OF COLOUR
Childrens & Education Services,Family Support Services,CS Day Care CWD,Third Party Payments,Private Contractors,Miscellaneous Agency Services,10/14/2011,839,"1,392.35",Revenue,COMPLETE CARE CENTRE
Childrens & Education Services,Children Looked After (24hrs+),ART Independent Agency Foster,Supplies and Services,Services,Long Term Fostering,10/14/2011,840,"3,710.92",Revenue,ETHELBERT SPECIALIST HOMES LTD
Childrens & Education Services,Children Looked After (24hrs+),ART Independent Agency Foster,Supplies and Services,Services,Long Term Fostering,10/14/2011,841,"2,877.60",Revenue,FOSTERPLUS LTD
Childrens & Education Services,Children Looked After (24hrs+),ART Independent Agency Foster,Supplies and Services,Services,Long Term Fostering,10/14/2011,842,"2,811.30",Revenue,FOSTER CARE ASSOCIATES LTD
Childrens & Education Services,Children Looked After (24hrs+),ART Independent Agency Foster,Supplies and Services,Services,Task Based Fostering,10/14/2011,843,"7,453.80",Revenue,THE FOSTER CARE AGENCY
Childrens & Education Services,Children Looked After (24hrs+),ART Independent Agency Foster,Supplies and Services,Services,Task Based Fostering,10/14/2011,844,"7,261.20",Revenue,HILLCREST CARE LTD
Childrens & Education Services,Children Looked After (24hrs+),ART Independent Agency Foster,Supplies and Services,Services,Task Based Fostering,10/14/2011,845,"6,690.60",Revenue,HILLCREST CARE LTD
Childrens & Education Services,Children Looked After (24hrs+),ART Independent Agency Foster,Supplies and Services,Services,Task Based Fostering,10/14/2011,846,"6,954.00",Revenue,HILLCREST CARE LTD
Childrens & Education Services,Children Looked After (24hrs+),ART Independent Agency Foster,Supplies and Services,Services,Task Based Fostering,10/14/2011,847,"6,690.60",Revenue,HILLCREST CARE LTD
Childrens & Education Services,Children Looked After (24hrs+),ART Independent Agency Foster,Supplies and Services,Services,Task Based Fostering,10/14/2011,848,"7,503.50",Revenue,HILLCREST CARE LTD
Childrens & Education Services,Children Looked After (24hrs+),ART Residential Placements,Third Party Payments,Private Contractors,Miscellaneous Agency Services,10/14/2011,849,"8,082.48",Revenue,HOLIBROOK CARE SERVICES LTD
Childrens & Education Services,Children Looked After (24hrs+),ART Residential Placements,Third Party Payments,Private Contractors,Miscellaneous Agency Services,10/14/2011,850,"8,082.48",Revenue,HOLIBROOK CARE SERVICES LTD
Childrens & Education Services,Children Looked After (24hrs+),ART Residential Placements,Third Party Payments,Private Contractors,Miscellaneous Agency Services,10/14/2011,851,"6,061.86",Revenue,HOLIBROOK CARE SERVICES LTD
Childrens & Education Services,Children Looked After (24hrs+),ART Residential Placements,Third Party Payments,Private Contractors,Miscellaneous Agency Services,10/14/2011,852,"8,082.48",Revenue,HOLIBROOK CARE SERVICES LTD
Childrens & Education Services,Children Looked After (24hrs+),ART Residential Placements,Third Party Payments,Private Contractors,Miscellaneous Agency Services,10/14/2011,853,"8,082.48",Revenue,HOLIBROOK CARE SERVICES LTD
Childrens & Education Services,Children Looked After (24hrs+),ART Independent Agency Foster,Supplies and Services,Services,Long Term Fostering,10/14/2011,854,"3,025.20",Revenue,KINDERCARE FOSTERING
Childrens & Education Services,Children Looked After (24hrs+),ART Independent Agency Foster,Supplies and Services,Services,Task Based Fostering,10/14/2011,855,"6,396.60",Revenue,KINDERCARE FOSTERING
Childrens & Education Services,Children Looked After (24hrs+),ART Independent Agency Foster,Supplies and Services,Services,Task Based Fostering,10/14/2011,856,"6,722.40",Revenue,KINDERCARE FOSTERING
Childrens & Education Services,Children Looked After (24hrs+),ART Independent Agency Foster,Supplies and Services,Services,Long Term Fostering,10/14/2011,857,"3,025.20",Revenue,KINDERCARE FOSTERING
Childrens & Education Services,Children Looked After (24hrs+),ART Independent Agency Foster,Supplies and Services,Services,Task Based Fostering,10/14/2011,858,"6,050.40",Revenue,KINDERCARE FOSTERING
Childrens & Education Services,Family Support Services,CS DayCare Facilities Children,Third Party Payments,Private Contractors,Playscheme,10/14/2011,859,560.00,Revenue,LITTLE CATERPILLARS PLAYGROUP
Childrens & Education Services,Children Looked After (24hrs+),ART Independent Agency Foster,Supplies and Services,Services,Task Based Fostering,10/14/2011,860,"6,428.40",Revenue,MOMENTS FOSTERING
Childrens & Education Services,Children Looked After (24hrs+),ART Independent Agency Foster,Supplies and Services,Services,Task Based Fostering,10/14/2011,861,"9,600.00",Revenue,NEXT STEP FOSTERING SERV'S LTD
Childrens & Education Services,Children Looked After (24hrs+),ART Independent Agency Foster,Supplies and Services,Services,Task Based Fostering,10/14/2011,862,"9,856.80",Revenue,OUTLOOK FOSTERING SERVICES LTD
Childrens & Education Services,Children Looked After (24hrs+),ART Independent Agency Foster,Supplies and Services,Services,Task Based Fostering,10/14/2011,863,"6,502.28",Revenue,SAFEHOUSES
Childrens & Education Services,Children Looked After (24hrs+),ART Independent Agency Foster,Supplies and Services,Services,Task Based Fostering,10/14/2011,864,"6,961.72",Revenue,ST CHRISTOPHERS FELLOWSHIP
Childrens & Education Services,Children Looked After (24hrs+),ART Independent Agency Foster,Supplies and Services,Services,Task Based Fostering,10/14/2011,865,"6,737.14",Revenue,ST CHRISTOPHERS FELLOWSHIP
Adult Social Care,Adult u65 Phys/Sensory Impair,PD EAST TEAM-Direct Payment,Third Party Payments,Private Contractors,Direct Payments,10/14/2011,866,"2,432.36",Revenue,REDACTED
Adult Social Care,Adult u65 Phys/Sensory Impair,PD WEST TEAM-Homecare,Third Party Payments,Private Contractors,Miscellaneous Agency Services,10/14/2011,867,"1,323.48",Revenue,ABLE COMMUNITY CARE LTD
Adult Social Care,Adlt u65 Learning Disabilities,LD Home Care External,Third Party Payments,Private Contractors,Miscellaneous Agency Services,10/14/2011,868,"2,800.00",Revenue,ABLE COMMUNITY CARE LTD
Adult Social Care,Adlt u65 Learning Disabilities,LD Home Care External,Third Party Payments,Private Contractors,Miscellaneous Agency Services,10/14/2011,869,655.30,Revenue,BEECH HOME CARE SERVICES
Adult Social Care,Adlt u65 Learning Disabilities,LD Home Care External,Third Party Payments,Private Contractors,Miscellaneous Agency Services,10/14/2011,870,624.80,Revenue,ROYAL MENCAP SOCIETY
Adult Social Care,Adlt u65 Learning Disabilities,LD Home Care External,Third Party Payments,Private Contractors,Miscellaneous Agency Services,10/14/2011,871,"2,120.96",Revenue,ROYAL MENCAP SOCIETY
Adult Social Care,Adlt u65 Learning Disabilities,LD Home Care External,Third Party Payments,Private Contractors,Miscellaneous Agency Services,10/14/2011,872,"1,835.12",Revenue,ROYAL MENCAP SOCIETY
Adult Social Care,Adlt u65 Learning Disabilities,LD Home Care External,Third Party Payments,Private Contractors,Miscellaneous Agency Services,10/14/2011,873,"1,906.56",Revenue,ROYAL MENCAP SOCIETY
Adult Social Care,Older People 65&Over inc OP-MH,OP East - Home Care External,Third Party Payments,Private Contractors,Miscellaneous Agency Services,10/14/2011,874,960.80,Revenue,ROYAL MENCAP SOCIETY
Adult Social Care,Adlt u65 Learning Disabilities,LD Day Care Agency,Third Party Payments,Private Contractors,Miscellaneous Agency Services,10/14/2011,875,"1,251.60",Revenue,WANDSWORTH BOROUGH COUNCIL
Adult Social Care,Older People 65&Over inc OP-MH,OP East - Nursing Care,Third Party Payments,Private Contractors,Miscellaneous Agency Services,10/14/2011,876,"1,640.57",Revenue,BEVERLEY LODGE NURSING HOME
Adult Social Care,Adlt u65 Learning Disabilities,LD Residential Care External,Third Party Payments,Private Contractors,Miscellaneous Agency Services,10/14/2011,877,"5,880.00",Revenue,BROADHAM CARE LTD
Adult Social Care,Adlt u65 Learning Disabilities,LD Residential Care External,Third Party Payments,Private Contractors,Miscellaneous Agency Services,10/14/2011,878,"6,725.24",Revenue,BROADHAM CARE LTD
Adult Social Care,Adlt u65 Learning Disabilities,LD Residential Care External,Third Party Payments,Private Contractors,Miscellaneous Agency Services,10/14/2011,879,"5,680.00",Revenue,BROADHAM CARE LTD
Adult Social Care,Older People 65&Over inc OP-MH,OP West - Nursing Care,Third Party Payments,Private Contractors,Miscellaneous Agency Services,10/14/2011,880,995.39,Revenue,CARE UK
Adult Social Care,Older People 65&Over inc OP-MH,OP East - Nursing Care,Third Party Payments,Private Contractors,Miscellaneous Agency Services,10/14/2011,881,"2,714.70",Revenue,CARE UK
Adult Social Care,Older People 65&Over inc OP-MH,OP East - Nursing Care,Third Party Payments,Private Contractors,Miscellaneous Agency Services,10/14/2011,882,"2,210.16",Revenue,GREAT WHEATLEY NURSING HOME
Adult Social Care,Adult u65 Phys/Sensory Impair,PD WEST TEAM-Residential Care,Third Party Payments,Private Contractors,Miscellaneous Agency Services,10/14/2011,883,"4,149.44",Revenue,HOTHFIELD MANOR FSHC
Adult Social Care,Adlt u65 Learning Disabilities,LD Nursing Care,Third Party Payments,Private Contractors,Miscellaneous Agency Services,10/14/2011,884,"5,884.32",Revenue,SUSSEX HEALTH CARE
Adult Social Care,Adlt u65 Learning Disabilities,LD Residential Care External,Third Party Payments,Private Contractors,Miscellaneous Agency Services,10/14/2011,885,"6,552.00",Revenue,SUSSEX HEALTH CARE
Adult Social Care,Adlt u65 Learning Disabilities,LD Residential Care External,Third Party Payments,Private Contractors,Miscellaneous Agency Services,10/14/2011,886,"5,931.68",Revenue,THE LEO TRUST
Adult Social Care,Older People 65&Over inc OP-MH,OP Hosp - Residential Care Ext,Third Party Payments,Private Contractors,Miscellaneous Agency Services,10/14/2011,887,"2,136.04",Revenue,MANOR HOUSE RESIDENTIAL HOME
Adult Social Care,Older People 65&Over inc OP-MH,OP Hosp - Residential Care Ext,Third Party Payments,Private Contractors,Miscellaneous Agency Services,10/14/2011,888,"1,812.40",Revenue,MANOR HOUSE RESIDENTIAL HOME
Adult Social Care,Adlt u65 Learning Disabilities,LD Home Care External,Third Party Payments,Private Contractors,Miscellaneous Agency Services,10/14/2011,889,"4,186.88",Revenue,ROYAL MENCAP SOCIETY
Adult Social Care,Adlt u65 Learning Disabilities,LD Residential Care External,Third Party Payments,Private Contractors,Miscellaneous Agency Services,10/14/2011,890,"2,697.04",Revenue,REDACTED
Adult Social Care,Adult u65 Phys/Sensory Impair,PD WEST TEAM-Residential Care,Third Party Payments,Private Contractors,Miscellaneous Agency Services,10/14/2011,891,"3,811.60",Revenue,VIRIDIAN HOUSING
Childrens & Education Services,Family Support Services,CS Children in Need Section 17,Transfer Payments,Adult Soc Servs Clients,Childr Act 1989 S17,10/14/2011,892,"1,328.35",Revenue,ADMINLAND LTD
Childrens & Education Services,Family Support Services,CS Children in Need Section 17,Transfer Payments,Adult Soc Servs Clients,Childr Act 1989 S17,10/14/2011,893,955.00,Revenue,THE NEW LEVEL OF LIFE
Adult Social Care,Adult u65 Phys/Sensory Impair,PD EAST TEAM-Direct Payment,Third Party Payments,Private Contractors,Direct Payments,10/14/2011,894,"-1,949.08",Revenue,REDACTED
Adult Social Care,Adlt u65 Learning Disabilities,LD Direct Payment Scheme,Third Party Payments,Private Contractors,Direct Payments,10/17/2011,895,"6,212.10",Revenue,REDACTED
Adult Social Care,Adlt u65 Learning Disabilities,LD Direct Payment Scheme,Third Party Payments,Private Contractors,Direct Payments,10/17/2011,896,"5,546.64",Revenue,REDACTED
Adult Social Care,Adlt u65 Learning Disabilities,LD Direct Payment Scheme,Third Party Payments,Private Contractors,Direct Payments,10/17/2011,897,"3,463.25",Revenue,REDACTED
Adult Social Care,Adult u65 Phys/Sensory Impair,PD EAST TEAM-Direct Payment,Third Party Payments,Private Contractors,Direct Payments,10/17/2011,898,690.45,Revenue,REDACTED
Adult Social Care,Adlt u65 Learning Disabilities,LD Home Care External,Third Party Payments,Private Contractors,Miscellaneous Agency Services,10/17/2011,899,"2,757.00",Revenue,ABLE COMMUNITY CARE LTD
Adult Social Care,Adult u65 Phys/Sensory Impair,PD EAST TEAM-Homecare,Third Party Payments,Private Contractors,Miscellaneous Agency Services,10/17/2011,900,981.96,Revenue,ACCESS CARE LTD
Adult Social Care,Adult u65 Phys/Sensory Impair,PD WEST TEAM-Homecare,Third Party Payments,Private Contractors,Miscellaneous Agency Services,10/17/2011,901,"2,996.00",Revenue,ACCESS CARE LTD
Adult Social Care,Adlt u65 Learning Disabilities,LD Home Care External,Third Party Payments,Private Contractors,Miscellaneous Agency Services,10/17/2011,902,655.30,Revenue,BEECH HOME CARE SERVICES
Adult Social Care,Adult u65 Phys/Sensory Impair,PD EAST TEAM-Homecare,Third Party Payments,Private Contractors,Miscellaneous Agency Services,10/17/2011,903,664.62,Revenue,BELGRAVIA NURS. & CARE BUREAU
Adult Social Care,Adult u65 Phys/Sensory Impair,PD WEST TEAM-Homecare,Third Party Payments,Private Contractors,Miscellaneous Agency Services,10/17/2011,904,850.00,Revenue,BELGRAVIA NURS. & CARE BUREAU
Adult Social Care,Adlt u65 Learning Disabilities,LD Comm -Home Care-Orch Hill,Third Party Payments,Private Contractors,Miscellaneous Agency Services,10/17/2011,905,"27,658.24",Revenue,CHOICE SUPPORT
Adult Social Care,Adlt u65 Learning Disabilities,LD Comm -Home Care-Campus Hm,Third Party Payments,Private Contractors,Miscellaneous Agency Services,10/17/2011,906,"84,828.16",Revenue,CHOICE SUPPORT
Adult Social Care,Adlt u65 Learning Disabilities,LD Comm -Home Care-Campus Hm,Third Party Payments,Private Contractors,Miscellaneous Agency Services,10/17/2011,907,"11,547.84",Revenue,CHOICE SUPPORT
Adult Social Care,Older People 65&Over inc OP-MH,OP East - Home Care External,Third Party Payments,Private Contractors,Miscellaneous Agency Services,10/17/2011,908,"2,520.00",Revenue,HOLISTIC COMMUNITY CARE LTD
Adult Social Care,Adult u65 Phys/Sensory Impair,PD EAST TEAM-Homecare,Third Party Payments,Private Contractors,Miscellaneous Agency Services,10/17/2011,909,"3,714.92",Revenue,HOMECARE SERVICES LTD
Adult Social Care,Adult u65 Mental Health Needs,MH Home Care External - Wim,Third Party Payments,Private Contractors,Miscellaneous Agency Services,10/17/2011,910,871.31,Revenue,PLAN PERSONNEL
Adult Social Care,Older People 65&Over inc OP-MH,OP Hosp - Home Care External,Third Party Payments,Private Contractors,Miscellaneous Agency Services,10/17/2011,911,949.24,Revenue,PLAN PERSONNEL
Adult Social Care,Adult u65 Phys/Sensory Impair,PD WEST TEAM-Homecare,Third Party Payments,Private Contractors,Miscellaneous Agency Services,10/17/2011,912,"1,548.90",Revenue,PLAN PERSONNEL
Adult Social Care,Adult u65 Phys/Sensory Impair,PD EAST TEAM-Homecare,Third Party Payments,Private Contractors,Miscellaneous Agency Services,10/17/2011,913,"2,172.47",Revenue,PLAN PERSONNEL
Adult Social Care,Adlt u65 Learning Disabilities,LD Home Care External,Third Party Payments,Private Contractors,Miscellaneous Agency Services,10/17/2011,914,"3,729.43",Revenue,PLAN PERSONNEL
Adult Social Care,Older People 65&Over inc OP-MH,OP East - Home Care External,Third Party Payments,Private Contractors,Miscellaneous Agency Services,10/17/2011,915,"13,090.34",Revenue,PLAN PERSONNEL
Adult Social Care,Older People 65&Over inc OP-MH,OP West - Home Care External,Third Party Payments,Private Contractors,Miscellaneous Agency Services,10/17/2011,916,"19,200.44",Revenue,PLAN PERSONNEL
Adult Social Care,Adlt u65 Learning Disabilities,LD Home Care External,Third Party Payments,Private Contractors,Miscellaneous Agency Services,10/17/2011,917,"3,996.00",Revenue,THE REGARD PARTNERSHIP LTD
Adult Social Care,Adlt u65 Learning Disabilities,LD Carer Services,Third Party Payments,Private Contractors,Miscellaneous Agency Services,10/17/2011,918,514.25,Revenue,SUPREME CARE SERVICES LIMITED
Adult Social Care,Older People 65&Over inc OP-MH,OP Hosp - Home Care External,Third Party Payments,Private Contractors,Miscellaneous Agency Services,10/17/2011,919,820.92,Revenue,SUPREME CARE SERVICES LIMITED
Adult Social Care,Adult u65 Phys/Sensory Impair,PD WEST TEAM-Homecare,Third Party Payments,Private Contractors,Miscellaneous Agency Services,10/17/2011,920,844.11,Revenue,SUPREME CARE SERVICES LIMITED
Adult Social Care,Adult u65 Phys/Sensory Impair,PD EAST TEAM-Homecare,Third Party Payments,Private Contractors,Miscellaneous Agency Services,10/17/2011,921,899.27,Revenue,SUPREME CARE SERVICES LIMITED
Adult Social Care,Older People 65&Over inc OP-MH,OP East - Carer Services,Third Party Payments,Private Contractors,Miscellaneous Agency Services,10/17/2011,922,"1,772.87",Revenue,SUPREME CARE SERVICES LIMITED
Adult Social Care,Older People 65&Over inc OP-MH,OP West - Carer Services,Third Party Payments,Private Contractors,Miscellaneous Agency Services,10/17/2011,923,"2,902.52",Revenue,SUPREME CARE SERVICES LIMITED
Adult Social Care,Older People 65&Over inc OP-MH,OP West - Home Care External,Third Party Payments,Private Contractors,Miscellaneous Agency Services,10/17/2011,924,"11,480.41",Revenue,SUPREME CARE SERVICES LIMITED
Adult Social Care,Older People 65&Over inc OP-MH,OP East - Home Care External,Third Party Payments,Private Contractors,Miscellaneous Agency Services,10/17/2011,925,"25,895.28",Revenue,SUPREME CARE SERVICES LIMITED
Adult Social Care,Adult u65 Phys/Sensory Impair,PD EAST TEAM-Homecare,Third Party Payments,Private Contractors,Miscellaneous Agency Services,10/17/2011,926,608.00,Revenue,SWEET TREE HOME CARE SERVICES
Adult Social Care,Older People 65&Over inc OP-MH,OP West - Home Care External,Third Party Payments,Private Contractors,Miscellaneous Agency Services,10/17/2011,927,615.30,Revenue,TOOTING NEIGHBOURHOOD CENTRE
Adult Social Care,Older People 65&Over inc OP-MH,OP West - Home Care External,Third Party Payments,Private Contractors,Miscellaneous Agency Services,10/17/2011,928,561.60,Revenue,TOOTING NEIGHBOURHOOD CENTRE
Childrens & Education Services,Family Support Services,CS Direct Payments,Third Party Payments,Private Contractors,Direct Payments,10/17/2011,929,532.50,Revenue,REDACTED
Adult Social Care,Asylum seekers,AS Child Res Care  (No Grant),Third Party Payments,Private Contractors,Supported Lodgings,10/17/2011,930,600.00,Revenue,REDACTED
Adult Social Care,Asylum seekers,AS Child - Res Care (Grant),Third Party Payments,Private Contractors,Miscellaneous Agency Services,10/17/2011,931,800.00,Revenue,KEYA SUPPORT LTD
Childrens & Education Services,Other Ch's & Family Services,CL Leaving Care/Supp Lodgings,Third Party Payments,Private Contractors,Miscellaneous Agency Services,10/17/2011,932,800.00,Revenue,KEYA SUPPORT LTD
Adult Social Care,Asylum seekers,AS Child - Res Care (Grant),Third Party Payments,Private Contractors,Miscellaneous Agency Services,10/17/2011,933,800.00,Revenue,KEYA SUPPORT LTD
Adult Social Care,Asylum seekers,AS Child - Res Care (Grant),Third Party Payments,Private Contractors,Miscellaneous Agency Services,10/17/2011,934,"1,039.00",Revenue,KEYA SUPPORT LTD
Childrens & Education Services,Other Ch's & Family Services,CL Leaving Care/Supp Lodgings,Third Party Payments,Private Contractors,Supported Lodgings,10/17/2011,935,"1,001.52",Revenue,REDACTED
Childrens & Education Services,Other Ch's & Family Services,CL Leaving Care/Supp Lodgings,Third Party Payments,Private Contractors,Supported Lodgings,10/17/2011,936,"1,001.52",Revenue,REDACTED
Childrens & Education Services,Family Support Services,CS DayCare Facilities Children,Third Party Payments,Private Contractors,Playscheme,10/17/2011,937,"1,260.00",Revenue,THE PENGUIN OUT OF SCHOOL CLUB
Childrens & Education Services,Family Support Services,CS DayCare Facilities Children,Third Party Payments,Private Contractors,Playscheme,10/17/2011,938,531.48,Revenue,RED HUT CHILDCARE CENTRE
Childrens & Education Services,Other Ch's & Family Services,CL Leaving Care/Supp Lodgings,Third Party Payments,Private Contractors,Supported Lodgings,10/17/2011,939,600.00,Revenue,REDACTED
Childrens & Education Services,Children Looked After (24hrs+),ART Independent Agency Foster,Supplies and Services,Services,Long Term Fostering,10/17/2011,940,"3,563.91",Revenue,SANKOFA CARE LTD
Childrens & Education Services,Children Looked After (24hrs+),ART Independent Agency Foster,Supplies and Services,Services,Long Term Fostering,10/17/2011,941,"4,752.00",Revenue,SANKOFA CARE LTD
Childrens & Education Services,Children Looked After (24hrs+),ART Independent Agency Foster,Supplies and Services,Services,Long Term Fostering,10/17/2011,942,"4,752.00",Revenue,SANKOFA CARE LTD
Childrens & Education Services,Children Looked After (24hrs+),ART Independent Agency Foster,Supplies and Services,Services,Long Term Fostering,10/17/2011,943,"4,752.00",Revenue,SANKOFA CARE LTD
Adult Social Care,Older People 65&Over inc OP-MH,OP East - Residential Care Ext,Third Party Payments,Private Contractors,Miscellaneous Agency Services,10/17/2011,944,"1,812.40",Revenue,ABBEYFIELD PEABODY S.LOND.LTD
Adult Social Care,Older People 65&Over inc OP-MH,OP Hosp - Residential Care Ext,Third Party Payments,Private Contractors,Miscellaneous Agency Services,10/17/2011,945,"2,094.40",Revenue,ABBEYFIELD PEABODY S.LOND.LTD
Adult Social Care,Older People 65&Over inc OP-MH,OP West - Residential Care Ext,Third Party Payments,Private Contractors,Miscellaneous Agency Services,10/17/2011,946,"1,907.04",Revenue,ABBEYFIELD PEABODY S.LOND.LTD
Adult Social Care,Other Adult Services,MH Residential Care Ext- SM&A,Third Party Payments,Private Contractors,Miscellaneous Agency Services,10/17/2011,947,"3,024.00",Revenue,ACTION ON ADDICTION
Adult Social Care,Older People 65&Over inc OP-MH,OP East - Residential Care Ext,Third Party Payments,Private Contractors,Miscellaneous Agency Services,10/17/2011,948,"1,717.80",Revenue,REDACTED
Adult Social Care,Older People 65&Over inc OP-MH,OP Hosp - Nursing Care,Customer and client receipts,Charges,Miscellaneous Charges X,10/17/2011,949,-543.50,Revenue,ASHURST PARK CARE CENTRE
Adult Social Care,Older People 65&Over inc OP-MH,OP Hosp - Nursing Care,Third Party Payments,Private Contractors,Miscellaneous Agency Services,10/17/2011,950,"2,628.29",Revenue,ASHURST PARK CARE CENTRE
Adult Social Care,Older People 65&Over inc OP-MH,OP Hosp - Nursing Care,Customer and client receipts,Charges,Bd&Acc-contrib coll by home X,10/17/2011,951,"-1,224.92",Revenue,AVONMEAD NURSING HOME
Adult Social Care,Older People 65&Over inc OP-MH,OP Hosp - Nursing Care,Third Party Payments,Private Contractors,Miscellaneous Agency Services,10/17/2011,952,"2,374.16",Revenue,AVONMEAD NURSING HOME
Adult Social Care,Older People 65&Over inc OP-MH,OP East - Residential Care Ext,Third Party Payments,Private Contractors,Miscellaneous Agency Services,10/17/2011,953,"1,680.00",Revenue,BELL MEMORIAL HOME
Adult Social Care,Older People 65&Over inc OP-MH,OP East - Nursing Care,Third Party Payments,Private Contractors,Miscellaneous Agency Services,10/17/2011,954,"2,800.00",Revenue,THE BRADBURY CENT.NURSING HOME
Adult Social Care,Older People 65&Over inc OP-MH,OP East - Residential Care Ext,Third Party Payments,Private Contractors,Miscellaneous Agency Services,10/17/2011,955,521.99,Revenue,BUPA CARE HOMES
Adult Social Care,Older People 65&Over inc OP-MH,OP Hosp - Nursing Care,Third Party Payments,Private Contractors,Miscellaneous Agency Services,10/17/2011,956,"1,990.78",Revenue,CARE UK
Adult Social Care,Older People 65&Over inc OP-MH,OP East - Nursing Care,Third Party Payments,Private Contractors,Miscellaneous Agency Services,10/17/2011,957,"2,805.19",Revenue,CARE UK
Adult Social Care,Older People 65&Over inc OP-MH,OP East - Nursing Care,Third Party Payments,Private Contractors,Miscellaneous Agency Services,10/17/2011,958,"2,805.19",Revenue,CARE UK
Adult Social Care,Older People 65&Over inc OP-MH,OP West - Nursing Care,Third Party Payments,Private Contractors,Miscellaneous Agency Services,10/17/2011,959,"2,805.19",Revenue,CARE UK
Adult Social Care,Older People 65&Over inc OP-MH,OP Hosp - Nursing Care,Third Party Payments,Private Contractors,Miscellaneous Agency Services,10/17/2011,960,"2,805.19",Revenue,CARE UK
Adult Social Care,Older People 65&Over inc OP-MH,OP Hosp - Nursing Care,Third Party Payments,Private Contractors,Miscellaneous Agency Services,10/17/2011,961,"2,805.19",Revenue,CARE UK
Adult Social Care,Older People 65&Over inc OP-MH,OP East - Nursing Care,Third Party Payments,Private Contractors,Miscellaneous Agency Services,10/17/2011,962,"2,805.19",Revenue,CARE UK
Adult Social Care,Older People 65&Over inc OP-MH,OP East - Nursing Care,Third Party Payments,Private Contractors,Miscellaneous Agency Services,10/17/2011,963,"2,805.19",Revenue,CARE UK
Adult Social Care,Older People 65&Over inc OP-MH,OP Hosp - Nursing Care,Third Party Payments,Private Contractors,Miscellaneous Agency Services,10/17/2011,964,"2,805.19",Revenue,CARE UK
Adult Social Care,Older People 65&Over inc OP-MH,OP East - Nursing Care,Third Party Payments,Private Contractors,Miscellaneous Agency Services,10/17/2011,965,"2,805.19",Revenue,CARE UK
Adult Social Care,Older People 65&Over inc OP-MH,OP Hosp - Nursing Care,Third Party Payments,Private Contractors,Miscellaneous Agency Services,10/17/2011,966,"2,967.01",Revenue,CARE UK
Adult Social Care,Older People 65&Over inc OP-MH,OP Hosp - Nursing Care,Third Party Payments,Private Contractors,Miscellaneous Agency Services,10/17/2011,967,"2,805.19",Revenue,CARE UK
Adult Social Care,Older People 65&Over inc OP-MH,OP East - Nursing Care,Third Party Payments,Private Contractors,Miscellaneous Agency Services,10/17/2011,968,"2,805.19",Revenue,CARE UK
Adult Social Care,Older People 65&Over inc OP-MH,OP East - Nursing Care,Customer and client receipts,Charges,Miscellaneous Charges X,10/19/2011,969,-543.50,Revenue,CLAREMONT CARE SVS LTD
Adult Social Care,Older People 65&Over inc OP-MH,OP East - Nursing Care,Third Party Payments,Private Contractors,Miscellaneous Agency Services,10/19/2011,970,"2,741.13",Revenue,CLAREMONT CARE SVS LTD
Adult Social Care,Older People 65&Over inc OP-MH,OP Hosp - Nursing Care,Customer and client receipts,Charges,Miscellaneous Charges X,10/19/2011,971,-543.50,Revenue,CLAREMONT CARE SVS LTD
Adult Social Care,Older People 65&Over inc OP-MH,OP Hosp - Nursing Care,Third Party Payments,Private Contractors,Miscellaneous Agency Services,10/19/2011,972,"2,575.64",Revenue,CLAREMONT CARE SVS LTD
Adult Social Care,Adlt u65 Learning Disabilities,LD Residential Care External,Third Party Payments,Private Contractors,Miscellaneous Agency Services,10/17/2011,973,"4,688.88",Revenue,CRAEGMOOR FACILITIES CO LTD
Adult Social Care,Older People 65&Over inc OP-MH,OP West - Residential Care Ext,Third Party Payments,Private Contractors,Miscellaneous Agency Services,10/17/2011,974,"1,825.16",Revenue,DEEPDENE CARE LIMITED
Adult Social Care,Older People 65&Over inc OP-MH,OP Hosp - Residential Care Ext,Third Party Payments,Private Contractors,Miscellaneous Agency Services,10/19/2011,975,"1,880.00",Revenue,THE ELMS REST HOME LTD
Adult Social Care,Older People 65&Over inc OP-MH,OP Hosp - Residential Care Ext,Third Party Payments,Private Contractors,Miscellaneous Agency Services,10/19/2011,976,"1,920.00",Revenue,THE ELMS REST HOME LTD
Adult Social Care,Older People 65&Over inc OP-MH,OP East - Residential Care Ext,Third Party Payments,Private Contractors,Miscellaneous Agency Services,10/19/2011,977,"1,880.00",Revenue,THE ELMS REST HOME LTD
Adult Social Care,Older People 65&Over inc OP-MH,OP East - Residential Care Ext,Third Party Payments,Private Contractors,Miscellaneous Agency Services,10/19/2011,978,"1,880.00",Revenue,THE ELMS REST HOME LTD
Adult Social Care,Older People 65&Over inc OP-MH,OP East - Nursing Care,Third Party Payments,Private Contractors,Miscellaneous Agency Services,10/17/2011,979,"2,332.36",Revenue,ELMWOOD
Adult Social Care,Adlt u65 Learning Disabilities,LD Residential Care External,Third Party Payments,Private Contractors,Miscellaneous Agency Services,10/17/2011,980,"4,113.72",Revenue,ESTHER CARE HOMES LIMITED
Adult Social Care,Adlt u65 Learning Disabilities,LD Residential Care External,Third Party Payments,Private Contractors,Miscellaneous Agency Services,10/17/2011,981,"4,113.72",Revenue,ESTHER CARE HOMES LIMITED
Adult Social Care,Older People 65&Over inc OP-MH,OP East - Residential Care Ext,Third Party Payments,Private Contractors,Miscellaneous Agency Services,10/17/2011,982,"1,812.40",Revenue,GRASMERE RESIDENTIAL HOME
Adult Social Care,Older People 65&Over inc OP-MH,OP East - Residential Care Ext,Third Party Payments,Private Contractors,Miscellaneous Agency Services,10/17/2011,983,"3,000.00",Revenue,GREENHIVE
Adult Social Care,Adlt u65 Learning Disabilities,LD Residential Care External,Third Party Payments,Private Contractors,Miscellaneous Agency Services,10/17/2011,984,"6,997.00",Revenue,CHHG LTD T/A GRETTON HOMES
Adult Social Care,Adult u65 Phys/Sensory Impair,PD WEST TEAM-Nursing,Third Party Payments,Private Contractors,Miscellaneous Agency Services,10/17/2011,985,"4,800.00",Revenue,HAVERING COURT NURSING HOME
Adult Social Care,Older People 65&Over inc OP-MH,OP West - Nursing Care,Third Party Payments,Private Contractors,Miscellaneous Agency Services,10/17/2011,986,"3,200.00",Revenue,HEADINGTON NURSING HOME
Adult Social Care,Adult u65 Mental Health Needs,MH Res Care Ext- Mitcham West,Third Party Payments,Private Contractors,Miscellaneous Agency Services,10/17/2011,987,"1,399.96",Revenue,HILLDALE AND NORTHVIEW
Adult Social Care,Adlt u65 Learning Disabilities,LD Home Care External,Third Party Payments,Private Contractors,Miscellaneous Agency Services,10/19/2011,988,"3,234.96",Revenue,H F TRUST LTD
Adult Social Care,Older People 65&Over inc OP-MH,OP Hosp - Nursing Care,Third Party Payments,Private Contractors,Miscellaneous Agency Services,10/17/2011,989,"2,341.84",Revenue,HOME CLOSE
Adult Social Care,Older People 65&Over inc OP-MH,OP Hosp - Nursing Care,Third Party Payments,Private Contractors,Miscellaneous Agency Services,10/17/2011,990,"2,341.84",Revenue,HOME CLOSE
Adult Social Care,Older People 65&Over inc OP-MH,OP East - Nursing Care,Third Party Payments,Private Contractors,Miscellaneous Agency Services,10/19/2011,991,"2,268.72",Revenue,JESMUND NURSING HOME
Adult Social Care,Adult u65 Mental Health Needs,MH Nursing Care - Wim,Third Party Payments,Private Contractors,Miscellaneous Agency Services,10/19/2011,992,"2,175.16",Revenue,JESMUND NURSING HOME
Adult Social Care,Older People 65&Over inc OP-MH,OP East - Nursing Care,Third Party Payments,Private Contractors,Miscellaneous Agency Services,10/17/2011,993,"2,577.00",Revenue,SOUTHERN CROSS HEALTHCARE
Adult Social Care,Older People 65&Over inc OP-MH,OP West - Residential Care Ext,Third Party Payments,Private Contractors,Miscellaneous Agency Services,10/17/2011,994,"1,811.51",Revenue,LYNCROFT RESIDENTIAL HOME
Adult Social Care,Adlt u65 Learning Disabilities,LD Comm -Residential-Orch Hill,Third Party Payments,Private Contractors,Miscellaneous Agency Services,10/17/2011,995,"8,343.84",Revenue,MCCH  SOCIETY LTD
Adult Social Care,Adlt u65 Learning Disabilities,LD Residential Care External,Third Party Payments,Private Contractors,Miscellaneous Agency Services,10/17/2011,996,"5,230.76",Revenue,MACINTYRE
Adult Social Care,Adlt u65 Learning Disabilities,LD Residential Care External,Third Party Payments,Private Contractors,Miscellaneous Agency Services,10/17/2011,997,"3,045.24",Revenue,MACINTYRE
Adult Social Care,Adlt u65 Learning Disabilities,LD Residential Care External,Third Party Payments,Private Contractors,Miscellaneous Agency Services,10/17/2011,998,"4,392.00",Revenue,MACINTYRE
Adult Social Care,Older People 65&Over inc OP-MH,OP East - Nursing Care,Third Party Payments,Private Contractors,Miscellaneous Agency Services,10/17/2011,999,"2,341.84",Revenue,FOUR SEASONS LTD T/A UPLANDS
Adult Social Care,Adlt u65 Learning Disabilities,LD Residential Care External,Third Party Payments,Private Contractors,Miscellaneous Agency Services,10/17/2011,1000,"4,160.00",Revenue,THE REGARD PARTNERSHIP LTD
Adult Social Care,Adult u65 Phys/Sensory Impair,PD EAST TEAM-Nursing,Oth Grants Reimbmnts/Contribs,Contribs from other LA's,PCT Contribution-Nursing CareX,10/19/2011,1001,-543.50,Revenue,ROYAL HOSP FOR NEURO-DISAB
Adult Social Care,Adult u65 Phys/Sensory Impair,PD EAST TEAM-Nursing,Third Party Payments,Private Contractors,Miscellaneous Agency Services,10/19/2011,1002,"5,063.61",Revenue,ROYAL HOSP FOR NEURO-DISAB
Adult Social Care,Older People 65&Over inc OP-MH,OP Hosp - Residential Care Ext,Third Party Payments,Private Contractors,Miscellaneous Agency Services,10/17/2011,1003,"2,100.00",Revenue,ROYAL CAMBRIDGE HOME
Adult Social Care,Older People 65&Over inc OP-MH,OP West - Residential Care Ext,Third Party Payments,Private Contractors,Miscellaneous Agency Services,10/17/2011,1004,"2,400.00",Revenue,RUTLAND HOME
Adult Social Care,Adult u65 Mental Health Needs,MH ResidentialCare Ext - Wim,Third Party Payments,Private Contractors,Miscellaneous Agency Services,10/17/2011,1005,"6,500.00",Revenue,SIGNHEALTH
Adult Social Care,Older People 65&Over inc OP-MH,OP West - Nursing Care,Third Party Payments,Private Contractors,Miscellaneous Agency Services,10/17/2011,1006,"2,300.00",Revenue,SOUTHDOWN NURSING + RES.HOME
Adult Social Care,Older People 65&Over inc OP-MH,OP East - Residential Care Ext,Third Party Payments,Private Contractors,Miscellaneous Agency Services,10/17/2011,1007,"1,878.52",Revenue,SOUTHERN CROSS HEALTHCARE LTD
Adult Social Care,Older People 65&Over inc OP-MH,OP Hosp - Residential Care Ext,Third Party Payments,Private Contractors,Miscellaneous Agency Services,10/17/2011,1008,"1,878.52",Revenue,SOUTHERN CROSS HEALTHCARE LTD
Adult Social Care,Older People 65&Over inc OP-MH,OP Hosp - Residential Care Ext,Third Party Payments,Private Contractors,Miscellaneous Agency Services,10/17/2011,1009,"1,878.52",Revenue,SOUTHERN CROSS HEALTHCARE LTD
Adult Social Care,Older People 65&Over inc OP-MH,OP East - Nursing Care,Third Party Payments,Private Contractors,Miscellaneous Agency Services,10/17/2011,1010,"2,237.64",Revenue,SOUTHERN CROSS HEALTHCARE LTD
Adult Social Care,Adult u65 Phys/Sensory Impair,PD EAST TEAM-Nursing,Third Party Payments,Private Contractors,Miscellaneous Agency Services,10/17/2011,1011,"3,096.00",Revenue,SOUTHERN CROSS HEALTHCARE LTD
Adult Social Care,Older People 65&Over inc OP-MH,OP East - Residential Care Ext,Third Party Payments,Private Contractors,Miscellaneous Agency Services,10/17/2011,1012,"1,878.52",Revenue,SOUTHERN CROSS HEALTHCARE LTD
Adult Social Care,Older People 65&Over inc OP-MH,OP East - Nursing Care,Third Party Payments,Private Contractors,Miscellaneous Agency Services,10/17/2011,1013,"2,237.64",Revenue,SOUTHERN CROSS HEALTHCARE LTD
Adult Social Care,Older People 65&Over inc OP-MH,OP Hosp - Nursing Care,Third Party Payments,Private Contractors,Miscellaneous Agency Services,10/17/2011,1014,"2,237.64",Revenue,SOUTHERN CROSS HEALTHCARE LTD
Adult Social Care,Older People 65&Over inc OP-MH,OP East - Residential Care Ext,Third Party Payments,Private Contractors,Miscellaneous Agency Services,10/17/2011,1015,"1,878.52",Revenue,SOUTHERN CROSS HEALTHCARE LTD
Adult Social Care,Older People 65&Over inc OP-MH,OP Hosp - Residential Care Ext,Third Party Payments,Private Contractors,Miscellaneous Agency Services,10/17/2011,1016,"2,840.00",Revenue,SOUTHERN CROSS HEALTHCARE LTD
Adult Social Care,Older People 65&Over inc OP-MH,OP Hosp - Residential Care Ext,Third Party Payments,Private Contractors,Miscellaneous Agency Services,10/17/2011,1017,"1,878.52",Revenue,SOUTHERN CROSS HEALTHCARE LTD
Adult Social Care,Older People 65&Over inc OP-MH,OP Hosp - Residential Care Ext,Third Party Payments,Private Contractors,Miscellaneous Agency Services,10/17/2011,1018,"1,878.52",Revenue,SOUTHERN CROSS HEALTHCARE LTD
Adult Social Care,Older People 65&Over inc OP-MH,OP East - Residential Care Ext,Third Party Payments,Private Contractors,Miscellaneous Agency Services,10/17/2011,1019,"1,878.52",Revenue,SOUTHERN CROSS HEALTHCARE LTD
Adult Social Care,Older People 65&Over inc OP-MH,OP Hosp - Residential Care Ext,Third Party Payments,Private Contractors,Miscellaneous Agency Services,10/17/2011,1020,"1,878.52",Revenue,SOUTHERN CROSS HEALTHCARE LTD
Adult Social Care,Older People 65&Over inc OP-MH,OP East - Nursing Care,Third Party Payments,Private Contractors,Miscellaneous Agency Services,10/17/2011,1021,"2,237.64",Revenue,SOUTHERN CROSS HEALTHCARE LTD
Adult Social Care,Older People 65&Over inc OP-MH,OP East - Residential Care Ext,Third Party Payments,Private Contractors,Miscellaneous Agency Services,10/17/2011,1022,"1,878.52",Revenue,SOUTHERN CROSS HEALTHCARE LTD
Adult Social Care,Older People 65&Over inc OP-MH,OP East - Residential Care Ext,Third Party Payments,Private Contractors,Miscellaneous Agency Services,10/17/2011,1023,"2,000.00",Revenue,SOUTHERN CROSS HEALTHCARE LTD
Adult Social Care,Older People 65&Over inc OP-MH,OP Hosp - Residential Care Ext,Third Party Payments,Private Contractors,Miscellaneous Agency Services,10/17/2011,1024,"2,000.00",Revenue,SOUTHERN CROSS HEALTHCARE LTD
Adult Social Care,Older People 65&Over inc OP-MH,OP West - Nursing Care,Third Party Payments,Private Contractors,Miscellaneous Agency Services,10/17/2011,1025,"2,431.96",Revenue,SOUTHERN CROSS HEALTHCARE LTD
Adult Social Care,Older People 65&Over inc OP-MH,OP West - Nursing Care,Third Party Payments,Private Contractors,Miscellaneous Agency Services,10/17/2011,1026,"2,593.00",Revenue,SOUTHERN CROSS HEALTHCARE LTD
Adult Social Care,Older People 65&Over inc OP-MH,OP Hosp - Nursing Care,Third Party Payments,Private Contractors,Miscellaneous Agency Services,10/17/2011,1027,"2,341.84",Revenue,SOUTHERN CROSS HEALTHCARE LTD
Adult Social Care,Older People 65&Over inc OP-MH,OP Hosp - Nursing Care,Third Party Payments,Private Contractors,Miscellaneous Agency Services,10/17/2011,1028,"2,717.76",Revenue,SOUTHERN CROSS HEALTHCARE LTD
Adult Social Care,Older People 65&Over inc OP-MH,OP Hosp - Nursing Care,Third Party Payments,Private Contractors,Miscellaneous Agency Services,10/17/2011,1029,"11,700.00",Revenue,SUNRISE SENIOR LIVING RES.HOME
Adult Social Care,Adlt u65 Learning Disabilities,LD Residential Care External,Third Party Payments,Private Contractors,Miscellaneous Agency Services,10/17/2011,1030,"5,678.20",Revenue,AUTISM SUSSEX LTD
Adult Social Care,Older People 65&Over inc OP-MH,OP West - Nursing Care,Third Party Payments,Private Contractors,Miscellaneous Agency Services,10/17/2011,1031,836.37,Revenue,SUTTON COURT CARE CENTRE
Adult Social Care,Older People 65&Over inc OP-MH,OP West - Residential Care Ext,Third Party Payments,Private Contractors,Miscellaneous Agency Services,10/17/2011,1032,"2,200.00",Revenue,THRESHFIELD CRT NURSING HOME
Adult Social Care,Other Adult Services,MH Residential Care Ext- SM&A,Third Party Payments,Private Contractors,Miscellaneous Agency Services,10/17/2011,1033,"2,173.95",Revenue,TURNING POINT SERVICES LTD
Adult Social Care,Adlt u65 Learning Disabilities,LD Comm-Residential-Surrey Oak,Third Party Payments,Private Contractors,Miscellaneous Agency Services,10/17/2011,1034,"6,776.60",Revenue,WALSINGHAM
Adult Social Care,Adlt u65 Learning Disabilities,LD Residential Care External,Third Party Payments,Private Contractors,Miscellaneous Agency Services,10/17/2011,1035,"5,717.76",Revenue,WINSLOW COURT
Childrens & Education Services,Other Ch's & Family Services,CL Adoption Allowances,Transfer Payments,Adult Soc Servs Clients,Adodption Allowances,10/18/2011,1036,562.88,Revenue,REDACTED
Childrens & Education Services,Other Ch's & Family Services,CL Adoption Allowances,Transfer Payments,Adult Soc Servs Clients,Adodption Allowances,10/18/2011,1037,607.08,Revenue,REDACTED
Childrens & Education Services,Other Ch's & Family Services,CL Adoption Allowances,Transfer Payments,Adult Soc Servs Clients,Adodption Allowances,10/18/2011,1038,912.40,Revenue,REDACTED
Childrens & Education Services,Other Ch's & Family Services,CL Adoption Allowances,Transfer Payments,Adult Soc Servs Clients,Adodption Allowances,10/18/2011,1039,636.57,Revenue,REDACTED
Childrens & Education Services,Other Ch's & Family Services,CL Adoption Allowances,Transfer Payments,Adult Soc Servs Clients,Adodption Allowances,10/18/2011,1040,763.46,Revenue,REDACTED
Childrens & Education Services,Other Ch's & Family Services,CL Adoption Allowances,Transfer Payments,Adult Soc Servs Clients,Adodption Allowances,10/18/2011,1041,981.59,Revenue,REDACTED
